Workbook

Sheet Summary
A6: The Phantom Stock Plan Modeler - Executive Benefit Solutions
B8: Phantom stock plans are a form of a Deferred Compensation and does not represent equity ownership in the Company. Phantom stock plans may be subject to either ERISA and/or IRC Section 409A depending upon the structure of the plan. Companies should seek guidance from qualified advisors if they wish to avoid these regulations
B11: PURPOSE OF THE MODELER
D12: The purpose of the Modeler is to provide a better understanding of how phantom stock plans work, and to provide an opportunity for you to study the potential value and cost of various plan designs.
D13: Phantom stock plans are extremely flexible and can be customized to meet the specific objectives of the plan sponsor, and the needs of the key employees. This version of the Modeler is designed to illustrate some of the basic issues associated with plan design, and to stimulate your thinking as to how such a program could assist in meeting the financial and strategic goals for the Company.
D14: There are only a few inputs required to get started modeling, which are outlined below. But first, we would like to pose some basic questions to be addressed in the plan design process.
B16: OBJECTIVES
D17: The sponsor’s objectives for the implementation of a phantom stock plan vary from company to company based on the specific facts and circumstances. However, some common objectives include the creation of a long-term incentive compensation plan that:
E18: ■ | F18: Has significant retention characteristics
E19: ■ | F19: Incents key employees to act like owners
E20: ■ | F20: Allows each to share in the future growth and appreciation of the company
E21: ■ | F21: Delivers a clear message that he/she is important to the future success of the business
B23: PLAN DESIGN CONSIDERATIONS
D24: Fundamental Principles
D25: The plan design is most likely to be successful if it:
E26: ■ | F26: Provides a direct link between performance and pay
E27: ■ | F27: Bases the valuation of the phantom shares or units on financial performance criteria over which the key employee has control
E28: ■ | F28: Takes into consideration strategic as well as financial goals
E29: ■ | F29: Is easy for the participants to understand and to assess the potential value
E30: ■ | F30: Coordinates the phantom stock plan with other components of the total rewards package, such as the short-term incentive plan and/or the deferred compensation plan
E31: ■ | F31: Is sufficiently flexible to deal with changing circumstances in the future
D32: Nature of the Plan
E33: ■ | F33: Full value versus appreciation: Is the design intended to reward participants for valuable past service, or is it an incentive for future performance (or both)?
E34: ■ | F34: The Modeler can illustrate the potential value of either full value or appreciation phantom shares or units, or a combination of the two.
D35: Valuation of the Business / Phantom Shares - Units
E36: ■ | F36: What is the basis for the valuation of the business – appraisal value, or formula value (e.g., a multiple of EBITDA)?
E37: ■ | F37: How much of the current value of the business, or the future appreciation, should be allocated to the plan (e.g., 10 - 15%)?
E38: ■ | F38: Are plan awards open-ended, or limited?
E39: ■ | F39: The Modeler can help determine the level of grant to ensure that the awards are significant, but not an unreasonable financial burden (ideally, funded out of incremental profitability).
D41: Mechanics
E42: ■ | F42: When are the phantom shares/units granted - one-time/periodically/annually?
E43: ■ | F43: What is the period over which the performance criteria are measured, e.g., 3 – 5 years?
E44: ■ | F44: How is the amount of each grant determined?
E45: ■ | F45: When and how are the granted shares/units earned, vested and paid?
E46: ■ | F46: What is the tax impact to the participant?
B48: GETTING STARTED
D49: Screen 1: Valuation Method
E50: ■ | F50: Enter data in the input boxes on the left of the screen regarding:
G51: - | H51: The projected business value – based on appraisal value or formula.
G52: - | H52: If a formula approach, indicate the basis of the formula.
G53: - | H53: And the vesting period.
E54: ■ | F54: If you hold the cursor over each input box, a dialog box appears with instructions.
E55: ■ | F55: Also, if you click on the red triangle in the input box, a drop down menu will appear.
E56: ■ | F56: The projected value of the business, the cumulative appreciation, the amount of the total phantom stock pool and the share/unit value are displayed on the right
D57: Screen 2: Participant Awards
E58: ■ | F58: Enter the participants on the left.
E59: ■ | F59: Enter the percentage of the phantom stock pool to be allocated to each on the right.
D60: Screen 3: Participant Values
E61: ■ | F61: Enter the participant for whom you would like to view the projected benefits in the yellow box in the upper left of the screen.
E62: ■ | F62: The columns to the right illustrate the projected award values for the period specified.
E63: ■ | F63: A total compensation summary is presented at the bottom of the screen to illustrate the relative value of the phantom stock plan.
D64: Screen 4: Company Perspective
E65: ■ | F65: The data in this screen is automatically generated based on previous inputs, and illustrates the projected total Company value, the appreciation, and the aggregate value of the phantom stock shares/units earned and vested in relation to the total compensation paid to the participants.
E66: ■ | F66: You can adjust the inputs on the first screen, and project a range of possible results.
D67: Screen 5: Rate Table
E68: ■ | F68: This is a detailed input page for rate tables for projections of the business value and the vesting period.
B70: IN SUMMARY
D71: Once again, this generic version of the Phantom Stock Modeler is designed to illustrate some basic plan design options. The actual plan design would be customized to the facts and circumstances of each situation to reflect the specific goals and objectives of the sponsor, and the needs of the participants. And the Modeler would be customized to provide detailed financial information from the Company’s perspective, as well as an effective participant communication tool.
B75: HELP IS AVAILABLE
D76: For assistance using the Modeler, please contact EBS:
G77: Chris Rich | U77: Chris Wyrtzen | AI77: Karl Reinhold
G78: Managing Director | U78: Managing Director | AI78: Vice President, Design
G79: EBS - Boston | U79: EBS - Boston | AI79: EBS - Boston
G80: Phone: 617-904-9444 x 112 | U80: Phone: 617-904-9444 x 111 | AI80: Phone: 617-904-9444 x 113
G81: Email: crich@ebs-boston.com | U81: Email: cwyrtzen@ebs-boston.com | AI81: Email: kreinhold@ebs-boston.com

Sheet Valuation Method
C5: PROJECTED BUSINESS VALUE - Specied or Formula Based
C6: Base line year for measurement period to begin | H6: 2015
C7: How many future years do you want to model (3-10)? | H7: 10
C8: How many total shares are there? | H8: 100000
C9: What % of future value are you willing to give to Execs? | H9: 0.2
C10: Specify Business Value or use a Formula based Approach | H10: Formula Based
C11: =IF(InputValueMethod="Specify Values","Click on the Hyperlink to go Table to Input Values==>","Use Next Section to Specify Valuation Formula") -> Use Next Section to Specify Valuation Formula | H11: Go To Input Table
C13: If Formula Based Approach Selected Above, use this Secion (otherwise ignored)
C14: Select Measurement Criteria | H14: EBITDA
C15: ="Input Current "&ValueCriteriaSelected -> Input Current EBITDA | H15: 500000
C16: ="Project "&ValueCriteriaSelected&" using Single Rate or a Rate Table?" -> Project EBITDA using Single Rate or a Rate Table? | H16: Rate Table
C17: =IF(GrowRateSelected="Single Rate","Enter the Single Rate here ==>","Click on the Hyperlink to go Rate Table") -> Click on the Hyperlink to go Rate Table | H17: Go To Rate Table
C18: ="What Multiple of "&ValueCriteriaSelected&" Would a Buyer Pay?" -> What Multiple of EBITDA Would a Buyer Pay? | H18: 5
C20: Specify the Vesting Time Period
C21: Select Number of Years to Vest (3-10)? | H21: 5
C22: Default is Cliff Vesting or Choose Vesting Schedule | H22: Vesting Schedule
C23: Click on the Hyperlink to Enter the Vesting Schedule | H23: Go To Vesting Table | N23: =M23+1 -> 1 | O23: =N23+1 -> 2 | P23: =O23+1 -> 3 | Q23: =P23+1 -> 4 | R23: =Q23+1 -> 5 | S23: 6 | T23: 7 | U23: 8 | V23: =U23+1 -> 9 | W23: =V23+1 -> 10
M24: =Calcs!I9 -> 25 | N24: =Calcs!I10 -> 33.25 | O24: =Calcs!I11 -> 44.2225 | P24: =Calcs!I12 -> 58.815925 | Q24: =Calcs!I13 -> 73.51990625 | R24: =Calcs!I14 -> 91.89988281 | S24: =Calcs!I15 -> 114.8748535 | T24: =Calcs!I16 -> 132.1060815 | U24: =Calcs!I17 -> 151.9219938 | V24: =Calcs!I18 -> 174.7102928 | W24: =Calcs!I19 -> 200.9168368

Sheet Participant Awards
C8: Enter the List of Executives who will Participate in the Plan | J8: Enter the % of the Pool to be Awarded to Each Participant
F9: 1st Year | H9: % Target | J9: 1 | K9: =J9+1 -> 2 | L9: =K9+1 -> 3 | M9: 4 | N9: 5 | O9: 6 | P9: 7 | Q9: 8 | R9: 9 | S9: 10
C10: # | D10: Name | E10: Title | F10: Eligible | G10: Salary | H10: Bonus | J10: ='Valuation Method'!H6+1 -> 2016 | K10: =J10+1 -> 2017 | L10: =K10+1 -> 2018 | M10: =L10+1 -> 2019 | N10: 2020 | O10: =N10+1 -> 2021 | P10: 2022 | Q10: 2023 | R10: 2024 | S10: 2025
C11: 1 | D11: John Smith | E11: COO | F11: 1 | G11: 300000 | H11: 0.3 | J11: 0.3 | L11: 0.1
C12: =C11+1 -> 2 | D12: Jim Douglas | E12: CFO | F12: 1 | G12: 275000 | H12: 0.3 | J12: 0.2
C13: 3 | D13: Jane Doe | E13: SVP Marketing | F13: 1 | G13: 250000 | H13: 0.25 | J13: 0.15
C14: 4 | D14: Nancy Jenkins | E14: SVP Manufacturing | F14: 3 | G14: 250000 | H14: 0.25 | L14: 0.15
C15: 5
C16: 6
C17: 7
C18: 8
C19: 9
C20: 10
C21: 11 | D21: All Participants
D22: Cumulative Awards==> | J22: =SUM(J11:J21) -> 0.65 | K22: =SUM(K11:K21)+J22 -> 0.65 | L22: =SUM(L11:L21)+K22 -> 0.9 | M22: 0.9 | N22: 0.9 | O22: 0.9 | P22: 0.9 | Q22: 0.9 | R22: 0.9 | S22: 0.9

Sheet Participant Values
D5: Go to the Yellow Box and select which Executive's results to view
C8: =Variables!$X$30 -> 1 | D8: John Smith | F8: Phantom Stock | G8: Phantom Shares | H8: Share
D9: Year | E9: Cal Year | F9: Award | G9: Granted | H9: Price | I9: =EOYDate -> 2016-12-31 | J9: =DATE(YEAR(I9)+1,MONTH(I9),DAY(I9)) -> 2017-12-31 | K9: =DATE(YEAR(J9)+1,MONTH(J9),DAY(J9)) -> 2018-12-31 | L9: =DATE(YEAR(K9)+1,MONTH(K9),DAY(K9)) -> 2019-12-31 | M9: 2020-12-31 | N9: 2021-12-31 | O9: 2022-12-31 | P9: 2023-12-31 | Q9: 2024-12-31 | R9: 2025-12-31
I10: 1 | J10: =I10+1 -> 2 | K10: =J10+1 -> 3 | L10: 4 | M10: 5 | N10: 6 | O10: 7 | P10: 8 | Q10: 9 | R10: 10
H11: =Calcs!$I$9 -> 25 | I11: =H12 -> 33.25 | J11: =H13 -> 44.2225 | K11: =H14 -> 58.815925 | L11: =H15 -> 73.51990625 | M11: =H16 -> 91.89988281 | N11: =H17 -> 114.8748535 | O11: =H18 -> 132.1060815 | P11: =H19 -> 151.9219938 | Q11: =H20 -> 174.7102928 | R11: =H21 -> 200.9168368 | Z11: Vesting Rates | AK11: Vested Value
D12: 1 | E12: ='Valuation Method'!$H$6+1 -> 2016 | F12: =INDEX(ParticipantData,MATCH(C8,ParticipantNums,0),MATCH($E12,TopRow,0)) -> 0.3 | G12: =PoolPercent*SharesNumber*F12 -> 6000 | H12: =Calcs!$I$10 -> 33.25 | I12: =$G12*(I11-$H11) -> 49500 | J12: 115335 | K12: 202895.55 | L12: 291119.4375 | M12: 401399.2969 | N12: 539249.1211 | O12: 642636.4893 | P12: 761531.9626 | Q12: 898261.757 | R12: 1055501.021 | Z12: ='Rate Table'!$O$8 -> 0 | AA12: ='Rate Table'!$O$9 -> 0 | AB12: ='Rate Table'!$O$10 -> 0 | AC12: ='Rate Table'!$O$11 -> 0.4 | AD12: ='Rate Table'!$O$12 -> 1 | AE12: ='Rate Table'!$O$13 -> 1 | AF12: ='Rate Table'!$O$14 -> 1 | AG12: ='Rate Table'!$O$15 -> 1 | AH12: ='Rate Table'!$O$16 -> 1 | AI12: ='Rate Table'!$O$17 -> 1 | AK12: =I12*Z12 -> 0 | AL12: =J12*AA12 -> 0 | AM12: 0 | AN12: 116447.775 | AO12: 401399.2969 | AP12: 539249.1211 | AQ12: 642636.4893 | AR12: 761531.9626 | AS12: 898261.757 | AT12: 1055501.021
D13: =D12+1 -> 2 | E13: =E12+1 -> 2017 | F13: =INDEX(ParticipantData,MATCH(C8,ParticipantNums,0),MATCH(E13,TopRow,0)) -> 0 | G13: 0 | H13: =Calcs!$I$11 -> 44.2225 | J13: =$G13*(J11-$I11) -> 0 | K13: 0 | L13: 0 | M13: 0 | N13: 0 | O13: 0 | P13: 0 | Q13: 0 | R13: 0 | AA13: ='Rate Table'!$O$8 -> 0 | AB13: ='Rate Table'!$O$9 -> 0 | AC13: ='Rate Table'!$O$10 -> 0 | AD13: ='Rate Table'!$O$11 -> 0.4 | AE13: ='Rate Table'!$O$12 -> 1 | AF13: ='Rate Table'!$O$13 -> 1 | AG13: ='Rate Table'!$O$14 -> 1 | AH13: ='Rate Table'!$O$15 -> 1 | AI13: ='Rate Table'!$O$16 -> 1 | AK13: =I13*Z13 -> 0 | AL13: =J13*AA13 -> 0 | AM13: =K13*AB13 -> 0 | AN13: =L13*AC13 -> 0 | AO13: =M13*AD13 -> 0 | AP13: =N13*AE13 -> 0 | AQ13: =O13*AF13 -> 0 | AR13: =P13*AG13 -> 0 | AS13: =Q13*AH13 -> 0 | AT13: =R13*AI13 -> 0
D14: =D13+1 -> 3 | E14: 2018 | F14: =INDEX(ParticipantData,MATCH(C8,ParticipantNums,0),MATCH(E14,TopRow,0)) -> 0.1 | G14: 2000 | H14: =Calcs!$I$12 -> 58.815925 | K14: =$G14*(K11-$J11) -> 29186.85 | L14: 58594.8125 | M14: 95354.76562 | N14: 141304.707 | O14: 175767.1631 | P14: 215398.9875 | Q14: 260975.5857 | R14: 313388.6735 | AB14: ='Rate Table'!$O$8 -> 0 | AC14: ='Rate Table'!$O$9 -> 0 | AD14: ='Rate Table'!$O$10 -> 0 | AE14: ='Rate Table'!$O$11 -> 0.4 | AF14: ='Rate Table'!$O$12 -> 1 | AG14: ='Rate Table'!$O$13 -> 1 | AH14: ='Rate Table'!$O$14 -> 1 | AI14: ='Rate Table'!$O$15 -> 1 | AK14: 0 | AL14: 0 | AM14: 0 | AN14: 0 | AO14: 0 | AP14: 56521.88281 | AQ14: 175767.1631 | AR14: 215398.9875 | AS14: 260975.5857 | AT14: 313388.6735
D15: 4 | E15: 2019 | F15: =INDEX(ParticipantData,MATCH(C8,ParticipantNums,0),MATCH(E15,TopRow,0)) -> 0 | G15: 0 | H15: =Calcs!$I$13 -> 73.51990625 | L15: =$G15*(L11-$K11) -> 0 | M15: 0 | N15: 0 | O15: 0 | P15: 0 | Q15: 0 | R15: 0 | AC15: ='Rate Table'!$O$8 -> 0 | AD15: ='Rate Table'!$O$9 -> 0 | AE15: ='Rate Table'!$O$10 -> 0 | AF15: ='Rate Table'!$O$11 -> 0.4 | AG15: ='Rate Table'!$O$12 -> 1 | AH15: ='Rate Table'!$O$13 -> 1 | AI15: ='Rate Table'!$O$14 -> 1 | AK15: 0 | AL15: 0 | AM15: 0 | AN15: 0 | AO15: 0 | AP15: 0 | AQ15: 0 | AR15: 0 | AS15: 0 | AT15: 0
D16: 5 | E16: =E15+1 -> 2020 | F16: =INDEX(ParticipantData,MATCH(C8,ParticipantNums,0),MATCH(E16,TopRow,0)) -> 0 | G16: =PoolPercent*SharesNumber*F16 -> 0 | H16: =Calcs!$I$14 -> 91.89988281 | M16: =$G16*(M11-$L11) -> 0 | N16: 0 | O16: 0 | P16: 0 | Q16: 0 | R16: 0 | AD16: ='Rate Table'!$O$8 -> 0 | AE16: ='Rate Table'!$O$9 -> 0 | AF16: ='Rate Table'!$O$10 -> 0 | AG16: ='Rate Table'!$O$11 -> 0.4 | AH16: ='Rate Table'!$O$12 -> 1 | AI16: ='Rate Table'!$O$13 -> 1 | AK16: 0 | AL16: 0 | AM16: 0 | AN16: 0 | AO16: 0 | AP16: 0 | AQ16: 0 | AR16: 0 | AS16: 0 | AT16: 0
D17: 6 | E17: =E16+1 -> 2021 | F17: =INDEX(ParticipantData,MATCH(C8,ParticipantNums,0),MATCH(E17,TopRow,0)) -> 0 | G17: 0 | H17: =Calcs!$I$15 -> 114.8748535 | N17: =$G17*(N11-$M11) -> 0 | O17: =$G17*(O11-$M11) -> 0 | P17: =$G17*(P11-$M11) -> 0 | Q17: =$G17*(Q11-$M11) -> 0 | R17: =$G17*(R11-$M11) -> 0 | AE17: ='Rate Table'!$O$8 -> 0 | AF17: ='Rate Table'!$O$9 -> 0 | AG17: ='Rate Table'!$O$10 -> 0 | AH17: ='Rate Table'!$O$11 -> 0.4 | AI17: ='Rate Table'!$O$12 -> 1 | AK17: 0 | AL17: 0 | AM17: 0 | AN17: 0 | AO17: 0 | AP17: 0 | AQ17: 0 | AR17: 0 | AS17: 0 | AT17: 0
D18: 7 | E18: =E17+1 -> 2022 | F18: =INDEX(ParticipantData,MATCH(C8,ParticipantNums,0),MATCH(E18,TopRow,0)) -> 0 | G18: 0 | H18: =Calcs!$I$16 -> 132.1060815 | O18: =$G18*(O11-$N11) -> 0 | P18: =$G18*(P11-$N11) -> 0 | Q18: =$G18*(Q11-$N11) -> 0 | R18: =$G18*(R11-$N11) -> 0 | AF18: ='Rate Table'!$O$8 -> 0 | AG18: ='Rate Table'!$O$9 -> 0 | AH18: ='Rate Table'!$O$10 -> 0 | AI18: ='Rate Table'!$O$11 -> 0.4 | AK18: 0 | AL18: 0 | AM18: 0 | AN18: 0 | AO18: 0 | AP18: 0 | AQ18: 0 | AR18: 0 | AS18: 0 | AT18: 0
D19: 8 | E19: =E18+1 -> 2023 | F19: =INDEX(ParticipantData,MATCH(C8,ParticipantNums,0),MATCH(E19,TopRow,0)) -> 0 | G19: 0 | H19: =Calcs!$I$17 -> 151.9219938 | P19: =$G19*(P11-$O11) -> 0 | Q19: =$G19*(Q11-$O11) -> 0 | R19: =$G19*(R11-$O11) -> 0 | AG19: ='Rate Table'!$O$8 -> 0 | AH19: ='Rate Table'!$O$9 -> 0 | AI19: ='Rate Table'!$O$10 -> 0 | AK19: 0 | AL19: 0 | AM19: 0 | AN19: 0 | AO19: 0 | AP19: 0 | AQ19: 0 | AR19: 0 | AS19: 0 | AT19: 0
D20: 9 | E20: =E19+1 -> 2024 | F20: =INDEX(ParticipantData,MATCH(C8,ParticipantNums,0),MATCH(E20,TopRow,0)) -> 0 | G20: 0 | H20: =Calcs!$I$18 -> 174.7102928 | Q20: =$G20*(Q11-$P11) -> 0 | R20: =$G20*(R11-$P11) -> 0 | AH20: ='Rate Table'!$O$8 -> 0 | AI20: ='Rate Table'!$O$9 -> 0 | AK20: 0 | AL20: 0 | AM20: 0 | AN20: 0 | AO20: 0 | AP20: 0 | AQ20: 0 | AR20: 0 | AS20: 0 | AT20: 0
D21: 10 | E21: =E20+1 -> 2025 | F21: =INDEX(ParticipantData,MATCH(C8,ParticipantNums,0),MATCH(E21,TopRow,0)) -> 0 | G21: 0 | H21: =Calcs!$I$19 -> 200.9168368 | R21: =$G21*(R11-$Q11) -> 0 | AI21: ='Rate Table'!$O$8 -> 0 | AK21: 0 | AL21: 0 | AM21: 0 | AN21: 0 | AO21: 0 | AP21: 0 | AQ21: 0 | AR21: 0 | AS21: 0 | AT21: 0
F22: =SUM(F12:F21) -> 0.4 | G22: =SUM(G12:G21) -> 8000 | H22: Earned | I22: =SUM(I12:I21) -> 49500 | J22: =SUM(J12:J21) -> 115335 | K22: 232082.4 | L22: 349714.25 | M22: 496754.0625 | N22: 680553.8281 | O22: 818403.6523 | P22: 976930.9502 | Q22: 1159237.343 | R22: 1368889.694
H23: Vested | I23: =SUM(AK12:AK21) -> 0 | J23: =SUM(AL12:AL21) -> 0 | K23: 0 | L23: 116447.775 | M23: 401399.2969 | N23: 595771.0039 | O23: 818403.6523 | P23: 976930.9502 | Q23: 1159237.343 | R23: 1368889.694
H25: Salary | I25: =VLOOKUP(C8,'Participant Awards'!$C$11:$H$20,5,FALSE) -> 300000 | J25: =I25*(1+CompGrowthRate) -> 309000 | K25: 318270 | L25: 327818.1 | M25: 337652.643 | N25: 347782.2223 | O25: 358215.689 | P25: 368962.1596 | Q25: 380031.0244 | R25: 391431.9551
H26: Bonus | I26: =I25*VLOOKUP(C8,'Participant Awards'!$C$11:$H$20,6,FALSE) -> 90000 | J26: =J25*VLOOKUP(C8,'Participant Awards'!$C$11:$H$20,6,FALSE) -> 92700 | K26: =K25*VLOOKUP(C8,'Participant Awards'!$C$11:$H$20,6,FALSE) -> 95481 | L26: =L25*VLOOKUP(C8,'Participant Awards'!$C$11:$H$20,6,FALSE) -> 98345.43 | M26: =M25*VLOOKUP(C8,'Participant Awards'!$C$11:$H$20,6,FALSE) -> 101295.7929 | N26: =N25*VLOOKUP(C8,'Participant Awards'!$C$11:$H$20,6,FALSE) -> 104334.6667 | O26: =O25*VLOOKUP(C8,'Participant Awards'!$C$11:$H$20,6,FALSE) -> 107464.7067 | P26: =P25*VLOOKUP(C8,'Participant Awards'!$C$11:$H$20,6,FALSE) -> 110688.6479 | Q26: =Q25*VLOOKUP(C8,'Participant Awards'!$C$11:$H$20,6,FALSE) -> 114009.3073 | R26: =R25*VLOOKUP(C8,'Participant Awards'!$C$11:$H$20,6,FALSE) -> 117429.5865
H27: Total Comp | I27: =I25+I26 -> 390000 | J27: =J25+J26 -> 401700 | K27: 413751 | L27: 426163.53 | M27: 438948.4359 | N27: 452116.889 | O27: 465680.3956 | P27: 479650.8075 | Q27: 494040.3317 | R27: 508861.5417
F29: Phantom Stock Value as % of Salary | I29: =IF(I25=0,0,I22/I25) -> 0.165 | J29: =IF(J25=0,0,J22/J25) -> 0.3732524272 | K29: 0.7291997361 | L29: 1.066793597 | M29: 1.471198502 | N29: 1.956839035 | O29: 2.284667248 | P29: 2.647780876 | Q29: 3.050375544 | R29: 3.497133221
C38: 1 | D38: =" "&IF(VLOOKUP(C38,'Participant Awards'!$C$11:$D$20,2,FALSE)=0,"",VLOOKUP(C38,'Participant Awards'!$C$11:$D$20,2,FALSE)) -> John Smith | F38: Phantom Stock | G38: Phantom Shares | H38: Share
D39: Year | E39: Cal Year | F39: Award | G39: Granted | H39: Price | I39: =EOYDate -> 2016-12-31 | J39: =DATE(YEAR(I39)+1,MONTH(I39),DAY(I39)) -> 2017-12-31 | K39: =DATE(YEAR(J39)+1,MONTH(J39),DAY(J39)) -> 2018-12-31 | L39: =DATE(YEAR(K39)+1,MONTH(K39),DAY(K39)) -> 2019-12-31 | M39: =DATE(YEAR(L39)+1,MONTH(L39),DAY(L39)) -> 2020-12-31 | N39: =DATE(YEAR(M39)+1,MONTH(M39),DAY(M39)) -> 2021-12-31 | O39: =DATE(YEAR(N39)+1,MONTH(N39),DAY(N39)) -> 2022-12-31 | P39: =DATE(YEAR(O39)+1,MONTH(O39),DAY(O39)) -> 2023-12-31 | Q39: =DATE(YEAR(P39)+1,MONTH(P39),DAY(P39)) -> 2024-12-31 | R39: =DATE(YEAR(Q39)+1,MONTH(Q39),DAY(Q39)) -> 2025-12-31
H40: =Calcs!$I$9 -> 25 | I40: =H41 -> 33.25 | J40: =H42 -> 44.2225 | K40: =H43 -> 58.815925 | L40: =H44 -> 73.51990625 | M40: =H45 -> 91.89988281 | N40: =H46 -> 114.8748535 | O40: =H47 -> 132.1060815 | P40: =H48 -> 151.9219938 | Q40: =H49 -> 174.7102928 | R40: =H50 -> 200.9168368 | Z40: Vesting Rates | AK40: Vested Value
D41: 1 | E41: ='Valuation Method'!$H$6+1 -> 2016 | F41: =INDEX(ParticipantData,MATCH(C38,ParticipantNums,0),MATCH($E41,TopRow,0)) -> 0.3 | G41: =PoolPercent*SharesNumber*F41 -> 6000 | H41: =Calcs!$I$10 -> 33.25 | I41: =$G41*(I40-$H40) -> 49500 | J41: 115335 | K41: 202895.55 | L41: 291119.4375 | M41: 401399.2969 | N41: 539249.1211 | O41: 642636.4893 | P41: 761531.9626 | Q41: 898261.757 | R41: 1055501.021 | Z41: ='Rate Table'!$O$8 -> 0 | AA41: ='Rate Table'!$O$9 -> 0 | AB41: ='Rate Table'!$O$10 -> 0 | AC41: ='Rate Table'!$O$11 -> 0.4 | AD41: ='Rate Table'!$O$12 -> 1 | AE41: ='Rate Table'!$O$13 -> 1 | AF41: ='Rate Table'!$O$14 -> 1 | AG41: ='Rate Table'!$O$15 -> 1 | AH41: ='Rate Table'!$O$16 -> 1 | AI41: ='Rate Table'!$O$17 -> 1 | AK41: =I41*Z41 -> 0 | AL41: =J41*AA41 -> 0 | AM41: =K41*AB41 -> 0 | AN41: =L41*AC41 -> 116447.775 | AO41: =M41*AD41 -> 401399.2969 | AP41: =N41*AE41 -> 539249.1211 | AQ41: =O41*AF41 -> 642636.4893 | AR41: =P41*AG41 -> 761531.9626 | AS41: =Q41*AH41 -> 898261.757 | AT41: =R41*AI41 -> 1055501.021
D42: =D41+1 -> 2 | E42: =E41+1 -> 2017 | F42: =INDEX(ParticipantData,MATCH(C38,ParticipantNums,0),MATCH(E42,TopRow,0)) -> 0 | G42: 0 | H42: =Calcs!$I$11 -> 44.2225 | J42: =$G42*(J40-$I40) -> 0 | K42: 0 | L42: 0 | M42: 0 | N42: 0 | O42: 0 | P42: 0 | Q42: 0 | R42: 0 | AA42: ='Rate Table'!$O$8 -> 0 | AB42: ='Rate Table'!$O$9 -> 0 | AC42: ='Rate Table'!$O$10 -> 0 | AD42: ='Rate Table'!$O$11 -> 0.4 | AE42: ='Rate Table'!$O$12 -> 1 | AF42: ='Rate Table'!$O$13 -> 1 | AG42: ='Rate Table'!$O$14 -> 1 | AH42: ='Rate Table'!$O$15 -> 1 | AI42: ='Rate Table'!$O$16 -> 1 | AK42: =I42*Z42 -> 0 | AL42: 0 | AM42: 0 | AN42: 0 | AO42: 0 | AP42: 0 | AQ42: 0 | AR42: 0 | AS42: 0 | AT42: 0
D43: =D42+1 -> 3 | E43: 2018 | F43: =INDEX(ParticipantData,MATCH(C38,ParticipantNums,0),MATCH(E43,TopRow,0)) -> 0.1 | G43: 2000 | H43: =Calcs!$I$12 -> 58.815925 | K43: =$G43*(K40-$J40) -> 29186.85 | L43: 58594.8125 | M43: 95354.76562 | N43: 141304.707 | O43: 175767.1631 | P43: 215398.9875 | Q43: 260975.5857 | R43: 313388.6735 | AB43: ='Rate Table'!$O$8 -> 0 | AC43: ='Rate Table'!$O$9 -> 0 | AD43: ='Rate Table'!$O$10 -> 0 | AE43: ='Rate Table'!$O$11 -> 0.4 | AF43: ='Rate Table'!$O$12 -> 1 | AG43: ='Rate Table'!$O$13 -> 1 | AH43: ='Rate Table'!$O$14 -> 1 | AI43: ='Rate Table'!$O$15 -> 1 | AK43: 0 | AL43: 0 | AM43: 0 | AN43: 0 | AO43: 0 | AP43: 56521.88281 | AQ43: 175767.1631 | AR43: 215398.9875 | AS43: 260975.5857 | AT43: 313388.6735
D44: =D43+1 -> 4 | E44: 2019 | F44: =INDEX(ParticipantData,MATCH(C38,ParticipantNums,0),MATCH(E44,TopRow,0)) -> 0 | G44: 0 | H44: =Calcs!$I$13 -> 73.51990625 | L44: =$G44*(L40-$K40) -> 0 | M44: 0 | N44: 0 | O44: 0 | P44: 0 | Q44: 0 | R44: 0 | AC44: ='Rate Table'!$O$8 -> 0 | AD44: ='Rate Table'!$O$9 -> 0 | AE44: ='Rate Table'!$O$10 -> 0 | AF44: ='Rate Table'!$O$11 -> 0.4 | AG44: ='Rate Table'!$O$12 -> 1 | AH44: ='Rate Table'!$O$13 -> 1 | AI44: ='Rate Table'!$O$14 -> 1 | AK44: 0 | AL44: 0 | AM44: 0 | AN44: 0 | AO44: 0 | AP44: 0 | AQ44: 0 | AR44: 0 | AS44: 0 | AT44: 0
D45: =D44+1 -> 5 | E45: 2020 | F45: =INDEX(ParticipantData,MATCH(C38,ParticipantNums,0),MATCH(E45,TopRow,0)) -> 0 | G45: 0 | H45: =Calcs!$I$14 -> 91.89988281 | M45: =$G45*(M40-$L40) -> 0 | N45: 0 | O45: 0 | P45: 0 | Q45: 0 | R45: 0 | AD45: ='Rate Table'!$O$8 -> 0 | AE45: ='Rate Table'!$O$9 -> 0 | AF45: ='Rate Table'!$O$10 -> 0 | AG45: ='Rate Table'!$O$11 -> 0.4 | AH45: ='Rate Table'!$O$12 -> 1 | AI45: ='Rate Table'!$O$13 -> 1 | AK45: 0 | AL45: 0 | AM45: 0 | AN45: 0 | AO45: 0 | AP45: 0 | AQ45: 0 | AR45: 0 | AS45: 0 | AT45: 0
D46: =D45+1 -> 6 | E46: 2021 | F46: =INDEX(ParticipantData,MATCH(C38,ParticipantNums,0),MATCH(E46,TopRow,0)) -> 0 | G46: 0 | H46: =Calcs!$I$15 -> 114.8748535 | N46: =$G46*(N40-$M40) -> 0 | O46: =$G46*(O40-$M40) -> 0 | P46: =$G46*(P40-$M40) -> 0 | Q46: =$G46*(Q40-$M40) -> 0 | R46: =$G46*(R40-$M40) -> 0 | AE46: ='Rate Table'!$O$8 -> 0 | AF46: ='Rate Table'!$O$9 -> 0 | AG46: ='Rate Table'!$O$10 -> 0 | AH46: ='Rate Table'!$O$11 -> 0.4 | AI46: ='Rate Table'!$O$12 -> 1 | AK46: 0 | AL46: 0 | AM46: 0 | AN46: 0 | AO46: 0 | AP46: 0 | AQ46: 0 | AR46: 0 | AS46: 0 | AT46: 0
D47: =D46+1 -> 7 | E47: 2022 | F47: =INDEX(ParticipantData,MATCH(C38,ParticipantNums,0),MATCH(E47,TopRow,0)) -> 0 | G47: 0 | H47: =Calcs!$I$16 -> 132.1060815 | O47: =$G47*(O40-$N40) -> 0 | P47: =$G47*(P40-$N40) -> 0 | Q47: =$G47*(Q40-$N40) -> 0 | R47: =$G47*(R40-$N40) -> 0 | AF47: ='Rate Table'!$O$8 -> 0 | AG47: ='Rate Table'!$O$9 -> 0 | AH47: ='Rate Table'!$O$10 -> 0 | AI47: ='Rate Table'!$O$11 -> 0.4 | AK47: 0 | AL47: 0 | AM47: 0 | AN47: 0 | AO47: 0 | AP47: 0 | AQ47: 0 | AR47: 0 | AS47: 0 | AT47: 0
D48: =D47+1 -> 8 | E48: 2023 | F48: =INDEX(ParticipantData,MATCH(C38,ParticipantNums,0),MATCH(E48,TopRow,0)) -> 0 | G48: 0 | H48: =Calcs!$I$17 -> 151.9219938 | P48: =$G48*(P40-$O40) -> 0 | Q48: =$G48*(Q40-$O40) -> 0 | R48: =$G48*(R40-$O40) -> 0 | AG48: ='Rate Table'!$O$8 -> 0 | AH48: ='Rate Table'!$O$9 -> 0 | AI48: ='Rate Table'!$O$10 -> 0 | AK48: 0 | AL48: 0 | AM48: 0 | AN48: 0 | AO48: 0 | AP48: 0 | AQ48: 0 | AR48: 0 | AS48: 0 | AT48: 0
D49: =D48+1 -> 9 | E49: 2024 | F49: =INDEX(ParticipantData,MATCH(C38,ParticipantNums,0),MATCH(E49,TopRow,0)) -> 0 | G49: 0 | H49: =Calcs!$I$18 -> 174.7102928 | Q49: =$G49*(Q40-$P40) -> 0 | R49: =$G49*(R40-$P40) -> 0 | AH49: ='Rate Table'!$O$8 -> 0 | AI49: ='Rate Table'!$O$9 -> 0 | AK49: 0 | AL49: 0 | AM49: 0 | AN49: 0 | AO49: 0 | AP49: 0 | AQ49: 0 | AR49: 0 | AS49: 0 | AT49: 0
D50: =D49+1 -> 10 | E50: 2025 | F50: =INDEX(ParticipantData,MATCH(C38,ParticipantNums,0),MATCH(E50,TopRow,0)) -> 0 | G50: 0 | H50: =Calcs!$I$19 -> 200.9168368 | R50: =$G50*(R40-$Q40) -> 0 | AI50: ='Rate Table'!$O$8 -> 0 | AK50: 0 | AL50: 0 | AM50: 0 | AN50: 0 | AO50: 0 | AP50: 0 | AQ50: 0 | AR50: 0 | AS50: 0 | AT50: 0
F51: =SUM(F41:F50) -> 0.4 | G51: =SUM(G41:G50) -> 8000 | H51: Earned | I51: =SUM(I41:I50) -> 49500 | J51: =SUM(J41:J50) -> 115335 | K51: 232082.4 | L51: 349714.25 | M51: 496754.0625 | N51: 680553.8281 | O51: 818403.6523 | P51: 976930.9502 | Q51: 1159237.343 | R51: 1368889.694
H52: Vested | I52: =SUM(AK41:AK50) -> 0 | J52: =SUM(AL41:AL50) -> 0 | K52: =SUM(AM41:AM50) -> 0 | L52: =SUM(AN41:AN50) -> 116447.775 | M52: =SUM(AO41:AO50) -> 401399.2969 | N52: =SUM(AP41:AP50) -> 595771.0039 | O52: =SUM(AQ41:AQ50) -> 818403.6523 | P52: =SUM(AR41:AR50) -> 976930.9502 | Q52: =SUM(AS41:AS50) -> 1159237.343 | R52: =SUM(AT41:AT50) -> 1368889.694
H54: Salary | I54: =VLOOKUP(C38,'Participant Awards'!$C$11:$H$20,5,FALSE) -> 300000 | J54: =I54*(1+CompGrowthRate) -> 309000 | K54: =J54*(1+CompGrowthRate) -> 318270 | L54: =K54*(1+CompGrowthRate) -> 327818.1 | M54: =L54*(1+CompGrowthRate) -> 337652.643 | N54: =M54*(1+CompGrowthRate) -> 347782.2223 | O54: =N54*(1+CompGrowthRate) -> 358215.689 | P54: =O54*(1+CompGrowthRate) -> 368962.1596 | Q54: =P54*(1+CompGrowthRate) -> 380031.0244 | R54: =Q54*(1+CompGrowthRate) -> 391431.9551
H55: Bonus | I55: =I54*VLOOKUP(C38,'Participant Awards'!$C$11:$H$20,6,FALSE) -> 90000 | J55: =J54*VLOOKUP(C38,'Participant Awards'!$C$11:$H$20,6,FALSE) -> 92700 | K55: =K54*VLOOKUP(C38,'Participant Awards'!$C$11:$H$20,6,FALSE) -> 95481 | L55: =L54*VLOOKUP(C38,'Participant Awards'!$C$11:$H$20,6,FALSE) -> 98345.43 | M55: =M54*VLOOKUP(C38,'Participant Awards'!$C$11:$H$20,6,FALSE) -> 101295.7929 | N55: =N54*VLOOKUP(C38,'Participant Awards'!$C$11:$H$20,6,FALSE) -> 104334.6667 | O55: =O54*VLOOKUP(C38,'Participant Awards'!$C$11:$H$20,6,FALSE) -> 107464.7067 | P55: =P54*VLOOKUP(C38,'Participant Awards'!$C$11:$H$20,6,FALSE) -> 110688.6479 | Q55: =Q54*VLOOKUP(C38,'Participant Awards'!$C$11:$H$20,6,FALSE) -> 114009.3073 | R55: =R54*VLOOKUP(C38,'Participant Awards'!$C$11:$H$20,6,FALSE) -> 117429.5865
H56: Total Comp | I56: =I54+I55 -> 390000 | J56: =J54+J55 -> 401700 | K56: 413751 | L56: 426163.53 | M56: 438948.4359 | N56: 452116.889 | O56: 465680.3956 | P56: 479650.8075 | Q56: 494040.3317 | R56: 508861.5417
F58: Phantom Stock Value as % of Salary | I58: =IF(I54=0,0,I51/I54) -> 0.165 | J58: =IF(J54=0,0,J51/J54) -> 0.3732524272 | K58: 0.7291997361 | L58: 1.066793597 | M58: 1.471198502 | N58: 1.956839035 | O58: 2.284667248 | P58: 2.647780876 | Q58: 3.050375544 | R58: 3.497133221
C62: 2 | D62: =" "&IF(VLOOKUP(C62,'Participant Awards'!$C$11:$D$20,2,FALSE)=0,"",VLOOKUP(C62,'Participant Awards'!$C$11:$D$20,2,FALSE)) -> Jim Douglas | F62: Phantom Stock | G62: Phantom Shares | H62: Share
D63: Year | E63: Cal Year | F63: Award | G63: Granted | H63: Price | I63: =EOYDate -> 2016-12-31 | J63: =DATE(YEAR(I63)+1,MONTH(I63),DAY(I63)) -> 2017-12-31 | K63: =DATE(YEAR(J63)+1,MONTH(J63),DAY(J63)) -> 2018-12-31 | L63: =DATE(YEAR(K63)+1,MONTH(K63),DAY(K63)) -> 2019-12-31 | M63: =DATE(YEAR(L63)+1,MONTH(L63),DAY(L63)) -> 2020-12-31 | N63: =DATE(YEAR(M63)+1,MONTH(M63),DAY(M63)) -> 2021-12-31 | O63: =DATE(YEAR(N63)+1,MONTH(N63),DAY(N63)) -> 2022-12-31 | P63: =DATE(YEAR(O63)+1,MONTH(O63),DAY(O63)) -> 2023-12-31 | Q63: =DATE(YEAR(P63)+1,MONTH(P63),DAY(P63)) -> 2024-12-31 | R63: =DATE(YEAR(Q63)+1,MONTH(Q63),DAY(Q63)) -> 2025-12-31
H64: =Calcs!$I$9 -> 25 | I64: =H65 -> 33.25 | J64: =H66 -> 44.2225 | K64: =H67 -> 58.815925 | L64: =H68 -> 73.51990625 | M64: =H69 -> 91.89988281 | N64: =H70 -> 114.8748535 | O64: =H71 -> 132.1060815 | P64: =H72 -> 151.9219938 | Q64: =H73 -> 174.7102928 | R64: =H74 -> 200.9168368 | Z64: Vesting Rates | AK64: Vested Value
D65: 1 | E65: ='Valuation Method'!$H$6+1 -> 2016 | F65: =INDEX(ParticipantData,MATCH(C62,ParticipantNums,0),MATCH($E65,TopRow,0)) -> 0.2 | G65: =PoolPercent*SharesNumber*F65 -> 4000 | H65: =Calcs!$I$10 -> 33.25 | I65: =$G65*(I64-$H64) -> 33000 | J65: 76890 | K65: 135263.7 | L65: 194079.625 | M65: 267599.5312 | N65: 359499.4141 | O65: 428424.3262 | P65: 507687.9751 | Q65: 598841.1714 | R65: 703667.3471 | Z65: ='Rate Table'!$O$8 -> 0 | AA65: ='Rate Table'!$O$9 -> 0 | AB65: ='Rate Table'!$O$10 -> 0 | AC65: ='Rate Table'!$O$11 -> 0.4 | AD65: ='Rate Table'!$O$12 -> 1 | AE65: ='Rate Table'!$O$13 -> 1 | AF65: ='Rate Table'!$O$14 -> 1 | AG65: ='Rate Table'!$O$15 -> 1 | AH65: ='Rate Table'!$O$16 -> 1 | AI65: ='Rate Table'!$O$17 -> 1 | AK65: =I65*Z65 -> 0 | AL65: =J65*AA65 -> 0 | AM65: =K65*AB65 -> 0 | AN65: =L65*AC65 -> 77631.85 | AO65: =M65*AD65 -> 267599.5312 | AP65: =N65*AE65 -> 359499.4141 | AQ65: =O65*AF65 -> 428424.3262 | AR65: =P65*AG65 -> 507687.9751 | AS65: =Q65*AH65 -> 598841.1714 | AT65: =R65*AI65 -> 703667.3471
D66: =D65+1 -> 2 | E66: =E65+1 -> 2017 | F66: =INDEX(ParticipantData,MATCH(C62,ParticipantNums,0),MATCH(E66,TopRow,0)) -> 0 | G66: 0 | H66: =Calcs!$I$11 -> 44.2225 | J66: =$G66*(J64-$I64) -> 0 | K66: 0 | L66: 0 | M66: 0 | N66: 0 | O66: 0 | P66: 0 | Q66: 0 | R66: 0 | AA66: ='Rate Table'!$O$8 -> 0 | AB66: ='Rate Table'!$O$9 -> 0 | AC66: ='Rate Table'!$O$10 -> 0 | AD66: ='Rate Table'!$O$11 -> 0.4 | AE66: ='Rate Table'!$O$12 -> 1 | AF66: ='Rate Table'!$O$13 -> 1 | AG66: ='Rate Table'!$O$14 -> 1 | AH66: ='Rate Table'!$O$15 -> 1 | AI66: ='Rate Table'!$O$16 -> 1 | AK66: =I66*Z66 -> 0 | AL66: 0 | AM66: 0 | AN66: 0 | AO66: 0 | AP66: 0 | AQ66: 0 | AR66: 0 | AS66: 0 | AT66: 0
D67: =D66+1 -> 3 | E67: 2018 | F67: =INDEX(ParticipantData,MATCH(C62,ParticipantNums,0),MATCH(E67,TopRow,0)) -> 0 | G67: 0 | H67: =Calcs!$I$12 -> 58.815925 | K67: =$G67*(K64-$J64) -> 0 | L67: 0 | M67: 0 | N67: 0 | O67: 0 | P67: 0 | Q67: 0 | R67: 0 | AB67: ='Rate Table'!$O$8 -> 0 | AC67: ='Rate Table'!$O$9 -> 0 | AD67: ='Rate Table'!$O$10 -> 0 | AE67: ='Rate Table'!$O$11 -> 0.4 | AF67: ='Rate Table'!$O$12 -> 1 | AG67: ='Rate Table'!$O$13 -> 1 | AH67: ='Rate Table'!$O$14 -> 1 | AI67: ='Rate Table'!$O$15 -> 1 | AK67: 0 | AL67: 0 | AM67: 0 | AN67: 0 | AO67: 0 | AP67: 0 | AQ67: 0 | AR67: 0 | AS67: 0 | AT67: 0
D68: =D67+1 -> 4 | E68: 2019 | F68: =INDEX(ParticipantData,MATCH(C62,ParticipantNums,0),MATCH(E68,TopRow,0)) -> 0 | G68: 0 | H68: =Calcs!$I$13 -> 73.51990625 | L68: =$G68*(L64-$K64) -> 0 | M68: 0 | N68: 0 | O68: 0 | P68: 0 | Q68: 0 | R68: 0 | AC68: ='Rate Table'!$O$8 -> 0 | AD68: ='Rate Table'!$O$9 -> 0 | AE68: ='Rate Table'!$O$10 -> 0 | AF68: ='Rate Table'!$O$11 -> 0.4 | AG68: ='Rate Table'!$O$12 -> 1 | AH68: ='Rate Table'!$O$13 -> 1 | AI68: ='Rate Table'!$O$14 -> 1 | AK68: 0 | AL68: 0 | AM68: 0 | AN68: 0 | AO68: 0 | AP68: 0 | AQ68: 0 | AR68: 0 | AS68: 0 | AT68: 0
D69: =D68+1 -> 5 | E69: 2020 | F69: =INDEX(ParticipantData,MATCH(C62,ParticipantNums,0),MATCH(E69,TopRow,0)) -> 0 | G69: 0 | H69: =Calcs!$I$14 -> 91.89988281 | M69: =$G69*(M64-$L64) -> 0 | N69: 0 | O69: 0 | P69: 0 | Q69: 0 | R69: 0 | AD69: ='Rate Table'!$O$8 -> 0 | AE69: ='Rate Table'!$O$9 -> 0 | AF69: ='Rate Table'!$O$10 -> 0 | AG69: ='Rate Table'!$O$11 -> 0.4 | AH69: ='Rate Table'!$O$12 -> 1 | AI69: ='Rate Table'!$O$13 -> 1 | AK69: 0 | AL69: 0 | AM69: 0 | AN69: 0 | AO69: 0 | AP69: 0 | AQ69: 0 | AR69: 0 | AS69: 0 | AT69: 0
D70: =D69+1 -> 6 | E70: 2021 | F70: =INDEX(ParticipantData,MATCH(C62,ParticipantNums,0),MATCH(E70,TopRow,0)) -> 0 | G70: 0 | H70: =Calcs!$I$15 -> 114.8748535 | N70: =$G70*(N64-$M64) -> 0 | O70: =$G70*(O64-$M64) -> 0 | P70: =$G70*(P64-$M64) -> 0 | Q70: =$G70*(Q64-$M64) -> 0 | R70: =$G70*(R64-$M64) -> 0 | AE70: ='Rate Table'!$O$8 -> 0 | AF70: ='Rate Table'!$O$9 -> 0 | AG70: ='Rate Table'!$O$10 -> 0 | AH70: ='Rate Table'!$O$11 -> 0.4 | AI70: ='Rate Table'!$O$12 -> 1 | AK70: 0 | AL70: 0 | AM70: 0 | AN70: 0 | AO70: 0 | AP70: 0 | AQ70: 0 | AR70: 0 | AS70: 0 | AT70: 0
D71: =D70+1 -> 7 | E71: 2022 | F71: =INDEX(ParticipantData,MATCH(C62,ParticipantNums,0),MATCH(E71,TopRow,0)) -> 0 | G71: 0 | H71: =Calcs!$I$16 -> 132.1060815 | O71: =$G71*(O64-$N64) -> 0 | P71: =$G71*(P64-$N64) -> 0 | Q71: =$G71*(Q64-$N64) -> 0 | R71: =$G71*(R64-$N64) -> 0 | AF71: ='Rate Table'!$O$8 -> 0 | AG71: ='Rate Table'!$O$9 -> 0 | AH71: ='Rate Table'!$O$10 -> 0 | AI71: ='Rate Table'!$O$11 -> 0.4 | AK71: 0 | AL71: 0 | AM71: 0 | AN71: 0 | AO71: 0 | AP71: 0 | AQ71: 0 | AR71: 0 | AS71: 0 | AT71: 0
D72: =D71+1 -> 8 | E72: 2023 | F72: =INDEX(ParticipantData,MATCH(C62,ParticipantNums,0),MATCH(E72,TopRow,0)) -> 0 | G72: 0 | H72: =Calcs!$I$17 -> 151.9219938 | P72: =$G72*(P64-$O64) -> 0 | Q72: =$G72*(Q64-$O64) -> 0 | R72: =$G72*(R64-$O64) -> 0 | AG72: ='Rate Table'!$O$8 -> 0 | AH72: ='Rate Table'!$O$9 -> 0 | AI72: ='Rate Table'!$O$10 -> 0 | AK72: 0 | AL72: 0 | AM72: 0 | AN72: 0 | AO72: 0 | AP72: 0 | AQ72: 0 | AR72: 0 | AS72: 0 | AT72: 0
D73: =D72+1 -> 9 | E73: 2024 | F73: =INDEX(ParticipantData,MATCH(C62,ParticipantNums,0),MATCH(E73,TopRow,0)) -> 0 | G73: 0 | H73: =Calcs!$I$18 -> 174.7102928 | Q73: =$G73*(Q64-$P64) -> 0 | R73: =$G73*(R64-$P64) -> 0 | AH73: ='Rate Table'!$O$8 -> 0 | AI73: ='Rate Table'!$O$9 -> 0 | AK73: 0 | AL73: 0 | AM73: 0 | AN73: 0 | AO73: 0 | AP73: 0 | AQ73: 0 | AR73: 0 | AS73: 0 | AT73: 0
D74: =D73+1 -> 10 | E74: 2025 | F74: =INDEX(ParticipantData,MATCH(C62,ParticipantNums,0),MATCH(E74,TopRow,0)) -> 0 | G74: 0 | H74: =Calcs!$I$19 -> 200.9168368 | R74: =$G74*(R64-$Q64) -> 0 | AI74: ='Rate Table'!$O$8 -> 0 | AK74: 0 | AL74: 0 | AM74: 0 | AN74: 0 | AO74: 0 | AP74: 0 | AQ74: 0 | AR74: 0 | AS74: 0 | AT74: 0
F75: =SUM(F65:F74) -> 0.2 | G75: =SUM(G65:G74) -> 4000 | H75: Earned | I75: =SUM(I65:I74) -> 33000 | J75: =SUM(J65:J74) -> 76890 | K75: 135263.7 | L75: 194079.625 | M75: 267599.5312 | N75: 359499.4141 | O75: 428424.3262 | P75: 507687.9751 | Q75: 598841.1714 | R75: 703667.3471
H76: Vested | I76: =SUM(AK65:AK74) -> 0 | J76: =SUM(AL65:AL74) -> 0 | K76: =SUM(AM65:AM74) -> 0 | L76: =SUM(AN65:AN74) -> 77631.85 | M76: =SUM(AO65:AO74) -> 267599.5312 | N76: =SUM(AP65:AP74) -> 359499.4141 | O76: =SUM(AQ65:AQ74) -> 428424.3262 | P76: =SUM(AR65:AR74) -> 507687.9751 | Q76: =SUM(AS65:AS74) -> 598841.1714 | R76: =SUM(AT65:AT74) -> 703667.3471
H78: Salary | I78: =VLOOKUP(C62,'Participant Awards'!$C$11:$H$20,5,FALSE) -> 275000 | J78: =I78*(1+CompGrowthRate) -> 283250 | K78: =J78*(1+CompGrowthRate) -> 291747.5 | L78: =K78*(1+CompGrowthRate) -> 300499.925 | M78: =L78*(1+CompGrowthRate) -> 309514.9227 | N78: =M78*(1+CompGrowthRate) -> 318800.3704 | O78: =N78*(1+CompGrowthRate) -> 328364.3815 | P78: =O78*(1+CompGrowthRate) -> 338215.313 | Q78: =P78*(1+CompGrowthRate) -> 348361.7724 | R78: =Q78*(1+CompGrowthRate) -> 358812.6256
H79: Bonus | I79: =I78*VLOOKUP(C62,'Participant Awards'!$C$11:$H$20,6,FALSE) -> 82500 | J79: =J78*VLOOKUP(C62,'Participant Awards'!$C$11:$H$20,6,FALSE) -> 84975 | K79: =K78*VLOOKUP(C62,'Participant Awards'!$C$11:$H$20,6,FALSE) -> 87524.25 | L79: =L78*VLOOKUP(C62,'Participant Awards'!$C$11:$H$20,6,FALSE) -> 90149.9775 | M79: =M78*VLOOKUP(C62,'Participant Awards'!$C$11:$H$20,6,FALSE) -> 92854.47682 | N79: =N78*VLOOKUP(C62,'Participant Awards'!$C$11:$H$20,6,FALSE) -> 95640.11113 | O79: =O78*VLOOKUP(C62,'Participant Awards'!$C$11:$H$20,6,FALSE) -> 98509.31446 | P79: =P78*VLOOKUP(C62,'Participant Awards'!$C$11:$H$20,6,FALSE) -> 101464.5939 | Q79: =Q78*VLOOKUP(C62,'Participant Awards'!$C$11:$H$20,6,FALSE) -> 104508.5317 | R79: =R78*VLOOKUP(C62,'Participant Awards'!$C$11:$H$20,6,FALSE) -> 107643.7877
H80: Total Comp | I80: =I78+I79 -> 357500 | J80: =J78+J79 -> 368225 | K80: 379271.75 | L80: 390649.9025 | M80: 402369.3996 | N80: 414440.4816 | O80: 426873.696 | P80: 439679.9069 | Q80: 452870.3041 | R80: 466456.4132
F82: Phantom Stock Value as % of Salary | I82: =IF(I78=0,0,I75/I78) -> 0.12 | J82: =IF(J78=0,0,J75/J78) -> 0.2714563107 | K82: 0.4636327646 | L82: 0.6458558184 | M82: 0.8645771547 | N82: 1.1276631 | O82: 1.304722285 | P82: 1.501079211 | Q82: 1.719020911 | R82: 1.961099741
C86: 3 | D86: =" "&IF(VLOOKUP(C86,'Participant Awards'!$C$11:$D$20,2,FALSE)=0,"",VLOOKUP(C86,'Participant Awards'!$C$11:$D$20,2,FALSE)) -> Jane Doe | F86: Phantom Stock | G86: Phantom Shares | H86: Share
D87: Year | E87: Cal Year | F87: Award | G87: Granted | H87: Price | I87: =EOYDate -> 2016-12-31 | J87: =DATE(YEAR(I87)+1,MONTH(I87),DAY(I87)) -> 2017-12-31 | K87: =DATE(YEAR(J87)+1,MONTH(J87),DAY(J87)) -> 2018-12-31 | L87: =DATE(YEAR(K87)+1,MONTH(K87),DAY(K87)) -> 2019-12-31 | M87: =DATE(YEAR(L87)+1,MONTH(L87),DAY(L87)) -> 2020-12-31 | N87: =DATE(YEAR(M87)+1,MONTH(M87),DAY(M87)) -> 2021-12-31 | O87: =DATE(YEAR(N87)+1,MONTH(N87),DAY(N87)) -> 2022-12-31 | P87: =DATE(YEAR(O87)+1,MONTH(O87),DAY(O87)) -> 2023-12-31 | Q87: =DATE(YEAR(P87)+1,MONTH(P87),DAY(P87)) -> 2024-12-31 | R87: =DATE(YEAR(Q87)+1,MONTH(Q87),DAY(Q87)) -> 2025-12-31
H88: =Calcs!$I$9 -> 25 | I88: =H89 -> 33.25 | J88: =H90 -> 44.2225 | K88: =H91 -> 58.815925 | L88: =H92 -> 73.51990625 | M88: =H93 -> 91.89988281 | N88: =H94 -> 114.8748535 | O88: =H95 -> 132.1060815 | P88: =H96 -> 151.9219938 | Q88: =H97 -> 174.7102928 | R88: =H98 -> 200.9168368 | Z88: Vesting Rates | AK88: Vested Value
D89: 1 | E89: ='Valuation Method'!$H$6+1 -> 2016 | F89: =INDEX(ParticipantData,MATCH(C86,ParticipantNums,0),MATCH($E89,TopRow,0)) -> 0.15 | G89: =PoolPercent*SharesNumber*F89 -> 3000 | H89: =Calcs!$I$10 -> 33.25 | I89: =$G89*(I88-$H88) -> 24750 | J89: 57667.5 | K89: 101447.775 | L89: 145559.7188 | M89: 200699.6484 | N89: 269624.5605 | O89: 321318.2446 | P89: 380765.9813 | Q89: 449130.8785 | R89: 527750.5103 | Z89: ='Rate Table'!$O$8 -> 0 | AA89: ='Rate Table'!$O$9 -> 0 | AB89: ='Rate Table'!$O$10 -> 0 | AC89: ='Rate Table'!$O$11 -> 0.4 | AD89: ='Rate Table'!$O$12 -> 1 | AE89: ='Rate Table'!$O$13 -> 1 | AF89: ='Rate Table'!$O$14 -> 1 | AG89: ='Rate Table'!$O$15 -> 1 | AH89: ='Rate Table'!$O$16 -> 1 | AI89: ='Rate Table'!$O$17 -> 1 | AK89: =I89*Z89 -> 0 | AL89: =J89*AA89 -> 0 | AM89: =K89*AB89 -> 0 | AN89: =L89*AC89 -> 58223.8875 | AO89: =M89*AD89 -> 200699.6484 | AP89: =N89*AE89 -> 269624.5605 | AQ89: =O89*AF89 -> 321318.2446 | AR89: =P89*AG89 -> 380765.9813 | AS89: =Q89*AH89 -> 449130.8785 | AT89: =R89*AI89 -> 527750.5103
D90: =D89+1 -> 2 | E90: =E89+1 -> 2017 | F90: =INDEX(ParticipantData,MATCH(C86,ParticipantNums,0),MATCH(E90,TopRow,0)) -> 0 | G90: 0 | H90: =Calcs!$I$11 -> 44.2225 | J90: =$G90*(J88-$I88) -> 0 | K90: 0 | L90: 0 | M90: 0 | N90: 0 | O90: 0 | P90: 0 | Q90: 0 | R90: 0 | AA90: ='Rate Table'!$O$8 -> 0 | AB90: ='Rate Table'!$O$9 -> 0 | AC90: ='Rate Table'!$O$10 -> 0 | AD90: ='Rate Table'!$O$11 -> 0.4 | AE90: ='Rate Table'!$O$12 -> 1 | AF90: ='Rate Table'!$O$13 -> 1 | AG90: ='Rate Table'!$O$14 -> 1 | AH90: ='Rate Table'!$O$15 -> 1 | AI90: ='Rate Table'!$O$16 -> 1 | AK90: =I90*Z90 -> 0 | AL90: 0 | AM90: 0 | AN90: 0 | AO90: 0 | AP90: 0 | AQ90: 0 | AR90: 0 | AS90: 0 | AT90: 0
D91: =D90+1 -> 3 | E91: 2018 | F91: =INDEX(ParticipantData,MATCH(C86,ParticipantNums,0),MATCH(E91,TopRow,0)) -> 0 | G91: 0 | H91: =Calcs!$I$12 -> 58.815925 | K91: =$G91*(K88-$J88) -> 0 | L91: 0 | M91: 0 | N91: 0 | O91: 0 | P91: 0 | Q91: 0 | R91: 0 | AB91: ='Rate Table'!$O$8 -> 0 | AC91: ='Rate Table'!$O$9 -> 0 | AD91: ='Rate Table'!$O$10 -> 0 | AE91: ='Rate Table'!$O$11 -> 0.4 | AF91: ='Rate Table'!$O$12 -> 1 | AG91: ='Rate Table'!$O$13 -> 1 | AH91: ='Rate Table'!$O$14 -> 1 | AI91: ='Rate Table'!$O$15 -> 1 | AK91: 0 | AL91: 0 | AM91: 0 | AN91: 0 | AO91: 0 | AP91: 0 | AQ91: 0 | AR91: 0 | AS91: 0 | AT91: 0
D92: =D91+1 -> 4 | E92: 2019 | F92: =INDEX(ParticipantData,MATCH(C86,ParticipantNums,0),MATCH(E92,TopRow,0)) -> 0 | G92: 0 | H92: =Calcs!$I$13 -> 73.51990625 | L92: =$G92*(L88-$K88) -> 0 | M92: 0 | N92: 0 | O92: 0 | P92: 0 | Q92: 0 | R92: 0 | AC92: ='Rate Table'!$O$8 -> 0 | AD92: ='Rate Table'!$O$9 -> 0 | AE92: ='Rate Table'!$O$10 -> 0 | AF92: ='Rate Table'!$O$11 -> 0.4 | AG92: ='Rate Table'!$O$12 -> 1 | AH92: ='Rate Table'!$O$13 -> 1 | AI92: ='Rate Table'!$O$14 -> 1 | AK92: 0 | AL92: 0 | AM92: 0 | AN92: 0 | AO92: 0 | AP92: 0 | AQ92: 0 | AR92: 0 | AS92: 0 | AT92: 0
D93: =D92+1 -> 5 | E93: 2020 | F93: =INDEX(ParticipantData,MATCH(C86,ParticipantNums,0),MATCH(E93,TopRow,0)) -> 0 | G93: 0 | H93: =Calcs!$I$14 -> 91.89988281 | M93: =$G93*(M88-$L88) -> 0 | N93: 0 | O93: 0 | P93: 0 | Q93: 0 | R93: 0 | AD93: ='Rate Table'!$O$8 -> 0 | AE93: ='Rate Table'!$O$9 -> 0 | AF93: ='Rate Table'!$O$10 -> 0 | AG93: ='Rate Table'!$O$11 -> 0.4 | AH93: ='Rate Table'!$O$12 -> 1 | AI93: ='Rate Table'!$O$13 -> 1 | AK93: 0 | AL93: 0 | AM93: 0 | AN93: 0 | AO93: 0 | AP93: 0 | AQ93: 0 | AR93: 0 | AS93: 0 | AT93: 0
D94: =D93+1 -> 6 | E94: 2021 | F94: =INDEX(ParticipantData,MATCH(C86,ParticipantNums,0),MATCH(E94,TopRow,0)) -> 0 | G94: 0 | H94: =Calcs!$I$15 -> 114.8748535 | N94: =$G94*(N88-$M88) -> 0 | O94: =$G94*(O88-$M88) -> 0 | P94: =$G94*(P88-$M88) -> 0 | Q94: =$G94*(Q88-$M88) -> 0 | R94: =$G94*(R88-$M88) -> 0 | AE94: ='Rate Table'!$O$8 -> 0 | AF94: ='Rate Table'!$O$9 -> 0 | AG94: ='Rate Table'!$O$10 -> 0 | AH94: ='Rate Table'!$O$11 -> 0.4 | AI94: ='Rate Table'!$O$12 -> 1 | AK94: 0 | AL94: 0 | AM94: 0 | AN94: 0 | AO94: 0 | AP94: 0 | AQ94: 0 | AR94: 0 | AS94: 0 | AT94: 0
D95: =D94+1 -> 7 | E95: 2022 | F95: =INDEX(ParticipantData,MATCH(C86,ParticipantNums,0),MATCH(E95,TopRow,0)) -> 0 | G95: 0 | H95: =Calcs!$I$16 -> 132.1060815 | O95: =$G95*(O88-$N88) -> 0 | P95: =$G95*(P88-$N88) -> 0 | Q95: =$G95*(Q88-$N88) -> 0 | R95: =$G95*(R88-$N88) -> 0 | AF95: ='Rate Table'!$O$8 -> 0 | AG95: ='Rate Table'!$O$9 -> 0 | AH95: ='Rate Table'!$O$10 -> 0 | AI95: ='Rate Table'!$O$11 -> 0.4 | AK95: 0 | AL95: 0 | AM95: 0 | AN95: 0 | AO95: 0 | AP95: 0 | AQ95: 0 | AR95: 0 | AS95: 0 | AT95: 0
D96: =D95+1 -> 8 | E96: 2023 | F96: =INDEX(ParticipantData,MATCH(C86,ParticipantNums,0),MATCH(E96,TopRow,0)) -> 0 | G96: 0 | H96: =Calcs!$I$17 -> 151.9219938 | P96: =$G96*(P88-$O88) -> 0 | Q96: =$G96*(Q88-$O88) -> 0 | R96: =$G96*(R88-$O88) -> 0 | AG96: ='Rate Table'!$O$8 -> 0 | AH96: ='Rate Table'!$O$9 -> 0 | AI96: ='Rate Table'!$O$10 -> 0 | AK96: 0 | AL96: 0 | AM96: 0 | AN96: 0 | AO96: 0 | AP96: 0 | AQ96: 0 | AR96: 0 | AS96: 0 | AT96: 0
D97: =D96+1 -> 9 | E97: 2024 | F97: =INDEX(ParticipantData,MATCH(C86,ParticipantNums,0),MATCH(E97,TopRow,0)) -> 0 | G97: 0 | H97: =Calcs!$I$18 -> 174.7102928 | Q97: =$G97*(Q88-$P88) -> 0 | R97: =$G97*(R88-$P88) -> 0 | AH97: ='Rate Table'!$O$8 -> 0 | AI97: ='Rate Table'!$O$9 -> 0 | AK97: 0 | AL97: 0 | AM97: 0 | AN97: 0 | AO97: 0 | AP97: 0 | AQ97: 0 | AR97: 0 | AS97: 0 | AT97: 0
D98: =D97+1 -> 10 | E98: 2025 | F98: =INDEX(ParticipantData,MATCH(C86,ParticipantNums,0),MATCH(E98,TopRow,0)) -> 0 | G98: 0 | H98: =Calcs!$I$19 -> 200.9168368 | R98: =$G98*(R88-$Q88) -> 0 | AI98: ='Rate Table'!$O$8 -> 0 | AK98: 0 | AL98: 0 | AM98: 0 | AN98: 0 | AO98: 0 | AP98: 0 | AQ98: 0 | AR98: 0 | AS98: 0 | AT98: 0
F99: =SUM(F89:F98) -> 0.15 | G99: =SUM(G89:G98) -> 3000 | H99: Earned | I99: =SUM(I89:I98) -> 24750 | J99: =SUM(J89:J98) -> 57667.5 | K99: 101447.775 | L99: 145559.7188 | M99: 200699.6484 | N99: 269624.5605 | O99: 321318.2446 | P99: 380765.9813 | Q99: 449130.8785 | R99: 527750.5103
H100: Vested | I100: =SUM(AK89:AK98) -> 0 | J100: =SUM(AL89:AL98) -> 0 | K100: =SUM(AM89:AM98) -> 0 | L100: =SUM(AN89:AN98) -> 58223.8875 | M100: =SUM(AO89:AO98) -> 200699.6484 | N100: =SUM(AP89:AP98) -> 269624.5605 | O100: =SUM(AQ89:AQ98) -> 321318.2446 | P100: =SUM(AR89:AR98) -> 380765.9813 | Q100: =SUM(AS89:AS98) -> 449130.8785 | R100: =SUM(AT89:AT98) -> 527750.5103
H102: Salary | I102: =VLOOKUP(C86,'Participant Awards'!$C$11:$H$20,5,FALSE) -> 250000 | J102: =I102*(1+CompGrowthRate) -> 257500 | K102: =J102*(1+CompGrowthRate) -> 265225 | L102: =K102*(1+CompGrowthRate) -> 273181.75 | M102: =L102*(1+CompGrowthRate) -> 281377.2025 | N102: =M102*(1+CompGrowthRate) -> 289818.5186 | O102: =N102*(1+CompGrowthRate) -> 298513.0741 | P102: =O102*(1+CompGrowthRate) -> 307468.4664 | Q102: =P102*(1+CompGrowthRate) -> 316692.5203 | R102: =Q102*(1+CompGrowthRate) -> 326193.296
H103: Bonus | I103: =I102*VLOOKUP(C86,'Participant Awards'!$C$11:$H$20,6,FALSE) -> 62500 | J103: =J102*VLOOKUP(C86,'Participant Awards'!$C$11:$H$20,6,FALSE) -> 64375 | K103: =K102*VLOOKUP(C86,'Participant Awards'!$C$11:$H$20,6,FALSE) -> 66306.25 | L103: =L102*VLOOKUP(C86,'Participant Awards'!$C$11:$H$20,6,FALSE) -> 68295.4375 | M103: =M102*VLOOKUP(C86,'Participant Awards'!$C$11:$H$20,6,FALSE) -> 70344.30063 | N103: =N102*VLOOKUP(C86,'Participant Awards'!$C$11:$H$20,6,FALSE) -> 72454.62964 | O103: =O102*VLOOKUP(C86,'Participant Awards'!$C$11:$H$20,6,FALSE) -> 74628.26853 | P103: =P102*VLOOKUP(C86,'Participant Awards'!$C$11:$H$20,6,FALSE) -> 76867.11659 | Q103: =Q102*VLOOKUP(C86,'Participant Awards'!$C$11:$H$20,6,FALSE) -> 79173.13009 | R103: =R102*VLOOKUP(C86,'Participant Awards'!$C$11:$H$20,6,FALSE) -> 81548.32399
H104: Total Comp | I104: =I102+I103 -> 312500 | J104: =J102+J103 -> 321875 | K104: 331531.25 | L104: 341477.1875 | M104: 351721.5031 | N104: 362273.1482 | O104: 373141.3427 | P104: 384335.5829 | Q104: 395865.6504 | R104: 407741.6199
F106: Phantom Stock Value as % of Salary | I106: =IF(I102=0,0,I99/I102) -> 0.099 | J106: =IF(J102=0,0,J99/J102) -> 0.2239514563 | K106: 0.3824970308 | L106: 0.5328310502 | M106: 0.7132761526 | N106: 0.9303220577 | O106: 1.076395885 | P106: 1.238390349 | Q106: 1.418192252 | R106: 1.617907286
C110: 4 | D110: =" "&IF(VLOOKUP(C110,'Participant Awards'!$C$11:$D$20,2,FALSE)=0,"",VLOOKUP(C110,'Participant Awards'!$C$11:$D$20,2,FALSE)) -> Nancy Jenkins | F110: Phantom Stock | G110: Phantom Shares | H110: Share
D111: Year | E111: Cal Year | F111: Award | G111: Granted | H111: Price | I111: =EOYDate -> 2016-12-31 | J111: =DATE(YEAR(I111)+1,MONTH(I111),DAY(I111)) -> 2017-12-31 | K111: =DATE(YEAR(J111)+1,MONTH(J111),DAY(J111)) -> 2018-12-31 | L111: =DATE(YEAR(K111)+1,MONTH(K111),DAY(K111)) -> 2019-12-31 | M111: =DATE(YEAR(L111)+1,MONTH(L111),DAY(L111)) -> 2020-12-31 | N111: =DATE(YEAR(M111)+1,MONTH(M111),DAY(M111)) -> 2021-12-31 | O111: =DATE(YEAR(N111)+1,MONTH(N111),DAY(N111)) -> 2022-12-31 | P111: =DATE(YEAR(O111)+1,MONTH(O111),DAY(O111)) -> 2023-12-31 | Q111: =DATE(YEAR(P111)+1,MONTH(P111),DAY(P111)) -> 2024-12-31 | R111: =DATE(YEAR(Q111)+1,MONTH(Q111),DAY(Q111)) -> 2025-12-31
H112: =Calcs!$I$9 -> 25 | I112: =H113 -> 33.25 | J112: =H114 -> 44.2225 | K112: =H115 -> 58.815925 | L112: =H116 -> 73.51990625 | M112: =H117 -> 91.89988281 | N112: =H118 -> 114.8748535 | O112: =H119 -> 132.1060815 | P112: =H120 -> 151.9219938 | Q112: =H121 -> 174.7102928 | R112: =H122 -> 200.9168368 | Z112: Vesting Rates | AK112: Vested Value
D113: 1 | E113: ='Valuation Method'!$H$6+1 -> 2016 | F113: =INDEX(ParticipantData,MATCH(C110,ParticipantNums,0),MATCH($E113,TopRow,0)) -> 0 | G113: =PoolPercent*SharesNumber*F113 -> 0 | H113: =Calcs!$I$10 -> 33.25 | I113: =$G113*(I112-$H112) -> 0 | J113: 0 | K113: 0 | L113: 0 | M113: 0 | N113: 0 | O113: 0 | P113: 0 | Q113: 0 | R113: 0 | Z113: ='Rate Table'!$O$8 -> 0 | AA113: ='Rate Table'!$O$9 -> 0 | AB113: ='Rate Table'!$O$10 -> 0 | AC113: ='Rate Table'!$O$11 -> 0.4 | AD113: ='Rate Table'!$O$12 -> 1 | AE113: ='Rate Table'!$O$13 -> 1 | AF113: ='Rate Table'!$O$14 -> 1 | AG113: ='Rate Table'!$O$15 -> 1 | AH113: ='Rate Table'!$O$16 -> 1 | AI113: ='Rate Table'!$O$17 -> 1 | AK113: =I113*Z113 -> 0 | AL113: =J113*AA113 -> 0 | AM113: =K113*AB113 -> 0 | AN113: =L113*AC113 -> 0 | AO113: =M113*AD113 -> 0 | AP113: =N113*AE113 -> 0 | AQ113: =O113*AF113 -> 0 | AR113: =P113*AG113 -> 0 | AS113: =Q113*AH113 -> 0 | AT113: =R113*AI113 -> 0
D114: =D113+1 -> 2 | E114: =E113+1 -> 2017 | F114: =INDEX(ParticipantData,MATCH(C110,ParticipantNums,0),MATCH(E114,TopRow,0)) -> 0 | G114: 0 | H114: =Calcs!$I$11 -> 44.2225 | J114: =$G114*(J112-$I112) -> 0 | K114: 0 | L114: 0 | M114: 0 | N114: 0 | O114: 0 | P114: 0 | Q114: 0 | R114: 0 | AA114: ='Rate Table'!$O$8 -> 0 | AB114: ='Rate Table'!$O$9 -> 0 | AC114: ='Rate Table'!$O$10 -> 0 | AD114: ='Rate Table'!$O$11 -> 0.4 | AE114: ='Rate Table'!$O$12 -> 1 | AF114: ='Rate Table'!$O$13 -> 1 | AG114: ='Rate Table'!$O$14 -> 1 | AH114: ='Rate Table'!$O$15 -> 1 | AI114: ='Rate Table'!$O$16 -> 1 | AK114: =I114*Z114 -> 0 | AL114: 0 | AM114: 0 | AN114: 0 | AO114: 0 | AP114: 0 | AQ114: 0 | AR114: 0 | AS114: 0 | AT114: 0
D115: =D114+1 -> 3 | E115: 2018 | F115: =INDEX(ParticipantData,MATCH(C110,ParticipantNums,0),MATCH(E115,TopRow,0)) -> 0.15 | G115: 3000 | H115: =Calcs!$I$12 -> 58.815925 | K115: =$G115*(K112-$J112) -> 43780.275 | L115: 87892.21875 | M115: 143032.1484 | N115: 211957.0605 | O115: 263650.7446 | P115: 323098.4813 | Q115: 391463.3785 | R115: 470083.0103 | AB115: ='Rate Table'!$O$8 -> 0 | AC115: ='Rate Table'!$O$9 -> 0 | AD115: ='Rate Table'!$O$10 -> 0 | AE115: ='Rate Table'!$O$11 -> 0.4 | AF115: ='Rate Table'!$O$12 -> 1 | AG115: ='Rate Table'!$O$13 -> 1 | AH115: ='Rate Table'!$O$14 -> 1 | AI115: ='Rate Table'!$O$15 -> 1 | AK115: 0 | AL115: 0 | AM115: 0 | AN115: 0 | AO115: 0 | AP115: 84782.82422 | AQ115: 263650.7446 | AR115: 323098.4813 | AS115: 391463.3785 | AT115: 470083.0103
D116: =D115+1 -> 4 | E116: 2019 | F116: =INDEX(ParticipantData,MATCH(C110,ParticipantNums,0),MATCH(E116,TopRow,0)) -> 0 | G116: 0 | H116: =Calcs!$I$13 -> 73.51990625 | L116: =$G116*(L112-$K112) -> 0 | M116: 0 | N116: 0 | O116: 0 | P116: 0 | Q116: 0 | R116: 0 | AC116: ='Rate Table'!$O$8 -> 0 | AD116: ='Rate Table'!$O$9 -> 0 | AE116: ='Rate Table'!$O$10 -> 0 | AF116: ='Rate Table'!$O$11 -> 0.4 | AG116: ='Rate Table'!$O$12 -> 1 | AH116: ='Rate Table'!$O$13 -> 1 | AI116: ='Rate Table'!$O$14 -> 1 | AK116: 0 | AL116: 0 | AM116: 0 | AN116: 0 | AO116: 0 | AP116: 0 | AQ116: 0 | AR116: 0 | AS116: 0 | AT116: 0
D117: =D116+1 -> 5 | E117: 2020 | F117: =INDEX(ParticipantData,MATCH(C110,ParticipantNums,0),MATCH(E117,TopRow,0)) -> 0 | G117: 0 | H117: =Calcs!$I$14 -> 91.89988281 | M117: =$G117*(M112-$L112) -> 0 | N117: 0 | O117: 0 | P117: 0 | Q117: 0 | R117: 0 | AD117: ='Rate Table'!$O$8 -> 0 | AE117: ='Rate Table'!$O$9 -> 0 | AF117: ='Rate Table'!$O$10 -> 0 | AG117: ='Rate Table'!$O$11 -> 0.4 | AH117: ='Rate Table'!$O$12 -> 1 | AI117: ='Rate Table'!$O$13 -> 1 | AK117: 0 | AL117: 0 | AM117: 0 | AN117: 0 | AO117: 0 | AP117: 0 | AQ117: 0 | AR117: 0 | AS117: 0 | AT117: 0
D118: =D117+1 -> 6 | E118: 2021 | F118: =INDEX(ParticipantData,MATCH(C110,ParticipantNums,0),MATCH(E118,TopRow,0)) -> 0 | G118: 0 | H118: =Calcs!$I$15 -> 114.8748535 | N118: =$G118*(N112-$M112) -> 0 | O118: =$G118*(O112-$M112) -> 0 | P118: =$G118*(P112-$M112) -> 0 | Q118: =$G118*(Q112-$M112) -> 0 | R118: =$G118*(R112-$M112) -> 0 | AE118: ='Rate Table'!$O$8 -> 0 | AF118: ='Rate Table'!$O$9 -> 0 | AG118: ='Rate Table'!$O$10 -> 0 | AH118: ='Rate Table'!$O$11 -> 0.4 | AI118: ='Rate Table'!$O$12 -> 1 | AK118: 0 | AL118: 0 | AM118: 0 | AN118: 0 | AO118: 0 | AP118: 0 | AQ118: 0 | AR118: 0 | AS118: 0 | AT118: 0
D119: =D118+1 -> 7 | E119: 2022 | F119: =INDEX(ParticipantData,MATCH(C110,ParticipantNums,0),MATCH(E119,TopRow,0)) -> 0 | G119: 0 | H119: =Calcs!$I$16 -> 132.1060815 | O119: =$G119*(O112-$N112) -> 0 | P119: =$G119*(P112-$N112) -> 0 | Q119: =$G119*(Q112-$N112) -> 0 | R119: =$G119*(R112-$N112) -> 0 | AF119: ='Rate Table'!$O$8 -> 0 | AG119: ='Rate Table'!$O$9 -> 0 | AH119: ='Rate Table'!$O$10 -> 0 | AI119: ='Rate Table'!$O$11 -> 0.4 | AK119: 0 | AL119: 0 | AM119: 0 | AN119: 0 | AO119: 0 | AP119: 0 | AQ119: 0 | AR119: 0 | AS119: 0 | AT119: 0
D120: =D119+1 -> 8 | E120: 2023 | F120: =INDEX(ParticipantData,MATCH(C110,ParticipantNums,0),MATCH(E120,TopRow,0)) -> 0 | G120: 0 | H120: =Calcs!$I$17 -> 151.9219938 | P120: =$G120*(P112-$O112) -> 0 | Q120: =$G120*(Q112-$O112) -> 0 | R120: =$G120*(R112-$O112) -> 0 | AG120: ='Rate Table'!$O$8 -> 0 | AH120: ='Rate Table'!$O$9 -> 0 | AI120: ='Rate Table'!$O$10 -> 0 | AK120: 0 | AL120: 0 | AM120: 0 | AN120: 0 | AO120: 0 | AP120: 0 | AQ120: 0 | AR120: 0 | AS120: 0 | AT120: 0
D121: =D120+1 -> 9 | E121: 2024 | F121: =INDEX(ParticipantData,MATCH(C110,ParticipantNums,0),MATCH(E121,TopRow,0)) -> 0 | G121: 0 | H121: =Calcs!$I$18 -> 174.7102928 | Q121: =$G121*(Q112-$P112) -> 0 | R121: =$G121*(R112-$P112) -> 0 | AH121: ='Rate Table'!$O$8 -> 0 | AI121: ='Rate Table'!$O$9 -> 0 | AK121: 0 | AL121: 0 | AM121: 0 | AN121: 0 | AO121: 0 | AP121: 0 | AQ121: 0 | AR121: 0 | AS121: 0 | AT121: 0
D122: =D121+1 -> 10 | E122: 2025 | F122: =INDEX(ParticipantData,MATCH(C110,ParticipantNums,0),MATCH(E122,TopRow,0)) -> 0 | G122: 0 | H122: =Calcs!$I$19 -> 200.9168368 | R122: =$G122*(R112-$Q112) -> 0 | AI122: ='Rate Table'!$O$8 -> 0 | AK122: 0 | AL122: 0 | AM122: 0 | AN122: 0 | AO122: 0 | AP122: 0 | AQ122: 0 | AR122: 0 | AS122: 0 | AT122: 0
F123: =SUM(F113:F122) -> 0.15 | G123: =SUM(G113:G122) -> 3000 | H123: Earned | I123: =SUM(I113:I122) -> 0 | J123: =SUM(J113:J122) -> 0 | K123: 43780.275 | L123: 87892.21875 | M123: 143032.1484 | N123: 211957.0605 | O123: 263650.7446 | P123: 323098.4813 | Q123: 391463.3785 | R123: 470083.0103
H124: Vested | I124: =SUM(AK113:AK122) -> 0 | J124: =SUM(AL113:AL122) -> 0 | K124: =SUM(AM113:AM122) -> 0 | L124: =SUM(AN113:AN122) -> 0 | M124: =SUM(AO113:AO122) -> 0 | N124: =SUM(AP113:AP122) -> 84782.82422 | O124: =SUM(AQ113:AQ122) -> 263650.7446 | P124: =SUM(AR113:AR122) -> 323098.4813 | Q124: =SUM(AS113:AS122) -> 391463.3785 | R124: =SUM(AT113:AT122) -> 470083.0103
H126: Salary | I126: =VLOOKUP(C110,'Participant Awards'!$C$11:$H$20,5,FALSE) -> 250000 | J126: =I126*(1+CompGrowthRate) -> 257500 | K126: =J126*(1+CompGrowthRate) -> 265225 | L126: =K126*(1+CompGrowthRate) -> 273181.75 | M126: =L126*(1+CompGrowthRate) -> 281377.2025 | N126: =M126*(1+CompGrowthRate) -> 289818.5186 | O126: =N126*(1+CompGrowthRate) -> 298513.0741 | P126: =O126*(1+CompGrowthRate) -> 307468.4664 | Q126: =P126*(1+CompGrowthRate) -> 316692.5203 | R126: =Q126*(1+CompGrowthRate) -> 326193.296
H127: Bonus | I127: =I126*VLOOKUP(C110,'Participant Awards'!$C$11:$H$20,6,FALSE) -> 62500 | J127: =J126*VLOOKUP(C110,'Participant Awards'!$C$11:$H$20,6,FALSE) -> 64375 | K127: =K126*VLOOKUP(C110,'Participant Awards'!$C$11:$H$20,6,FALSE) -> 66306.25 | L127: =L126*VLOOKUP(C110,'Participant Awards'!$C$11:$H$20,6,FALSE) -> 68295.4375 | M127: =M126*VLOOKUP(C110,'Participant Awards'!$C$11:$H$20,6,FALSE) -> 70344.30063 | N127: =N126*VLOOKUP(C110,'Participant Awards'!$C$11:$H$20,6,FALSE) -> 72454.62964 | O127: =O126*VLOOKUP(C110,'Participant Awards'!$C$11:$H$20,6,FALSE) -> 74628.26853 | P127: =P126*VLOOKUP(C110,'Participant Awards'!$C$11:$H$20,6,FALSE) -> 76867.11659 | Q127: =Q126*VLOOKUP(C110,'Participant Awards'!$C$11:$H$20,6,FALSE) -> 79173.13009 | R127: =R126*VLOOKUP(C110,'Participant Awards'!$C$11:$H$20,6,FALSE) -> 81548.32399
H128: Total Comp | I128: =I126+I127 -> 312500 | J128: =J126+J127 -> 321875 | K128: 331531.25 | L128: 341477.1875 | M128: 351721.5031 | N128: 362273.1482 | O128: 373141.3427 | P128: 384335.5829 | Q128: 395865.6504 | R128: 407741.6199
F130: Phantom Stock Value as % of Salary | I130: =IF(I126=0,0,I123/I126) -> 0 | J130: =IF(J126=0,0,J123/J126) -> 0 | K130: 0.1650684325 | L130: 0.3217353236 | M130: 0.5083288453 | N130: 0.7313440894 | O130: 0.8832133916 | P130: 1.05083453 | Q130: 1.236099224 | R130: 1.441117939
C134: 5 | D134: =" "&IF(VLOOKUP(C134,'Participant Awards'!$C$11:$D$20,2,FALSE)=0,"",VLOOKUP(C134,'Participant Awards'!$C$11:$D$20,2,FALSE)) ->  | F134: Phantom Stock | G134: Phantom Shares | H134: Share
D135: Year | E135: Cal Year | F135: Award | G135: Granted | H135: Price | I135: =EOYDate -> 2016-12-31 | J135: =DATE(YEAR(I135)+1,MONTH(I135),DAY(I135)) -> 2017-12-31 | K135: =DATE(YEAR(J135)+1,MONTH(J135),DAY(J135)) -> 2018-12-31 | L135: =DATE(YEAR(K135)+1,MONTH(K135),DAY(K135)) -> 2019-12-31 | M135: =DATE(YEAR(L135)+1,MONTH(L135),DAY(L135)) -> 2020-12-31 | N135: =DATE(YEAR(M135)+1,MONTH(M135),DAY(M135)) -> 2021-12-31 | O135: =DATE(YEAR(N135)+1,MONTH(N135),DAY(N135)) -> 2022-12-31 | P135: =DATE(YEAR(O135)+1,MONTH(O135),DAY(O135)) -> 2023-12-31 | Q135: =DATE(YEAR(P135)+1,MONTH(P135),DAY(P135)) -> 2024-12-31 | R135: =DATE(YEAR(Q135)+1,MONTH(Q135),DAY(Q135)) -> 2025-12-31
H136: =Calcs!$I$9 -> 25 | I136: =H137 -> 33.25 | J136: =H138 -> 44.2225 | K136: =H139 -> 58.815925 | L136: =H140 -> 73.51990625 | M136: =H141 -> 91.89988281 | N136: =H142 -> 114.8748535 | O136: =H143 -> 132.1060815 | P136: =H144 -> 151.9219938 | Q136: =H145 -> 174.7102928 | R136: =H146 -> 200.9168368 | Z136: Vesting Rates | AK136: Vested Value
D137: 1 | E137: ='Valuation Method'!$H$6+1 -> 2016 | F137: =INDEX(ParticipantData,MATCH(C134,ParticipantNums,0),MATCH($E137,TopRow,0)) -> 0 | G137: =PoolPercent*SharesNumber*F137 -> 0 | H137: =Calcs!$I$10 -> 33.25 | I137: =$G137*(I136-$H136) -> 0 | J137: 0 | K137: 0 | L137: 0 | M137: 0 | N137: 0 | O137: 0 | P137: 0 | Q137: 0 | R137: 0 | Z137: ='Rate Table'!$O$8 -> 0 | AA137: ='Rate Table'!$O$9 -> 0 | AB137: ='Rate Table'!$O$10 -> 0 | AC137: ='Rate Table'!$O$11 -> 0.4 | AD137: ='Rate Table'!$O$12 -> 1 | AE137: ='Rate Table'!$O$13 -> 1 | AF137: ='Rate Table'!$O$14 -> 1 | AG137: ='Rate Table'!$O$15 -> 1 | AH137: ='Rate Table'!$O$16 -> 1 | AI137: ='Rate Table'!$O$17 -> 1 | AK137: =I137*Z137 -> 0 | AL137: =J137*AA137 -> 0 | AM137: =K137*AB137 -> 0 | AN137: =L137*AC137 -> 0 | AO137: =M137*AD137 -> 0 | AP137: =N137*AE137 -> 0 | AQ137: =O137*AF137 -> 0 | AR137: =P137*AG137 -> 0 | AS137: =Q137*AH137 -> 0 | AT137: =R137*AI137 -> 0
D138: =D137+1 -> 2 | E138: =E137+1 -> 2017 | F138: =INDEX(ParticipantData,MATCH(C134,ParticipantNums,0),MATCH(E138,TopRow,0)) -> 0 | G138: 0 | H138: =Calcs!$I$11 -> 44.2225 | J138: =$G138*(J136-$I136) -> 0 | K138: 0 | L138: 0 | M138: 0 | N138: 0 | O138: 0 | P138: 0 | Q138: 0 | R138: 0 | AA138: ='Rate Table'!$O$8 -> 0 | AB138: ='Rate Table'!$O$9 -> 0 | AC138: ='Rate Table'!$O$10 -> 0 | AD138: ='Rate Table'!$O$11 -> 0.4 | AE138: ='Rate Table'!$O$12 -> 1 | AF138: ='Rate Table'!$O$13 -> 1 | AG138: ='Rate Table'!$O$14 -> 1 | AH138: ='Rate Table'!$O$15 -> 1 | AI138: ='Rate Table'!$O$16 -> 1 | AK138: =I138*Z138 -> 0 | AL138: 0 | AM138: 0 | AN138: 0 | AO138: 0 | AP138: 0 | AQ138: 0 | AR138: 0 | AS138: 0 | AT138: 0
D139: =D138+1 -> 3 | E139: 2018 | F139: =INDEX(ParticipantData,MATCH(C134,ParticipantNums,0),MATCH(E139,TopRow,0)) -> 0 | G139: 0 | H139: =Calcs!$I$12 -> 58.815925 | K139: =$G139*(K136-$J136) -> 0 | L139: 0 | M139: 0 | N139: 0 | O139: 0 | P139: 0 | Q139: 0 | R139: 0 | AB139: ='Rate Table'!$O$8 -> 0 | AC139: ='Rate Table'!$O$9 -> 0 | AD139: ='Rate Table'!$O$10 -> 0 | AE139: ='Rate Table'!$O$11 -> 0.4 | AF139: ='Rate Table'!$O$12 -> 1 | AG139: ='Rate Table'!$O$13 -> 1 | AH139: ='Rate Table'!$O$14 -> 1 | AI139: ='Rate Table'!$O$15 -> 1 | AK139: 0 | AL139: 0 | AM139: 0 | AN139: 0 | AO139: 0 | AP139: 0 | AQ139: 0 | AR139: 0 | AS139: 0 | AT139: 0
D140: =D139+1 -> 4 | E140: 2019 | F140: =INDEX(ParticipantData,MATCH(C134,ParticipantNums,0),MATCH(E140,TopRow,0)) -> 0 | G140: 0 | H140: =Calcs!$I$13 -> 73.51990625 | L140: =$G140*(L136-$K136) -> 0 | M140: 0 | N140: 0 | O140: 0 | P140: 0 | Q140: 0 | R140: 0 | AC140: ='Rate Table'!$O$8 -> 0 | AD140: ='Rate Table'!$O$9 -> 0 | AE140: ='Rate Table'!$O$10 -> 0 | AF140: ='Rate Table'!$O$11 -> 0.4 | AG140: ='Rate Table'!$O$12 -> 1 | AH140: ='Rate Table'!$O$13 -> 1 | AI140: ='Rate Table'!$O$14 -> 1 | AK140: 0 | AL140: 0 | AM140: 0 | AN140: 0 | AO140: 0 | AP140: 0 | AQ140: 0 | AR140: 0 | AS140: 0 | AT140: 0
D141: =D140+1 -> 5 | E141: 2020 | F141: =INDEX(ParticipantData,MATCH(C134,ParticipantNums,0),MATCH(E141,TopRow,0)) -> 0 | G141: 0 | H141: =Calcs!$I$14 -> 91.89988281 | M141: =$G141*(M136-$L136) -> 0 | N141: 0 | O141: 0 | P141: 0 | Q141: 0 | R141: 0 | AD141: ='Rate Table'!$O$8 -> 0 | AE141: ='Rate Table'!$O$9 -> 0 | AF141: ='Rate Table'!$O$10 -> 0 | AG141: ='Rate Table'!$O$11 -> 0.4 | AH141: ='Rate Table'!$O$12 -> 1 | AI141: ='Rate Table'!$O$13 -> 1 | AK141: 0 | AL141: 0 | AM141: 0 | AN141: 0 | AO141: 0 | AP141: 0 | AQ141: 0 | AR141: 0 | AS141: 0 | AT141: 0
D142: =D141+1 -> 6 | E142: 2021 | F142: =INDEX(ParticipantData,MATCH(C134,ParticipantNums,0),MATCH(E142,TopRow,0)) -> 0 | G142: 0 | H142: =Calcs!$I$15 -> 114.8748535 | N142: =$G142*(N136-$M136) -> 0 | O142: =$G142*(O136-$M136) -> 0 | P142: =$G142*(P136-$M136) -> 0 | Q142: =$G142*(Q136-$M136) -> 0 | R142: =$G142*(R136-$M136) -> 0 | AE142: ='Rate Table'!$O$8 -> 0 | AF142: ='Rate Table'!$O$9 -> 0 | AG142: ='Rate Table'!$O$10 -> 0 | AH142: ='Rate Table'!$O$11 -> 0.4 | AI142: ='Rate Table'!$O$12 -> 1 | AK142: 0 | AL142: 0 | AM142: 0 | AN142: 0 | AO142: 0 | AP142: 0 | AQ142: 0 | AR142: 0 | AS142: 0 | AT142: 0
D143: =D142+1 -> 7 | E143: 2022 | F143: =INDEX(ParticipantData,MATCH(C134,ParticipantNums,0),MATCH(E143,TopRow,0)) -> 0 | G143: 0 | H143: =Calcs!$I$16 -> 132.1060815 | O143: =$G143*(O136-$N136) -> 0 | P143: =$G143*(P136-$N136) -> 0 | Q143: =$G143*(Q136-$N136) -> 0 | R143: =$G143*(R136-$N136) -> 0 | AF143: ='Rate Table'!$O$8 -> 0 | AG143: ='Rate Table'!$O$9 -> 0 | AH143: ='Rate Table'!$O$10 -> 0 | AI143: ='Rate Table'!$O$11 -> 0.4 | AK143: 0 | AL143: 0 | AM143: 0 | AN143: 0 | AO143: 0 | AP143: 0 | AQ143: 0 | AR143: 0 | AS143: 0 | AT143: 0
D144: =D143+1 -> 8 | E144: 2023 | F144: =INDEX(ParticipantData,MATCH(C134,ParticipantNums,0),MATCH(E144,TopRow,0)) -> 0 | G144: 0 | H144: =Calcs!$I$17 -> 151.9219938 | P144: =$G144*(P136-$O136) -> 0 | Q144: =$G144*(Q136-$O136) -> 0 | R144: =$G144*(R136-$O136) -> 0 | AG144: ='Rate Table'!$O$8 -> 0 | AH144: ='Rate Table'!$O$9 -> 0 | AI144: ='Rate Table'!$O$10 -> 0 | AK144: 0 | AL144: 0 | AM144: 0 | AN144: 0 | AO144: 0 | AP144: 0 | AQ144: 0 | AR144: 0 | AS144: 0 | AT144: 0
D145: =D144+1 -> 9 | E145: 2024 | F145: =INDEX(ParticipantData,MATCH(C134,ParticipantNums,0),MATCH(E145,TopRow,0)) -> 0 | G145: 0 | H145: =Calcs!$I$18 -> 174.7102928 | Q145: =$G145*(Q136-$P136) -> 0 | R145: =$G145*(R136-$P136) -> 0 | AH145: ='Rate Table'!$O$8 -> 0 | AI145: ='Rate Table'!$O$9 -> 0 | AK145: 0 | AL145: 0 | AM145: 0 | AN145: 0 | AO145: 0 | AP145: 0 | AQ145: 0 | AR145: 0 | AS145: 0 | AT145: 0
D146: =D145+1 -> 10 | E146: 2025 | F146: =INDEX(ParticipantData,MATCH(C134,ParticipantNums,0),MATCH(E146,TopRow,0)) -> 0 | G146: 0 | H146: =Calcs!$I$19 -> 200.9168368 | R146: =$G146*(R136-$Q136) -> 0 | AI146: ='Rate Table'!$O$8 -> 0 | AK146: 0 | AL146: 0 | AM146: 0 | AN146: 0 | AO146: 0 | AP146: 0 | AQ146: 0 | AR146: 0 | AS146: 0 | AT146: 0
F147: =SUM(F137:F146) -> 0 | G147: =SUM(G137:G146) -> 0 | H147: Earned | I147: =SUM(I137:I146) -> 0 | J147: =SUM(J137:J146) -> 0 | K147: 0 | L147: 0 | M147: 0 | N147: 0 | O147: 0 | P147: 0 | Q147: 0 | R147: 0
H148: Vested | I148: =SUM(AK137:AK146) -> 0 | J148: =SUM(AL137:AL146) -> 0 | K148: =SUM(AM137:AM146) -> 0 | L148: =SUM(AN137:AN146) -> 0 | M148: =SUM(AO137:AO146) -> 0 | N148: =SUM(AP137:AP146) -> 0 | O148: =SUM(AQ137:AQ146) -> 0 | P148: =SUM(AR137:AR146) -> 0 | Q148: =SUM(AS137:AS146) -> 0 | R148: =SUM(AT137:AT146) -> 0
H150: Salary | I150: =VLOOKUP(C134,'Participant Awards'!$C$11:$H$20,5,FALSE) -> 0 | J150: =I150*(1+CompGrowthRate) -> 0 | K150: =J150*(1+CompGrowthRate) -> 0 | L150: =K150*(1+CompGrowthRate) -> 0 | M150: =L150*(1+CompGrowthRate) -> 0 | N150: =M150*(1+CompGrowthRate) -> 0 | O150: =N150*(1+CompGrowthRate) -> 0 | P150: =O150*(1+CompGrowthRate) -> 0 | Q150: =P150*(1+CompGrowthRate) -> 0 | R150: =Q150*(1+CompGrowthRate) -> 0
H151: Bonus | I151: =I150*VLOOKUP(C134,'Participant Awards'!$C$11:$H$20,6,FALSE) -> 0 | J151: =J150*VLOOKUP(C134,'Participant Awards'!$C$11:$H$20,6,FALSE) -> 0 | K151: =K150*VLOOKUP(C134,'Participant Awards'!$C$11:$H$20,6,FALSE) -> 0 | L151: =L150*VLOOKUP(C134,'Participant Awards'!$C$11:$H$20,6,FALSE) -> 0 | M151: =M150*VLOOKUP(C134,'Participant Awards'!$C$11:$H$20,6,FALSE) -> 0 | N151: =N150*VLOOKUP(C134,'Participant Awards'!$C$11:$H$20,6,FALSE) -> 0 | O151: =O150*VLOOKUP(C134,'Participant Awards'!$C$11:$H$20,6,FALSE) -> 0 | P151: =P150*VLOOKUP(C134,'Participant Awards'!$C$11:$H$20,6,FALSE) -> 0 | Q151: =Q150*VLOOKUP(C134,'Participant Awards'!$C$11:$H$20,6,FALSE) -> 0 | R151: =R150*VLOOKUP(C134,'Participant Awards'!$C$11:$H$20,6,FALSE) -> 0
H152: Total Comp | I152: =I150+I151 -> 0 | J152: =J150+J151 -> 0 | K152: 0 | L152: 0 | M152: 0 | N152: 0 | O152: 0 | P152: 0 | Q152: 0 | R152: 0
F154: Phantom Stock Value as % of Salary | I154: =IF(I150=0,0,I147/I150) -> 0 | J154: =IF(J150=0,0,J147/J150) -> 0 | K154: 0 | L154: 0 | M154: 0 | N154: 0 | O154: 0 | P154: 0 | Q154: 0 | R154: 0
C158: 6 | D158: =" "&IF(VLOOKUP(C158,'Participant Awards'!$C$11:$D$20,2,FALSE)=0,"",VLOOKUP(C158,'Participant Awards'!$C$11:$D$20,2,FALSE)) ->  | F158: Phantom Stock | G158: Phantom Shares | H158: Share
D159: Year | E159: Cal Year | F159: Award | G159: Granted | H159: Price | I159: =EOYDate -> 2016-12-31 | J159: =DATE(YEAR(I159)+1,MONTH(I159),DAY(I159)) -> 2017-12-31 | K159: =DATE(YEAR(J159)+1,MONTH(J159),DAY(J159)) -> 2018-12-31 | L159: =DATE(YEAR(K159)+1,MONTH(K159),DAY(K159)) -> 2019-12-31 | M159: =DATE(YEAR(L159)+1,MONTH(L159),DAY(L159)) -> 2020-12-31 | N159: =DATE(YEAR(M159)+1,MONTH(M159),DAY(M159)) -> 2021-12-31 | O159: =DATE(YEAR(N159)+1,MONTH(N159),DAY(N159)) -> 2022-12-31 | P159: =DATE(YEAR(O159)+1,MONTH(O159),DAY(O159)) -> 2023-12-31 | Q159: =DATE(YEAR(P159)+1,MONTH(P159),DAY(P159)) -> 2024-12-31 | R159: =DATE(YEAR(Q159)+1,MONTH(Q159),DAY(Q159)) -> 2025-12-31
H160: =Calcs!$I$9 -> 25 | I160: =H161 -> 33.25 | J160: =H162 -> 44.2225 | K160: =H163 -> 58.815925 | L160: =H164 -> 73.51990625 | M160: =H165 -> 91.89988281 | N160: =H166 -> 114.8748535 | O160: =H167 -> 132.1060815 | P160: =H168 -> 151.9219938 | Q160: =H169 -> 174.7102928 | R160: =H170 -> 200.9168368 | Z160: Vesting Rates | AK160: Vested Value
D161: 1 | E161: ='Valuation Method'!$H$6+1 -> 2016 | F161: =INDEX(ParticipantData,MATCH(C158,ParticipantNums,0),MATCH($E161,TopRow,0)) -> 0 | G161: =PoolPercent*SharesNumber*F161 -> 0 | H161: =Calcs!$I$10 -> 33.25 | I161: =$G161*(I160-$H160) -> 0 | J161: 0 | K161: 0 | L161: 0 | M161: 0 | N161: 0 | O161: 0 | P161: 0 | Q161: 0 | R161: 0 | Z161: ='Rate Table'!$O$8 -> 0 | AA161: ='Rate Table'!$O$9 -> 0 | AB161: ='Rate Table'!$O$10 -> 0 | AC161: ='Rate Table'!$O$11 -> 0.4 | AD161: ='Rate Table'!$O$12 -> 1 | AE161: ='Rate Table'!$O$13 -> 1 | AF161: ='Rate Table'!$O$14 -> 1 | AG161: ='Rate Table'!$O$15 -> 1 | AH161: ='Rate Table'!$O$16 -> 1 | AI161: ='Rate Table'!$O$17 -> 1 | AK161: =I161*Z161 -> 0 | AL161: =J161*AA161 -> 0 | AM161: =K161*AB161 -> 0 | AN161: =L161*AC161 -> 0 | AO161: =M161*AD161 -> 0 | AP161: =N161*AE161 -> 0 | AQ161: =O161*AF161 -> 0 | AR161: =P161*AG161 -> 0 | AS161: =Q161*AH161 -> 0 | AT161: =R161*AI161 -> 0
D162: =D161+1 -> 2 | E162: =E161+1 -> 2017 | F162: =INDEX(ParticipantData,MATCH(C158,ParticipantNums,0),MATCH(E162,TopRow,0)) -> 0 | G162: 0 | H162: =Calcs!$I$11 -> 44.2225 | J162: =$G162*(J160-$I160) -> 0 | K162: 0 | L162: 0 | M162: 0 | N162: 0 | O162: 0 | P162: 0 | Q162: 0 | R162: 0 | AA162: ='Rate Table'!$O$8 -> 0 | AB162: ='Rate Table'!$O$9 -> 0 | AC162: ='Rate Table'!$O$10 -> 0 | AD162: ='Rate Table'!$O$11 -> 0.4 | AE162: ='Rate Table'!$O$12 -> 1 | AF162: ='Rate Table'!$O$13 -> 1 | AG162: ='Rate Table'!$O$14 -> 1 | AH162: ='Rate Table'!$O$15 -> 1 | AI162: ='Rate Table'!$O$16 -> 1 | AK162: =I162*Z162 -> 0 | AL162: 0 | AM162: 0 | AN162: 0 | AO162: 0 | AP162: 0 | AQ162: 0 | AR162: 0 | AS162: 0 | AT162: 0
D163: =D162+1 -> 3 | E163: 2018 | F163: =INDEX(ParticipantData,MATCH(C158,ParticipantNums,0),MATCH(E163,TopRow,0)) -> 0 | G163: 0 | H163: =Calcs!$I$12 -> 58.815925 | K163: =$G163*(K160-$J160) -> 0 | L163: 0 | M163: 0 | N163: 0 | O163: 0 | P163: 0 | Q163: 0 | R163: 0 | AB163: ='Rate Table'!$O$8 -> 0 | AC163: ='Rate Table'!$O$9 -> 0 | AD163: ='Rate Table'!$O$10 -> 0 | AE163: ='Rate Table'!$O$11 -> 0.4 | AF163: ='Rate Table'!$O$12 -> 1 | AG163: ='Rate Table'!$O$13 -> 1 | AH163: ='Rate Table'!$O$14 -> 1 | AI163: ='Rate Table'!$O$15 -> 1 | AK163: 0 | AL163: 0 | AM163: 0 | AN163: 0 | AO163: 0 | AP163: 0 | AQ163: 0 | AR163: 0 | AS163: 0 | AT163: 0
D164: =D163+1 -> 4 | E164: 2019 | F164: =INDEX(ParticipantData,MATCH(C158,ParticipantNums,0),MATCH(E164,TopRow,0)) -> 0 | G164: 0 | H164: =Calcs!$I$13 -> 73.51990625 | L164: =$G164*(L160-$K160) -> 0 | M164: 0 | N164: 0 | O164: 0 | P164: 0 | Q164: 0 | R164: 0 | AC164: ='Rate Table'!$O$8 -> 0 | AD164: ='Rate Table'!$O$9 -> 0 | AE164: ='Rate Table'!$O$10 -> 0 | AF164: ='Rate Table'!$O$11 -> 0.4 | AG164: ='Rate Table'!$O$12 -> 1 | AH164: ='Rate Table'!$O$13 -> 1 | AI164: ='Rate Table'!$O$14 -> 1 | AK164: 0 | AL164: 0 | AM164: 0 | AN164: 0 | AO164: 0 | AP164: 0 | AQ164: 0 | AR164: 0 | AS164: 0 | AT164: 0
D165: =D164+1 -> 5 | E165: 2020 | F165: =INDEX(ParticipantData,MATCH(C158,ParticipantNums,0),MATCH(E165,TopRow,0)) -> 0 | G165: 0 | H165: =Calcs!$I$14 -> 91.89988281 | M165: =$G165*(M160-$L160) -> 0 | N165: 0 | O165: 0 | P165: 0 | Q165: 0 | R165: 0 | AD165: ='Rate Table'!$O$8 -> 0 | AE165: ='Rate Table'!$O$9 -> 0 | AF165: ='Rate Table'!$O$10 -> 0 | AG165: ='Rate Table'!$O$11 -> 0.4 | AH165: ='Rate Table'!$O$12 -> 1 | AI165: ='Rate Table'!$O$13 -> 1 | AK165: 0 | AL165: 0 | AM165: 0 | AN165: 0 | AO165: 0 | AP165: 0 | AQ165: 0 | AR165: 0 | AS165: 0 | AT165: 0
D166: =D165+1 -> 6 | E166: 2021 | F166: =INDEX(ParticipantData,MATCH(C158,ParticipantNums,0),MATCH(E166,TopRow,0)) -> 0 | G166: 0 | H166: =Calcs!$I$15 -> 114.8748535 | N166: =$G166*(N160-$M160) -> 0 | O166: =$G166*(O160-$M160) -> 0 | P166: =$G166*(P160-$M160) -> 0 | Q166: =$G166*(Q160-$M160) -> 0 | R166: =$G166*(R160-$M160) -> 0 | AE166: ='Rate Table'!$O$8 -> 0 | AF166: ='Rate Table'!$O$9 -> 0 | AG166: ='Rate Table'!$O$10 -> 0 | AH166: ='Rate Table'!$O$11 -> 0.4 | AI166: ='Rate Table'!$O$12 -> 1 | AK166: 0 | AL166: 0 | AM166: 0 | AN166: 0 | AO166: 0 | AP166: 0 | AQ166: 0 | AR166: 0 | AS166: 0 | AT166: 0
D167: =D166+1 -> 7 | E167: 2022 | F167: =INDEX(ParticipantData,MATCH(C158,ParticipantNums,0),MATCH(E167,TopRow,0)) -> 0 | G167: 0 | H167: =Calcs!$I$16 -> 132.1060815 | O167: =$G167*(O160-$N160) -> 0 | P167: =$G167*(P160-$N160) -> 0 | Q167: =$G167*(Q160-$N160) -> 0 | R167: =$G167*(R160-$N160) -> 0 | AF167: ='Rate Table'!$O$8 -> 0 | AG167: ='Rate Table'!$O$9 -> 0 | AH167: ='Rate Table'!$O$10 -> 0 | AI167: ='Rate Table'!$O$11 -> 0.4 | AK167: 0 | AL167: 0 | AM167: 0 | AN167: 0 | AO167: 0 | AP167: 0 | AQ167: 0 | AR167: 0 | AS167: 0 | AT167: 0
D168: =D167+1 -> 8 | E168: 2023 | F168: =INDEX(ParticipantData,MATCH(C158,ParticipantNums,0),MATCH(E168,TopRow,0)) -> 0 | G168: 0 | H168: =Calcs!$I$17 -> 151.9219938 | P168: =$G168*(P160-$O160) -> 0 | Q168: =$G168*(Q160-$O160) -> 0 | R168: =$G168*(R160-$O160) -> 0 | AG168: ='Rate Table'!$O$8 -> 0 | AH168: ='Rate Table'!$O$9 -> 0 | AI168: ='Rate Table'!$O$10 -> 0 | AK168: 0 | AL168: 0 | AM168: 0 | AN168: 0 | AO168: 0 | AP168: 0 | AQ168: 0 | AR168: 0 | AS168: 0 | AT168: 0
D169: =D168+1 -> 9 | E169: 2024 | F169: =INDEX(ParticipantData,MATCH(C158,ParticipantNums,0),MATCH(E169,TopRow,0)) -> 0 | G169: 0 | H169: =Calcs!$I$18 -> 174.7102928 | Q169: =$G169*(Q160-$P160) -> 0 | R169: =$G169*(R160-$P160) -> 0 | AH169: ='Rate Table'!$O$8 -> 0 | AI169: ='Rate Table'!$O$9 -> 0 | AK169: 0 | AL169: 0 | AM169: 0 | AN169: 0 | AO169: 0 | AP169: 0 | AQ169: 0 | AR169: 0 | AS169: 0 | AT169: 0
D170: =D169+1 -> 10 | E170: 2025 | F170: =INDEX(ParticipantData,MATCH(C158,ParticipantNums,0),MATCH(E170,TopRow,0)) -> 0 | G170: 0 | H170: =Calcs!$I$19 -> 200.9168368 | R170: =$G170*(R160-$Q160) -> 0 | AI170: ='Rate Table'!$O$8 -> 0 | AK170: 0 | AL170: 0 | AM170: 0 | AN170: 0 | AO170: 0 | AP170: 0 | AQ170: 0 | AR170: 0 | AS170: 0 | AT170: 0
F171: =SUM(F161:F170) -> 0 | G171: =SUM(G161:G170) -> 0 | H171: Earned | I171: =SUM(I161:I170) -> 0 | J171: =SUM(J161:J170) -> 0 | K171: 0 | L171: 0 | M171: 0 | N171: 0 | O171: 0 | P171: 0 | Q171: 0 | R171: 0
H172: Vested | I172: =SUM(AK161:AK170) -> 0 | J172: =SUM(AL161:AL170) -> 0 | K172: =SUM(AM161:AM170) -> 0 | L172: =SUM(AN161:AN170) -> 0 | M172: =SUM(AO161:AO170) -> 0 | N172: =SUM(AP161:AP170) -> 0 | O172: =SUM(AQ161:AQ170) -> 0 | P172: =SUM(AR161:AR170) -> 0 | Q172: =SUM(AS161:AS170) -> 0 | R172: =SUM(AT161:AT170) -> 0
H174: Salary | I174: =VLOOKUP(C158,'Participant Awards'!$C$11:$H$20,5,FALSE) -> 0 | J174: =I174*(1+CompGrowthRate) -> 0 | K174: =J174*(1+CompGrowthRate) -> 0 | L174: =K174*(1+CompGrowthRate) -> 0 | M174: =L174*(1+CompGrowthRate) -> 0 | N174: =M174*(1+CompGrowthRate) -> 0 | O174: =N174*(1+CompGrowthRate) -> 0 | P174: =O174*(1+CompGrowthRate) -> 0 | Q174: =P174*(1+CompGrowthRate) -> 0 | R174: =Q174*(1+CompGrowthRate) -> 0
H175: Bonus | I175: =I174*VLOOKUP(C158,'Participant Awards'!$C$11:$H$20,6,FALSE) -> 0 | J175: =J174*VLOOKUP(C158,'Participant Awards'!$C$11:$H$20,6,FALSE) -> 0 | K175: =K174*VLOOKUP(C158,'Participant Awards'!$C$11:$H$20,6,FALSE) -> 0 | L175: =L174*VLOOKUP(C158,'Participant Awards'!$C$11:$H$20,6,FALSE) -> 0 | M175: =M174*VLOOKUP(C158,'Participant Awards'!$C$11:$H$20,6,FALSE) -> 0 | N175: =N174*VLOOKUP(C158,'Participant Awards'!$C$11:$H$20,6,FALSE) -> 0 | O175: =O174*VLOOKUP(C158,'Participant Awards'!$C$11:$H$20,6,FALSE) -> 0 | P175: =P174*VLOOKUP(C158,'Participant Awards'!$C$11:$H$20,6,FALSE) -> 0 | Q175: =Q174*VLOOKUP(C158,'Participant Awards'!$C$11:$H$20,6,FALSE) -> 0 | R175: =R174*VLOOKUP(C158,'Participant Awards'!$C$11:$H$20,6,FALSE) -> 0
H176: Total Comp | I176: =I174+I175 -> 0 | J176: =J174+J175 -> 0 | K176: 0 | L176: 0 | M176: 0 | N176: 0 | O176: 0 | P176: 0 | Q176: 0 | R176: 0
F178: Phantom Stock Value as % of Salary | I178: =IF(I174=0,0,I171/I174) -> 0 | J178: =IF(J174=0,0,J171/J174) -> 0 | K178: 0 | L178: 0 | M178: 0 | N178: 0 | O178: 0 | P178: 0 | Q178: 0 | R178: 0
C182: 7 | D182: =" "&IF(VLOOKUP(C182,'Participant Awards'!$C$11:$D$20,2,FALSE)=0,"",VLOOKUP(C182,'Participant Awards'!$C$11:$D$20,2,FALSE)) ->  | F182: Phantom Stock | G182: Phantom Shares | H182: Share
D183: Year | E183: Cal Year | F183: Award | G183: Granted | H183: Price | I183: =EOYDate -> 2016-12-31 | J183: =DATE(YEAR(I183)+1,MONTH(I183),DAY(I183)) -> 2017-12-31 | K183: =DATE(YEAR(J183)+1,MONTH(J183),DAY(J183)) -> 2018-12-31 | L183: =DATE(YEAR(K183)+1,MONTH(K183),DAY(K183)) -> 2019-12-31 | M183: =DATE(YEAR(L183)+1,MONTH(L183),DAY(L183)) -> 2020-12-31 | N183: =DATE(YEAR(M183)+1,MONTH(M183),DAY(M183)) -> 2021-12-31 | O183: =DATE(YEAR(N183)+1,MONTH(N183),DAY(N183)) -> 2022-12-31 | P183: =DATE(YEAR(O183)+1,MONTH(O183),DAY(O183)) -> 2023-12-31 | Q183: =DATE(YEAR(P183)+1,MONTH(P183),DAY(P183)) -> 2024-12-31 | R183: =DATE(YEAR(Q183)+1,MONTH(Q183),DAY(Q183)) -> 2025-12-31
H184: =Calcs!$I$9 -> 25 | I184: =H185 -> 33.25 | J184: =H186 -> 44.2225 | K184: =H187 -> 58.815925 | L184: =H188 -> 73.51990625 | M184: =H189 -> 91.89988281 | N184: =H190 -> 114.8748535 | O184: =H191 -> 132.1060815 | P184: =H192 -> 151.9219938 | Q184: =H193 -> 174.7102928 | R184: =H194 -> 200.9168368 | Z184: Vesting Rates | AK184: Vested Value
D185: 1 | E185: ='Valuation Method'!$H$6+1 -> 2016 | F185: =INDEX(ParticipantData,MATCH(C182,ParticipantNums,0),MATCH($E185,TopRow,0)) -> 0 | G185: =PoolPercent*SharesNumber*F185 -> 0 | H185: =Calcs!$I$10 -> 33.25 | I185: =$G185*(I184-$H184) -> 0 | J185: 0 | K185: 0 | L185: 0 | M185: 0 | N185: 0 | O185: 0 | P185: 0 | Q185: 0 | R185: 0 | Z185: ='Rate Table'!$O$8 -> 0 | AA185: ='Rate Table'!$O$9 -> 0 | AB185: ='Rate Table'!$O$10 -> 0 | AC185: ='Rate Table'!$O$11 -> 0.4 | AD185: ='Rate Table'!$O$12 -> 1 | AE185: ='Rate Table'!$O$13 -> 1 | AF185: ='Rate Table'!$O$14 -> 1 | AG185: ='Rate Table'!$O$15 -> 1 | AH185: ='Rate Table'!$O$16 -> 1 | AI185: ='Rate Table'!$O$17 -> 1 | AK185: =I185*Z185 -> 0 | AL185: =J185*AA185 -> 0 | AM185: =K185*AB185 -> 0 | AN185: =L185*AC185 -> 0 | AO185: =M185*AD185 -> 0 | AP185: =N185*AE185 -> 0 | AQ185: =O185*AF185 -> 0 | AR185: =P185*AG185 -> 0 | AS185: =Q185*AH185 -> 0 | AT185: =R185*AI185 -> 0
D186: =D185+1 -> 2 | E186: =E185+1 -> 2017 | F186: =INDEX(ParticipantData,MATCH(C182,ParticipantNums,0),MATCH(E186,TopRow,0)) -> 0 | G186: 0 | H186: =Calcs!$I$11 -> 44.2225 | J186: =$G186*(J184-$I184) -> 0 | K186: 0 | L186: 0 | M186: 0 | N186: 0 | O186: 0 | P186: 0 | Q186: 0 | R186: 0 | AA186: ='Rate Table'!$O$8 -> 0 | AB186: ='Rate Table'!$O$9 -> 0 | AC186: ='Rate Table'!$O$10 -> 0 | AD186: ='Rate Table'!$O$11 -> 0.4 | AE186: ='Rate Table'!$O$12 -> 1 | AF186: ='Rate Table'!$O$13 -> 1 | AG186: ='Rate Table'!$O$14 -> 1 | AH186: ='Rate Table'!$O$15 -> 1 | AI186: ='Rate Table'!$O$16 -> 1 | AK186: =I186*Z186 -> 0 | AL186: 0 | AM186: 0 | AN186: 0 | AO186: 0 | AP186: 0 | AQ186: 0 | AR186: 0 | AS186: 0 | AT186: 0
D187: =D186+1 -> 3 | E187: 2018 | F187: =INDEX(ParticipantData,MATCH(C182,ParticipantNums,0),MATCH(E187,TopRow,0)) -> 0 | G187: 0 | H187: =Calcs!$I$12 -> 58.815925 | K187: =$G187*(K184-$J184) -> 0 | L187: 0 | M187: 0 | N187: 0 | O187: 0 | P187: 0 | Q187: 0 | R187: 0 | AB187: ='Rate Table'!$O$8 -> 0 | AC187: ='Rate Table'!$O$9 -> 0 | AD187: ='Rate Table'!$O$10 -> 0 | AE187: ='Rate Table'!$O$11 -> 0.4 | AF187: ='Rate Table'!$O$12 -> 1 | AG187: ='Rate Table'!$O$13 -> 1 | AH187: ='Rate Table'!$O$14 -> 1 | AI187: ='Rate Table'!$O$15 -> 1 | AK187: 0 | AL187: 0 | AM187: 0 | AN187: 0 | AO187: 0 | AP187: 0 | AQ187: 0 | AR187: 0 | AS187: 0 | AT187: 0
D188: =D187+1 -> 4 | E188: 2019 | F188: =INDEX(ParticipantData,MATCH(C182,ParticipantNums,0),MATCH(E188,TopRow,0)) -> 0 | G188: 0 | H188: =Calcs!$I$13 -> 73.51990625 | L188: =$G188*(L184-$K184) -> 0 | M188: 0 | N188: 0 | O188: 0 | P188: 0 | Q188: 0 | R188: 0 | AC188: ='Rate Table'!$O$8 -> 0 | AD188: ='Rate Table'!$O$9 -> 0 | AE188: ='Rate Table'!$O$10 -> 0 | AF188: ='Rate Table'!$O$11 -> 0.4 | AG188: ='Rate Table'!$O$12 -> 1 | AH188: ='Rate Table'!$O$13 -> 1 | AI188: ='Rate Table'!$O$14 -> 1 | AK188: 0 | AL188: 0 | AM188: 0 | AN188: 0 | AO188: 0 | AP188: 0 | AQ188: 0 | AR188: 0 | AS188: 0 | AT188: 0
D189: =D188+1 -> 5 | E189: 2020 | F189: =INDEX(ParticipantData,MATCH(C182,ParticipantNums,0),MATCH(E189,TopRow,0)) -> 0 | G189: 0 | H189: =Calcs!$I$14 -> 91.89988281 | M189: =$G189*(M184-$L184) -> 0 | N189: 0 | O189: 0 | P189: 0 | Q189: 0 | R189: 0 | AD189: ='Rate Table'!$O$8 -> 0 | AE189: ='Rate Table'!$O$9 -> 0 | AF189: ='Rate Table'!$O$10 -> 0 | AG189: ='Rate Table'!$O$11 -> 0.4 | AH189: ='Rate Table'!$O$12 -> 1 | AI189: ='Rate Table'!$O$13 -> 1 | AK189: 0 | AL189: 0 | AM189: 0 | AN189: 0 | AO189: 0 | AP189: 0 | AQ189: 0 | AR189: 0 | AS189: 0 | AT189: 0
D190: =D189+1 -> 6 | E190: 2021 | F190: =INDEX(ParticipantData,MATCH(C182,ParticipantNums,0),MATCH(E190,TopRow,0)) -> 0 | G190: 0 | H190: =Calcs!$I$15 -> 114.8748535 | N190: =$G190*(N184-$M184) -> 0 | O190: =$G190*(O184-$M184) -> 0 | P190: =$G190*(P184-$M184) -> 0 | Q190: =$G190*(Q184-$M184) -> 0 | R190: =$G190*(R184-$M184) -> 0 | AE190: ='Rate Table'!$O$8 -> 0 | AF190: ='Rate Table'!$O$9 -> 0 | AG190: ='Rate Table'!$O$10 -> 0 | AH190: ='Rate Table'!$O$11 -> 0.4 | AI190: ='Rate Table'!$O$12 -> 1 | AK190: 0 | AL190: 0 | AM190: 0 | AN190: 0 | AO190: 0 | AP190: 0 | AQ190: 0 | AR190: 0 | AS190: 0 | AT190: 0
D191: =D190+1 -> 7 | E191: 2022 | F191: =INDEX(ParticipantData,MATCH(C182,ParticipantNums,0),MATCH(E191,TopRow,0)) -> 0 | G191: 0 | H191: =Calcs!$I$16 -> 132.1060815 | O191: =$G191*(O184-$N184) -> 0 | P191: =$G191*(P184-$N184) -> 0 | Q191: =$G191*(Q184-$N184) -> 0 | R191: =$G191*(R184-$N184) -> 0 | AF191: ='Rate Table'!$O$8 -> 0 | AG191: ='Rate Table'!$O$9 -> 0 | AH191: ='Rate Table'!$O$10 -> 0 | AI191: ='Rate Table'!$O$11 -> 0.4 | AK191: 0 | AL191: 0 | AM191: 0 | AN191: 0 | AO191: 0 | AP191: 0 | AQ191: 0 | AR191: 0 | AS191: 0 | AT191: 0
D192: =D191+1 -> 8 | E192: 2023 | F192: =INDEX(ParticipantData,MATCH(C182,ParticipantNums,0),MATCH(E192,TopRow,0)) -> 0 | G192: 0 | H192: =Calcs!$I$17 -> 151.9219938 | P192: =$G192*(P184-$O184) -> 0 | Q192: =$G192*(Q184-$O184) -> 0 | R192: =$G192*(R184-$O184) -> 0 | AG192: ='Rate Table'!$O$8 -> 0 | AH192: ='Rate Table'!$O$9 -> 0 | AI192: ='Rate Table'!$O$10 -> 0 | AK192: 0 | AL192: 0 | AM192: 0 | AN192: 0 | AO192: 0 | AP192: 0 | AQ192: 0 | AR192: 0 | AS192: 0 | AT192: 0
D193: =D192+1 -> 9 | E193: 2024 | F193: =INDEX(ParticipantData,MATCH(C182,ParticipantNums,0),MATCH(E193,TopRow,0)) -> 0 | G193: 0 | H193: =Calcs!$I$18 -> 174.7102928 | Q193: =$G193*(Q184-$P184) -> 0 | R193: =$G193*(R184-$P184) -> 0 | AH193: ='Rate Table'!$O$8 -> 0 | AI193: ='Rate Table'!$O$9 -> 0 | AK193: 0 | AL193: 0 | AM193: 0 | AN193: 0 | AO193: 0 | AP193: 0 | AQ193: 0 | AR193: 0 | AS193: 0 | AT193: 0
D194: =D193+1 -> 10 | E194: 2025 | F194: =INDEX(ParticipantData,MATCH(C182,ParticipantNums,0),MATCH(E194,TopRow,0)) -> 0 | G194: 0 | H194: =Calcs!$I$19 -> 200.9168368 | R194: =$G194*(R184-$Q184) -> 0 | AI194: ='Rate Table'!$O$8 -> 0 | AK194: 0 | AL194: 0 | AM194: 0 | AN194: 0 | AO194: 0 | AP194: 0 | AQ194: 0 | AR194: 0 | AS194: 0 | AT194: 0
F195: =SUM(F185:F194) -> 0 | G195: =SUM(G185:G194) -> 0 | H195: Earned | I195: =SUM(I185:I194) -> 0 | J195: =SUM(J185:J194) -> 0 | K195: 0 | L195: 0 | M195: 0 | N195: 0 | O195: 0 | P195: 0 | Q195: 0 | R195: 0
H196: Vested | I196: =SUM(AK185:AK194) -> 0 | J196: =SUM(AL185:AL194) -> 0 | K196: =SUM(AM185:AM194) -> 0 | L196: =SUM(AN185:AN194) -> 0 | M196: =SUM(AO185:AO194) -> 0 | N196: =SUM(AP185:AP194) -> 0 | O196: =SUM(AQ185:AQ194) -> 0 | P196: =SUM(AR185:AR194) -> 0 | Q196: =SUM(AS185:AS194) -> 0 | R196: =SUM(AT185:AT194) -> 0
H198: Salary | I198: =VLOOKUP(C182,'Participant Awards'!$C$11:$H$20,5,FALSE) -> 0 | J198: =I198*(1+CompGrowthRate) -> 0 | K198: =J198*(1+CompGrowthRate) -> 0 | L198: =K198*(1+CompGrowthRate) -> 0 | M198: =L198*(1+CompGrowthRate) -> 0 | N198: =M198*(1+CompGrowthRate) -> 0 | O198: =N198*(1+CompGrowthRate) -> 0 | P198: =O198*(1+CompGrowthRate) -> 0 | Q198: =P198*(1+CompGrowthRate) -> 0 | R198: =Q198*(1+CompGrowthRate) -> 0
H199: Bonus | I199: =I198*VLOOKUP(C182,'Participant Awards'!$C$11:$H$20,6,FALSE) -> 0 | J199: =J198*VLOOKUP(C182,'Participant Awards'!$C$11:$H$20,6,FALSE) -> 0 | K199: =K198*VLOOKUP(C182,'Participant Awards'!$C$11:$H$20,6,FALSE) -> 0 | L199: =L198*VLOOKUP(C182,'Participant Awards'!$C$11:$H$20,6,FALSE) -> 0 | M199: =M198*VLOOKUP(C182,'Participant Awards'!$C$11:$H$20,6,FALSE) -> 0 | N199: =N198*VLOOKUP(C182,'Participant Awards'!$C$11:$H$20,6,FALSE) -> 0 | O199: =O198*VLOOKUP(C182,'Participant Awards'!$C$11:$H$20,6,FALSE) -> 0 | P199: =P198*VLOOKUP(C182,'Participant Awards'!$C$11:$H$20,6,FALSE) -> 0 | Q199: =Q198*VLOOKUP(C182,'Participant Awards'!$C$11:$H$20,6,FALSE) -> 0 | R199: =R198*VLOOKUP(C182,'Participant Awards'!$C$11:$H$20,6,FALSE) -> 0
H200: Total Comp | I200: =I198+I199 -> 0 | J200: =J198+J199 -> 0 | K200: 0 | L200: 0 | M200: 0 | N200: 0 | O200: 0 | P200: 0 | Q200: 0 | R200: 0
F202: Phantom Stock Value as % of Salary | I202: =IF(I198=0,0,I195/I198) -> 0 | J202: =IF(J198=0,0,J195/J198) -> 0 | K202: 0 | L202: 0 | M202: 0 | N202: 0 | O202: 0 | P202: 0 | Q202: 0 | R202: 0
C206: 8 | D206: =" "&IF(VLOOKUP(C206,'Participant Awards'!$C$11:$D$20,2,FALSE)=0,"",VLOOKUP(C206,'Participant Awards'!$C$11:$D$20,2,FALSE)) ->  | F206: Phantom Stock | G206: Phantom Shares | H206: Share
D207: Year | E207: Cal Year | F207: Award | G207: Granted | H207: Price | I207: =EOYDate -> 2016-12-31 | J207: =DATE(YEAR(I207)+1,MONTH(I207),DAY(I207)) -> 2017-12-31 | K207: =DATE(YEAR(J207)+1,MONTH(J207),DAY(J207)) -> 2018-12-31 | L207: =DATE(YEAR(K207)+1,MONTH(K207),DAY(K207)) -> 2019-12-31 | M207: =DATE(YEAR(L207)+1,MONTH(L207),DAY(L207)) -> 2020-12-31 | N207: =DATE(YEAR(M207)+1,MONTH(M207),DAY(M207)) -> 2021-12-31 | O207: =DATE(YEAR(N207)+1,MONTH(N207),DAY(N207)) -> 2022-12-31 | P207: =DATE(YEAR(O207)+1,MONTH(O207),DAY(O207)) -> 2023-12-31 | Q207: =DATE(YEAR(P207)+1,MONTH(P207),DAY(P207)) -> 2024-12-31 | R207: =DATE(YEAR(Q207)+1,MONTH(Q207),DAY(Q207)) -> 2025-12-31
H208: =Calcs!$I$9 -> 25 | I208: =H209 -> 33.25 | J208: =H210 -> 44.2225 | K208: =H211 -> 58.815925 | L208: =H212 -> 73.51990625 | M208: =H213 -> 91.89988281 | N208: =H214 -> 114.8748535 | O208: =H215 -> 132.1060815 | P208: =H216 -> 151.9219938 | Q208: =H217 -> 174.7102928 | R208: =H218 -> 200.9168368 | Z208: Vesting Rates | AK208: Vested Value
D209: 1 | E209: ='Valuation Method'!$H$6+1 -> 2016 | F209: =INDEX(ParticipantData,MATCH(C206,ParticipantNums,0),MATCH($E209,TopRow,0)) -> 0 | G209: =PoolPercent*SharesNumber*F209 -> 0 | H209: =Calcs!$I$10 -> 33.25 | I209: =$G209*(I208-$H208) -> 0 | J209: 0 | K209: 0 | L209: 0 | M209: 0 | N209: 0 | O209: 0 | P209: 0 | Q209: 0 | R209: 0 | Z209: ='Rate Table'!$O$8 -> 0 | AA209: ='Rate Table'!$O$9 -> 0 | AB209: ='Rate Table'!$O$10 -> 0 | AC209: ='Rate Table'!$O$11 -> 0.4 | AD209: ='Rate Table'!$O$12 -> 1 | AE209: ='Rate Table'!$O$13 -> 1 | AF209: ='Rate Table'!$O$14 -> 1 | AG209: ='Rate Table'!$O$15 -> 1 | AH209: ='Rate Table'!$O$16 -> 1 | AI209: ='Rate Table'!$O$17 -> 1 | AK209: =I209*Z209 -> 0 | AL209: =J209*AA209 -> 0 | AM209: =K209*AB209 -> 0 | AN209: =L209*AC209 -> 0 | AO209: =M209*AD209 -> 0 | AP209: =N209*AE209 -> 0 | AQ209: =O209*AF209 -> 0 | AR209: =P209*AG209 -> 0 | AS209: =Q209*AH209 -> 0 | AT209: =R209*AI209 -> 0
D210: =D209+1 -> 2 | E210: =E209+1 -> 2017 | F210: =INDEX(ParticipantData,MATCH(C206,ParticipantNums,0),MATCH(E210,TopRow,0)) -> 0 | G210: 0 | H210: =Calcs!$I$11 -> 44.2225 | J210: =$G210*(J208-$I208) -> 0 | K210: 0 | L210: 0 | M210: 0 | N210: 0 | O210: 0 | P210: 0 | Q210: 0 | R210: 0 | AA210: ='Rate Table'!$O$8 -> 0 | AB210: ='Rate Table'!$O$9 -> 0 | AC210: ='Rate Table'!$O$10 -> 0 | AD210: ='Rate Table'!$O$11 -> 0.4 | AE210: ='Rate Table'!$O$12 -> 1 | AF210: ='Rate Table'!$O$13 -> 1 | AG210: ='Rate Table'!$O$14 -> 1 | AH210: ='Rate Table'!$O$15 -> 1 | AI210: ='Rate Table'!$O$16 -> 1 | AK210: =I210*Z210 -> 0 | AL210: 0 | AM210: 0 | AN210: 0 | AO210: 0 | AP210: 0 | AQ210: 0 | AR210: 0 | AS210: 0 | AT210: 0
D211: =D210+1 -> 3 | E211: 2018 | F211: =INDEX(ParticipantData,MATCH(C206,ParticipantNums,0),MATCH(E211,TopRow,0)) -> 0 | G211: 0 | H211: =Calcs!$I$12 -> 58.815925 | K211: =$G211*(K208-$J208) -> 0 | L211: 0 | M211: 0 | N211: 0 | O211: 0 | P211: 0 | Q211: 0 | R211: 0 | AB211: ='Rate Table'!$O$8 -> 0 | AC211: ='Rate Table'!$O$9 -> 0 | AD211: ='Rate Table'!$O$10 -> 0 | AE211: ='Rate Table'!$O$11 -> 0.4 | AF211: ='Rate Table'!$O$12 -> 1 | AG211: ='Rate Table'!$O$13 -> 1 | AH211: ='Rate Table'!$O$14 -> 1 | AI211: ='Rate Table'!$O$15 -> 1 | AK211: 0 | AL211: 0 | AM211: 0 | AN211: 0 | AO211: 0 | AP211: 0 | AQ211: 0 | AR211: 0 | AS211: 0 | AT211: 0
D212: =D211+1 -> 4 | E212: 2019 | F212: =INDEX(ParticipantData,MATCH(C206,ParticipantNums,0),MATCH(E212,TopRow,0)) -> 0 | G212: 0 | H212: =Calcs!$I$13 -> 73.51990625 | L212: =$G212*(L208-$K208) -> 0 | M212: 0 | N212: 0 | O212: 0 | P212: 0 | Q212: 0 | R212: 0 | AC212: ='Rate Table'!$O$8 -> 0 | AD212: ='Rate Table'!$O$9 -> 0 | AE212: ='Rate Table'!$O$10 -> 0 | AF212: ='Rate Table'!$O$11 -> 0.4 | AG212: ='Rate Table'!$O$12 -> 1 | AH212: ='Rate Table'!$O$13 -> 1 | AI212: ='Rate Table'!$O$14 -> 1 | AK212: 0 | AL212: 0 | AM212: 0 | AN212: 0 | AO212: 0 | AP212: 0 | AQ212: 0 | AR212: 0 | AS212: 0 | AT212: 0
D213: =D212+1 -> 5 | E213: 2020 | F213: =INDEX(ParticipantData,MATCH(C206,ParticipantNums,0),MATCH(E213,TopRow,0)) -> 0 | G213: 0 | H213: =Calcs!$I$14 -> 91.89988281 | M213: =$G213*(M208-$L208) -> 0 | N213: 0 | O213: 0 | P213: 0 | Q213: 0 | R213: 0 | AD213: ='Rate Table'!$O$8 -> 0 | AE213: ='Rate Table'!$O$9 -> 0 | AF213: ='Rate Table'!$O$10 -> 0 | AG213: ='Rate Table'!$O$11 -> 0.4 | AH213: ='Rate Table'!$O$12 -> 1 | AI213: ='Rate Table'!$O$13 -> 1 | AK213: 0 | AL213: 0 | AM213: 0 | AN213: 0 | AO213: 0 | AP213: 0 | AQ213: 0 | AR213: 0 | AS213: 0 | AT213: 0
D214: =D213+1 -> 6 | E214: 2021 | F214: =INDEX(ParticipantData,MATCH(C206,ParticipantNums,0),MATCH(E214,TopRow,0)) -> 0 | G214: 0 | H214: =Calcs!$I$15 -> 114.8748535 | N214: =$G214*(N208-$M208) -> 0 | O214: =$G214*(O208-$M208) -> 0 | P214: =$G214*(P208-$M208) -> 0 | Q214: =$G214*(Q208-$M208) -> 0 | R214: =$G214*(R208-$M208) -> 0 | AE214: ='Rate Table'!$O$8 -> 0 | AF214: ='Rate Table'!$O$9 -> 0 | AG214: ='Rate Table'!$O$10 -> 0 | AH214: ='Rate Table'!$O$11 -> 0.4 | AI214: ='Rate Table'!$O$12 -> 1 | AK214: 0 | AL214: 0 | AM214: 0 | AN214: 0 | AO214: 0 | AP214: 0 | AQ214: 0 | AR214: 0 | AS214: 0 | AT214: 0
D215: =D214+1 -> 7 | E215: 2022 | F215: =INDEX(ParticipantData,MATCH(C206,ParticipantNums,0),MATCH(E215,TopRow,0)) -> 0 | G215: 0 | H215: =Calcs!$I$16 -> 132.1060815 | O215: =$G215*(O208-$N208) -> 0 | P215: =$G215*(P208-$N208) -> 0 | Q215: =$G215*(Q208-$N208) -> 0 | R215: =$G215*(R208-$N208) -> 0 | AF215: ='Rate Table'!$O$8 -> 0 | AG215: ='Rate Table'!$O$9 -> 0 | AH215: ='Rate Table'!$O$10 -> 0 | AI215: ='Rate Table'!$O$11 -> 0.4 | AK215: 0 | AL215: 0 | AM215: 0 | AN215: 0 | AO215: 0 | AP215: 0 | AQ215: 0 | AR215: 0 | AS215: 0 | AT215: 0
D216: =D215+1 -> 8 | E216: 2023 | F216: =INDEX(ParticipantData,MATCH(C206,ParticipantNums,0),MATCH(E216,TopRow,0)) -> 0 | G216: 0 | H216: =Calcs!$I$17 -> 151.9219938 | P216: =$G216*(P208-$O208) -> 0 | Q216: =$G216*(Q208-$O208) -> 0 | R216: =$G216*(R208-$O208) -> 0 | AG216: ='Rate Table'!$O$8 -> 0 | AH216: ='Rate Table'!$O$9 -> 0 | AI216: ='Rate Table'!$O$10 -> 0 | AK216: 0 | AL216: 0 | AM216: 0 | AN216: 0 | AO216: 0 | AP216: 0 | AQ216: 0 | AR216: 0 | AS216: 0 | AT216: 0
D217: =D216+1 -> 9 | E217: 2024 | F217: =INDEX(ParticipantData,MATCH(C206,ParticipantNums,0),MATCH(E217,TopRow,0)) -> 0 | G217: 0 | H217: =Calcs!$I$18 -> 174.7102928 | Q217: =$G217*(Q208-$P208) -> 0 | R217: =$G217*(R208-$P208) -> 0 | AH217: ='Rate Table'!$O$8 -> 0 | AI217: ='Rate Table'!$O$9 -> 0 | AK217: 0 | AL217: 0 | AM217: 0 | AN217: 0 | AO217: 0 | AP217: 0 | AQ217: 0 | AR217: 0 | AS217: 0 | AT217: 0
D218: =D217+1 -> 10 | E218: 2025 | F218: =INDEX(ParticipantData,MATCH(C206,ParticipantNums,0),MATCH(E218,TopRow,0)) -> 0 | G218: 0 | H218: =Calcs!$I$19 -> 200.9168368 | R218: =$G218*(R208-$Q208) -> 0 | AI218: ='Rate Table'!$O$8 -> 0 | AK218: 0 | AL218: 0 | AM218: 0 | AN218: 0 | AO218: 0 | AP218: 0 | AQ218: 0 | AR218: 0 | AS218: 0 | AT218: 0
F219: =SUM(F209:F218) -> 0 | G219: =SUM(G209:G218) -> 0 | H219: Earned | I219: =SUM(I209:I218) -> 0 | J219: =SUM(J209:J218) -> 0 | K219: 0 | L219: 0 | M219: 0 | N219: 0 | O219: 0 | P219: 0 | Q219: 0 | R219: 0
H220: Vested | I220: =SUM(AK209:AK218) -> 0 | J220: =SUM(AL209:AL218) -> 0 | K220: =SUM(AM209:AM218) -> 0 | L220: =SUM(AN209:AN218) -> 0 | M220: =SUM(AO209:AO218) -> 0 | N220: =SUM(AP209:AP218) -> 0 | O220: =SUM(AQ209:AQ218) -> 0 | P220: =SUM(AR209:AR218) -> 0 | Q220: =SUM(AS209:AS218) -> 0 | R220: =SUM(AT209:AT218) -> 0
H222: Salary | I222: =VLOOKUP(C206,'Participant Awards'!$C$11:$H$20,5,FALSE) -> 0 | J222: =I222*(1+CompGrowthRate) -> 0 | K222: =J222*(1+CompGrowthRate) -> 0 | L222: =K222*(1+CompGrowthRate) -> 0 | M222: =L222*(1+CompGrowthRate) -> 0 | N222: =M222*(1+CompGrowthRate) -> 0 | O222: =N222*(1+CompGrowthRate) -> 0 | P222: =O222*(1+CompGrowthRate) -> 0 | Q222: =P222*(1+CompGrowthRate) -> 0 | R222: =Q222*(1+CompGrowthRate) -> 0
H223: Bonus | I223: =I222*VLOOKUP(C206,'Participant Awards'!$C$11:$H$20,6,FALSE) -> 0 | J223: =J222*VLOOKUP(C206,'Participant Awards'!$C$11:$H$20,6,FALSE) -> 0 | K223: =K222*VLOOKUP(C206,'Participant Awards'!$C$11:$H$20,6,FALSE) -> 0 | L223: =L222*VLOOKUP(C206,'Participant Awards'!$C$11:$H$20,6,FALSE) -> 0 | M223: =M222*VLOOKUP(C206,'Participant Awards'!$C$11:$H$20,6,FALSE) -> 0 | N223: =N222*VLOOKUP(C206,'Participant Awards'!$C$11:$H$20,6,FALSE) -> 0 | O223: =O222*VLOOKUP(C206,'Participant Awards'!$C$11:$H$20,6,FALSE) -> 0 | P223: =P222*VLOOKUP(C206,'Participant Awards'!$C$11:$H$20,6,FALSE) -> 0 | Q223: =Q222*VLOOKUP(C206,'Participant Awards'!$C$11:$H$20,6,FALSE) -> 0 | R223: =R222*VLOOKUP(C206,'Participant Awards'!$C$11:$H$20,6,FALSE) -> 0
H224: Total Comp | I224: =I222+I223 -> 0 | J224: =J222+J223 -> 0 | K224: 0 | L224: 0 | M224: 0 | N224: 0 | O224: 0 | P224: 0 | Q224: 0 | R224: 0
F226: Phantom Stock Value as % of Salary | I226: =IF(I222=0,0,I219/I222) -> 0 | J226: =IF(J222=0,0,J219/J222) -> 0 | K226: 0 | L226: 0 | M226: 0 | N226: 0 | O226: 0 | P226: 0 | Q226: 0 | R226: 0
C230: 9 | D230: =" "&IF(VLOOKUP(C230,'Participant Awards'!$C$11:$D$20,2,FALSE)=0,"",VLOOKUP(C230,'Participant Awards'!$C$11:$D$20,2,FALSE)) ->  | F230: Phantom Stock | G230: Phantom Shares | H230: Share
D231: Year | E231: Cal Year | F231: Award | G231: Granted | H231: Price | I231: =EOYDate -> 2016-12-31 | J231: =DATE(YEAR(I231)+1,MONTH(I231),DAY(I231)) -> 2017-12-31 | K231: =DATE(YEAR(J231)+1,MONTH(J231),DAY(J231)) -> 2018-12-31 | L231: =DATE(YEAR(K231)+1,MONTH(K231),DAY(K231)) -> 2019-12-31 | M231: =DATE(YEAR(L231)+1,MONTH(L231),DAY(L231)) -> 2020-12-31 | N231: =DATE(YEAR(M231)+1,MONTH(M231),DAY(M231)) -> 2021-12-31 | O231: =DATE(YEAR(N231)+1,MONTH(N231),DAY(N231)) -> 2022-12-31 | P231: =DATE(YEAR(O231)+1,MONTH(O231),DAY(O231)) -> 2023-12-31 | Q231: =DATE(YEAR(P231)+1,MONTH(P231),DAY(P231)) -> 2024-12-31 | R231: =DATE(YEAR(Q231)+1,MONTH(Q231),DAY(Q231)) -> 2025-12-31
H232: =Calcs!$I$9 -> 25 | I232: =H233 -> 33.25 | J232: =H234 -> 44.2225 | K232: =H235 -> 58.815925 | L232: =H236 -> 73.51990625 | M232: =H237 -> 91.89988281 | N232: =H238 -> 114.8748535 | O232: =H239 -> 132.1060815 | P232: =H240 -> 151.9219938 | Q232: =H241 -> 174.7102928 | R232: =H242 -> 200.9168368 | Z232: Vesting Rates | AK232: Vested Value
D233: 1 | E233: ='Valuation Method'!$H$6+1 -> 2016 | F233: =INDEX(ParticipantData,MATCH(C230,ParticipantNums,0),MATCH($E233,TopRow,0)) -> 0 | G233: =PoolPercent*SharesNumber*F233 -> 0 | H233: =Calcs!$I$10 -> 33.25 | I233: =$G233*(I232-$H232) -> 0 | J233: 0 | K233: 0 | L233: 0 | M233: 0 | N233: 0 | O233: 0 | P233: 0 | Q233: 0 | R233: 0 | Z233: ='Rate Table'!$O$8 -> 0 | AA233: ='Rate Table'!$O$9 -> 0 | AB233: ='Rate Table'!$O$10 -> 0 | AC233: ='Rate Table'!$O$11 -> 0.4 | AD233: ='Rate Table'!$O$12 -> 1 | AE233: ='Rate Table'!$O$13 -> 1 | AF233: ='Rate Table'!$O$14 -> 1 | AG233: ='Rate Table'!$O$15 -> 1 | AH233: ='Rate Table'!$O$16 -> 1 | AI233: ='Rate Table'!$O$17 -> 1 | AK233: =I233*Z233 -> 0 | AL233: =J233*AA233 -> 0 | AM233: =K233*AB233 -> 0 | AN233: =L233*AC233 -> 0 | AO233: =M233*AD233 -> 0 | AP233: =N233*AE233 -> 0 | AQ233: =O233*AF233 -> 0 | AR233: =P233*AG233 -> 0 | AS233: =Q233*AH233 -> 0 | AT233: =R233*AI233 -> 0
D234: =D233+1 -> 2 | E234: =E233+1 -> 2017 | F234: =INDEX(ParticipantData,MATCH(C230,ParticipantNums,0),MATCH(E234,TopRow,0)) -> 0 | G234: 0 | H234: =Calcs!$I$11 -> 44.2225 | J234: =$G234*(J232-$I232) -> 0 | K234: 0 | L234: 0 | M234: 0 | N234: 0 | O234: 0 | P234: 0 | Q234: 0 | R234: 0 | AA234: ='Rate Table'!$O$8 -> 0 | AB234: ='Rate Table'!$O$9 -> 0 | AC234: ='Rate Table'!$O$10 -> 0 | AD234: ='Rate Table'!$O$11 -> 0.4 | AE234: ='Rate Table'!$O$12 -> 1 | AF234: ='Rate Table'!$O$13 -> 1 | AG234: ='Rate Table'!$O$14 -> 1 | AH234: ='Rate Table'!$O$15 -> 1 | AI234: ='Rate Table'!$O$16 -> 1 | AK234: =I234*Z234 -> 0 | AL234: 0 | AM234: 0 | AN234: 0 | AO234: 0 | AP234: 0 | AQ234: 0 | AR234: 0 | AS234: 0 | AT234: 0
D235: =D234+1 -> 3 | E235: 2018 | F235: =INDEX(ParticipantData,MATCH(C230,ParticipantNums,0),MATCH(E235,TopRow,0)) -> 0 | G235: 0 | H235: =Calcs!$I$12 -> 58.815925 | K235: =$G235*(K232-$J232) -> 0 | L235: 0 | M235: 0 | N235: 0 | O235: 0 | P235: 0 | Q235: 0 | R235: 0 | AB235: ='Rate Table'!$O$8 -> 0 | AC235: ='Rate Table'!$O$9 -> 0 | AD235: ='Rate Table'!$O$10 -> 0 | AE235: ='Rate Table'!$O$11 -> 0.4 | AF235: ='Rate Table'!$O$12 -> 1 | AG235: ='Rate Table'!$O$13 -> 1 | AH235: ='Rate Table'!$O$14 -> 1 | AI235: ='Rate Table'!$O$15 -> 1 | AK235: 0 | AL235: 0 | AM235: 0 | AN235: 0 | AO235: 0 | AP235: 0 | AQ235: 0 | AR235: 0 | AS235: 0 | AT235: 0
D236: =D235+1 -> 4 | E236: 2019 | F236: =INDEX(ParticipantData,MATCH(C230,ParticipantNums,0),MATCH(E236,TopRow,0)) -> 0 | G236: 0 | H236: =Calcs!$I$13 -> 73.51990625 | L236: =$G236*(L232-$K232) -> 0 | M236: 0 | N236: 0 | O236: 0 | P236: 0 | Q236: 0 | R236: 0 | AC236: ='Rate Table'!$O$8 -> 0 | AD236: ='Rate Table'!$O$9 -> 0 | AE236: ='Rate Table'!$O$10 -> 0 | AF236: ='Rate Table'!$O$11 -> 0.4 | AG236: ='Rate Table'!$O$12 -> 1 | AH236: ='Rate Table'!$O$13 -> 1 | AI236: ='Rate Table'!$O$14 -> 1 | AK236: 0 | AL236: 0 | AM236: 0 | AN236: 0 | AO236: 0 | AP236: 0 | AQ236: 0 | AR236: 0 | AS236: 0 | AT236: 0
D237: =D236+1 -> 5 | E237: 2020 | F237: =INDEX(ParticipantData,MATCH(C230,ParticipantNums,0),MATCH(E237,TopRow,0)) -> 0 | G237: 0 | H237: =Calcs!$I$14 -> 91.89988281 | M237: =$G237*(M232-$L232) -> 0 | N237: 0 | O237: 0 | P237: 0 | Q237: 0 | R237: 0 | AD237: ='Rate Table'!$O$8 -> 0 | AE237: ='Rate Table'!$O$9 -> 0 | AF237: ='Rate Table'!$O$10 -> 0 | AG237: ='Rate Table'!$O$11 -> 0.4 | AH237: ='Rate Table'!$O$12 -> 1 | AI237: ='Rate Table'!$O$13 -> 1 | AK237: 0 | AL237: 0 | AM237: 0 | AN237: 0 | AO237: 0 | AP237: 0 | AQ237: 0 | AR237: 0 | AS237: 0 | AT237: 0
D238: =D237+1 -> 6 | E238: 2021 | F238: =INDEX(ParticipantData,MATCH(C230,ParticipantNums,0),MATCH(E238,TopRow,0)) -> 0 | G238: 0 | H238: =Calcs!$I$15 -> 114.8748535 | N238: =$G238*(N232-$M232) -> 0 | O238: =$G238*(O232-$M232) -> 0 | P238: =$G238*(P232-$M232) -> 0 | Q238: =$G238*(Q232-$M232) -> 0 | R238: =$G238*(R232-$M232) -> 0 | AE238: ='Rate Table'!$O$8 -> 0 | AF238: ='Rate Table'!$O$9 -> 0 | AG238: ='Rate Table'!$O$10 -> 0 | AH238: ='Rate Table'!$O$11 -> 0.4 | AI238: ='Rate Table'!$O$12 -> 1 | AK238: 0 | AL238: 0 | AM238: 0 | AN238: 0 | AO238: 0 | AP238: 0 | AQ238: 0 | AR238: 0 | AS238: 0 | AT238: 0
D239: =D238+1 -> 7 | E239: 2022 | F239: =INDEX(ParticipantData,MATCH(C230,ParticipantNums,0),MATCH(E239,TopRow,0)) -> 0 | G239: 0 | H239: =Calcs!$I$16 -> 132.1060815 | O239: =$G239*(O232-$N232) -> 0 | P239: =$G239*(P232-$N232) -> 0 | Q239: =$G239*(Q232-$N232) -> 0 | R239: =$G239*(R232-$N232) -> 0 | AF239: ='Rate Table'!$O$8 -> 0 | AG239: ='Rate Table'!$O$9 -> 0 | AH239: ='Rate Table'!$O$10 -> 0 | AI239: ='Rate Table'!$O$11 -> 0.4 | AK239: 0 | AL239: 0 | AM239: 0 | AN239: 0 | AO239: 0 | AP239: 0 | AQ239: 0 | AR239: 0 | AS239: 0 | AT239: 0
D240: =D239+1 -> 8 | E240: 2023 | F240: =INDEX(ParticipantData,MATCH(C230,ParticipantNums,0),MATCH(E240,TopRow,0)) -> 0 | G240: 0 | H240: =Calcs!$I$17 -> 151.9219938 | P240: =$G240*(P232-$O232) -> 0 | Q240: =$G240*(Q232-$O232) -> 0 | R240: =$G240*(R232-$O232) -> 0 | AG240: ='Rate Table'!$O$8 -> 0 | AH240: ='Rate Table'!$O$9 -> 0 | AI240: ='Rate Table'!$O$10 -> 0 | AK240: 0 | AL240: 0 | AM240: 0 | AN240: 0 | AO240: 0 | AP240: 0 | AQ240: 0 | AR240: 0 | AS240: 0 | AT240: 0
D241: =D240+1 -> 9 | E241: 2024 | F241: =INDEX(ParticipantData,MATCH(C230,ParticipantNums,0),MATCH(E241,TopRow,0)) -> 0 | G241: 0 | H241: =Calcs!$I$18 -> 174.7102928 | Q241: =$G241*(Q232-$P232) -> 0 | R241: =$G241*(R232-$P232) -> 0 | AH241: ='Rate Table'!$O$8 -> 0 | AI241: ='Rate Table'!$O$9 -> 0 | AK241: 0 | AL241: 0 | AM241: 0 | AN241: 0 | AO241: 0 | AP241: 0 | AQ241: 0 | AR241: 0 | AS241: 0 | AT241: 0
D242: =D241+1 -> 10 | E242: 2025 | F242: =INDEX(ParticipantData,MATCH(C230,ParticipantNums,0),MATCH(E242,TopRow,0)) -> 0 | G242: 0 | H242: =Calcs!$I$19 -> 200.9168368 | R242: =$G242*(R232-$Q232) -> 0 | AI242: ='Rate Table'!$O$8 -> 0 | AK242: 0 | AL242: 0 | AM242: 0 | AN242: 0 | AO242: 0 | AP242: 0 | AQ242: 0 | AR242: 0 | AS242: 0 | AT242: 0
F243: =SUM(F233:F242) -> 0 | G243: =SUM(G233:G242) -> 0 | H243: Earned | I243: =SUM(I233:I242) -> 0 | J243: =SUM(J233:J242) -> 0 | K243: 0 | L243: 0 | M243: 0 | N243: 0 | O243: 0 | P243: 0 | Q243: 0 | R243: 0
H244: Vested | I244: =SUM(AK233:AK242) -> 0 | J244: =SUM(AL233:AL242) -> 0 | K244: =SUM(AM233:AM242) -> 0 | L244: =SUM(AN233:AN242) -> 0 | M244: =SUM(AO233:AO242) -> 0 | N244: =SUM(AP233:AP242) -> 0 | O244: =SUM(AQ233:AQ242) -> 0 | P244: =SUM(AR233:AR242) -> 0 | Q244: =SUM(AS233:AS242) -> 0 | R244: =SUM(AT233:AT242) -> 0
H246: Salary | I246: =VLOOKUP(C230,'Participant Awards'!$C$11:$H$20,5,FALSE) -> 0 | J246: =I246*(1+CompGrowthRate) -> 0 | K246: =J246*(1+CompGrowthRate) -> 0 | L246: =K246*(1+CompGrowthRate) -> 0 | M246: =L246*(1+CompGrowthRate) -> 0 | N246: =M246*(1+CompGrowthRate) -> 0 | O246: =N246*(1+CompGrowthRate) -> 0 | P246: =O246*(1+CompGrowthRate) -> 0 | Q246: =P246*(1+CompGrowthRate) -> 0 | R246: =Q246*(1+CompGrowthRate) -> 0
H247: Bonus | I247: =I246*VLOOKUP(C230,'Participant Awards'!$C$11:$H$20,6,FALSE) -> 0 | J247: =J246*VLOOKUP(C230,'Participant Awards'!$C$11:$H$20,6,FALSE) -> 0 | K247: =K246*VLOOKUP(C230,'Participant Awards'!$C$11:$H$20,6,FALSE) -> 0 | L247: =L246*VLOOKUP(C230,'Participant Awards'!$C$11:$H$20,6,FALSE) -> 0 | M247: =M246*VLOOKUP(C230,'Participant Awards'!$C$11:$H$20,6,FALSE) -> 0 | N247: =N246*VLOOKUP(C230,'Participant Awards'!$C$11:$H$20,6,FALSE) -> 0 | O247: =O246*VLOOKUP(C230,'Participant Awards'!$C$11:$H$20,6,FALSE) -> 0 | P247: =P246*VLOOKUP(C230,'Participant Awards'!$C$11:$H$20,6,FALSE) -> 0 | Q247: =Q246*VLOOKUP(C230,'Participant Awards'!$C$11:$H$20,6,FALSE) -> 0 | R247: =R246*VLOOKUP(C230,'Participant Awards'!$C$11:$H$20,6,FALSE) -> 0
H248: Total Comp | I248: =I246+I247 -> 0 | J248: =J246+J247 -> 0 | K248: 0 | L248: 0 | M248: 0 | N248: 0 | O248: 0 | P248: 0 | Q248: 0 | R248: 0
F250: Phantom Stock Value as % of Salary | I250: =IF(I246=0,0,I243/I246) -> 0 | J250: =IF(J246=0,0,J243/J246) -> 0 | K250: 0 | L250: 0 | M250: 0 | N250: 0 | O250: 0 | P250: 0 | Q250: 0 | R250: 0
C254: 10 | D254: =" "&IF(VLOOKUP(C254,'Participant Awards'!$C$11:$D$20,2,FALSE)=0,"",VLOOKUP(C254,'Participant Awards'!$C$11:$D$20,2,FALSE)) ->  | F254: Phantom Stock | G254: Phantom Shares | H254: Share
D255: Year | E255: Cal Year | F255: Award | G255: Granted | H255: Price | I255: =EOYDate -> 2016-12-31 | J255: =DATE(YEAR(I255)+1,MONTH(I255),DAY(I255)) -> 2017-12-31 | K255: =DATE(YEAR(J255)+1,MONTH(J255),DAY(J255)) -> 2018-12-31 | L255: =DATE(YEAR(K255)+1,MONTH(K255),DAY(K255)) -> 2019-12-31 | M255: =DATE(YEAR(L255)+1,MONTH(L255),DAY(L255)) -> 2020-12-31 | N255: =DATE(YEAR(M255)+1,MONTH(M255),DAY(M255)) -> 2021-12-31 | O255: =DATE(YEAR(N255)+1,MONTH(N255),DAY(N255)) -> 2022-12-31 | P255: =DATE(YEAR(O255)+1,MONTH(O255),DAY(O255)) -> 2023-12-31 | Q255: =DATE(YEAR(P255)+1,MONTH(P255),DAY(P255)) -> 2024-12-31 | R255: =DATE(YEAR(Q255)+1,MONTH(Q255),DAY(Q255)) -> 2025-12-31
H256: =Calcs!$I$9 -> 25 | I256: =H257 -> 33.25 | J256: =H258 -> 44.2225 | K256: =H259 -> 58.815925 | L256: =H260 -> 73.51990625 | M256: =H261 -> 91.89988281 | N256: =H262 -> 114.8748535 | O256: =H263 -> 132.1060815 | P256: =H264 -> 151.9219938 | Q256: =H265 -> 174.7102928 | R256: =H266 -> 200.9168368 | Z256: Vesting Rates | AK256: Vested Value
D257: 1 | E257: ='Valuation Method'!$H$6+1 -> 2016 | F257: =INDEX(ParticipantData,MATCH(C254,ParticipantNums,0),MATCH($E257,TopRow,0)) -> 0 | G257: =PoolPercent*SharesNumber*F257 -> 0 | H257: =Calcs!$I$10 -> 33.25 | I257: =$G257*(I256-$H256) -> 0 | J257: 0 | K257: 0 | L257: 0 | M257: 0 | N257: 0 | O257: 0 | P257: 0 | Q257: 0 | R257: 0 | Z257: ='Rate Table'!$O$8 -> 0 | AA257: ='Rate Table'!$O$9 -> 0 | AB257: ='Rate Table'!$O$10 -> 0 | AC257: ='Rate Table'!$O$11 -> 0.4 | AD257: ='Rate Table'!$O$12 -> 1 | AE257: ='Rate Table'!$O$13 -> 1 | AF257: ='Rate Table'!$O$14 -> 1 | AG257: ='Rate Table'!$O$15 -> 1 | AH257: ='Rate Table'!$O$16 -> 1 | AI257: ='Rate Table'!$O$17 -> 1 | AK257: =I257*Z257 -> 0 | AL257: =J257*AA257 -> 0 | AM257: =K257*AB257 -> 0 | AN257: =L257*AC257 -> 0 | AO257: =M257*AD257 -> 0 | AP257: =N257*AE257 -> 0 | AQ257: =O257*AF257 -> 0 | AR257: =P257*AG257 -> 0 | AS257: =Q257*AH257 -> 0 | AT257: =R257*AI257 -> 0
D258: =D257+1 -> 2 | E258: =E257+1 -> 2017 | F258: =INDEX(ParticipantData,MATCH(C254,ParticipantNums,0),MATCH(E258,TopRow,0)) -> 0 | G258: 0 | H258: =Calcs!$I$11 -> 44.2225 | J258: =$G258*(J256-$I256) -> 0 | K258: 0 | L258: 0 | M258: 0 | N258: 0 | O258: 0 | P258: 0 | Q258: 0 | R258: 0 | AA258: ='Rate Table'!$O$8 -> 0 | AB258: ='Rate Table'!$O$9 -> 0 | AC258: ='Rate Table'!$O$10 -> 0 | AD258: ='Rate Table'!$O$11 -> 0.4 | AE258: ='Rate Table'!$O$12 -> 1 | AF258: ='Rate Table'!$O$13 -> 1 | AG258: ='Rate Table'!$O$14 -> 1 | AH258: ='Rate Table'!$O$15 -> 1 | AI258: ='Rate Table'!$O$16 -> 1 | AK258: =I258*Z258 -> 0 | AL258: 0 | AM258: 0 | AN258: 0 | AO258: 0 | AP258: 0 | AQ258: 0 | AR258: 0 | AS258: 0 | AT258: 0
D259: =D258+1 -> 3 | E259: 2018 | F259: =INDEX(ParticipantData,MATCH(C254,ParticipantNums,0),MATCH(E259,TopRow,0)) -> 0 | G259: 0 | H259: =Calcs!$I$12 -> 58.815925 | K259: =$G259*(K256-$J256) -> 0 | L259: 0 | M259: 0 | N259: 0 | O259: 0 | P259: 0 | Q259: 0 | R259: 0 | AB259: ='Rate Table'!$O$8 -> 0 | AC259: ='Rate Table'!$O$9 -> 0 | AD259: ='Rate Table'!$O$10 -> 0 | AE259: ='Rate Table'!$O$11 -> 0.4 | AF259: ='Rate Table'!$O$12 -> 1 | AG259: ='Rate Table'!$O$13 -> 1 | AH259: ='Rate Table'!$O$14 -> 1 | AI259: ='Rate Table'!$O$15 -> 1 | AK259: 0 | AL259: 0 | AM259: 0 | AN259: 0 | AO259: 0 | AP259: 0 | AQ259: 0 | AR259: 0 | AS259: 0 | AT259: 0
D260: =D259+1 -> 4 | E260: 2019 | F260: =INDEX(ParticipantData,MATCH(C254,ParticipantNums,0),MATCH(E260,TopRow,0)) -> 0 | G260: 0 | H260: =Calcs!$I$13 -> 73.51990625 | L260: =$G260*(L256-$K256) -> 0 | M260: 0 | N260: 0 | O260: 0 | P260: 0 | Q260: 0 | R260: 0 | AC260: ='Rate Table'!$O$8 -> 0 | AD260: ='Rate Table'!$O$9 -> 0 | AE260: ='Rate Table'!$O$10 -> 0 | AF260: ='Rate Table'!$O$11 -> 0.4 | AG260: ='Rate Table'!$O$12 -> 1 | AH260: ='Rate Table'!$O$13 -> 1 | AI260: ='Rate Table'!$O$14 -> 1 | AK260: 0 | AL260: 0 | AM260: 0 | AN260: 0 | AO260: 0 | AP260: 0 | AQ260: 0 | AR260: 0 | AS260: 0 | AT260: 0
D261: =D260+1 -> 5 | E261: 2020 | F261: =INDEX(ParticipantData,MATCH(C254,ParticipantNums,0),MATCH(E261,TopRow,0)) -> 0 | G261: 0 | H261: =Calcs!$I$14 -> 91.89988281 | M261: =$G261*(M256-$L256) -> 0 | N261: 0 | O261: 0 | P261: 0 | Q261: 0 | R261: 0 | AD261: ='Rate Table'!$O$8 -> 0 | AE261: ='Rate Table'!$O$9 -> 0 | AF261: ='Rate Table'!$O$10 -> 0 | AG261: ='Rate Table'!$O$11 -> 0.4 | AH261: ='Rate Table'!$O$12 -> 1 | AI261: ='Rate Table'!$O$13 -> 1 | AK261: 0 | AL261: 0 | AM261: 0 | AN261: 0 | AO261: 0 | AP261: 0 | AQ261: 0 | AR261: 0 | AS261: 0 | AT261: 0
... 11 more rows

Sheet Company Perspective
U7: Future Appreciation
U9: Phantom Stock Pool
U10: [Share of Future Appreciation]
U12: Current Company Value
G17: 1 | H17: =G17+1 -> 2 | I17: =H17+1 -> 3 | J17: 4 | K17: 5 | L17: 6 | M17: 7 | N17: 8 | O17: 9 | P17: 10
E18: Projected Company Value | F18: =Calcs!F9 -> 2500000 | G18: =Calcs!F10 -> 3325000 | H18: =Calcs!F11 -> 4422250 | I18: =Calcs!F12 -> 5881592.5 | J18: =Calcs!F13 -> 7351990.625 | K18: =Calcs!F14 -> 9189988.281 | L18: =Calcs!F15 -> 11487485.35 | M18: =Calcs!F16 -> 13210608.15 | N18: =Calcs!F17 -> 15192199.38 | O18: =Calcs!F18 -> 17471029.28 | P18: =Calcs!F19 -> 20091683.68
E19: Appreciation | G19: =Calcs!G10 -> 825000 | H19: =Calcs!G11 -> 1922250 | I19: =Calcs!G12 -> 3381592.5 | J19: =Calcs!G13 -> 4851990.625 | K19: =Calcs!G14 -> 6689988.281 | L19: =Calcs!G15 -> 8987485.352 | M19: =Calcs!G16 -> 10710608.15 | N19: =Calcs!G17 -> 12692199.38 | O19: =Calcs!G18 -> 14971029.28 | P19: =Calcs!G19 -> 17591683.68
E20: ="Phantom Stock Pool ("&TEXT(PoolPercent,"0.0%")&") " -> Phantom Stock Pool (20.0%) | G20: =Calcs!H10 -> 165000 | H20: =Calcs!H11 -> 384450 | I20: =Calcs!H12 -> 676318.5 | J20: =Calcs!H13 -> 970398.125 | K20: =Calcs!H14 -> 1337997.656 | L20: =Calcs!H15 -> 1797497.07 | M20: =Calcs!H16 -> 2142121.631 | N20: =Calcs!H17 -> 2538439.875 | O20: =Calcs!H18 -> 2994205.857 | P20: =Calcs!H19 -> 3518336.735
F22: Total Annual Awards (%) | G22: ='Participant Awards'!J22 -> 0.65 | H22: ='Participant Awards'!K22-'Participant Awards'!J22 -> 0 | I22: ='Participant Awards'!L22-'Participant Awards'!K22 -> 0.25 | J22: ='Participant Awards'!M22-'Participant Awards'!L22 -> 0 | K22: ='Participant Awards'!N22-'Participant Awards'!M22 -> 0 | L22: ='Participant Awards'!O22-'Participant Awards'!N22 -> 0 | M22: ='Participant Awards'!P22-'Participant Awards'!O22 -> 0 | N22: ='Participant Awards'!Q22-'Participant Awards'!P22 -> 0 | O22: ='Participant Awards'!R22-'Participant Awards'!Q22 -> 0 | P22: ='Participant Awards'!S22-'Participant Awards'!R22 -> 0
F23: Value of Awards (Earned) | G23: =Calcs!U10 -> 107250 | H23: =Calcs!U11 -> 249892.5 | I23: =Calcs!U12 -> 512574.15 | J23: =Calcs!U13 -> 777245.8125 | K23: =Calcs!U14 -> 1108085.391 | L23: =Calcs!U15 -> 1521634.863 | M23: =Calcs!U16 -> 1831796.968 | N23: =Calcs!U17 -> 2188483.388 | O23: =Calcs!U18 -> 2598672.771 | P23: =Calcs!U19 -> 3070390.562
F24: Value of Awards (Vested) | G24: =Calcs!V10 -> 0 | H24: =Calcs!V11 -> 0 | I24: =Calcs!V12 -> 0 | J24: =Calcs!V13 -> 252303.5125 | K24: =Calcs!V14 -> 869698.4766 | L24: =Calcs!V15 -> 1309677.803 | M24: =Calcs!V16 -> 1831796.968 | N24: =Calcs!V17 -> 2188483.388 | O24: =Calcs!V18 -> 2598672.771 | P24: =Calcs!V19 -> 3070390.562
F26: Total Salaries | G26: =Calcs!W10 -> 1075000 | H26: =Calcs!W11 -> 1107250 | I26: =Calcs!W12 -> 1140467.5 | J26: =Calcs!W13 -> 1174681.525 | K26: =Calcs!W14 -> 1209921.971 | L26: =Calcs!W15 -> 1246219.63 | M26: =Calcs!W16 -> 1283606.219 | N26: =Calcs!W17 -> 1322114.405 | O26: =Calcs!W18 -> 1361777.837 | P26: =Calcs!W19 -> 1402631.173
F27: Total Bonuses | G27: =Calcs!X10 -> 297500 | H27: =Calcs!X11 -> 306425 | I27: =Calcs!X12 -> 315617.75 | J27: =Calcs!X13 -> 325086.2825 | K27: =Calcs!X14 -> 334838.871 | L27: =Calcs!X15 -> 344884.0371 | M27: =Calcs!X16 -> 355230.5582 | N27: =Calcs!X17 -> 365887.475 | O27: =Calcs!X18 -> 376864.0992 | P27: =Calcs!X19 -> 388170.0222
F28: Total Compensation | G28: =Calcs!Y10 -> 1372500 | H28: =Calcs!Y11 -> 1413675 | I28: =Calcs!Y12 -> 1456085.25 | J28: =Calcs!Y13 -> 1499767.808 | K28: =Calcs!Y14 -> 1544760.842 | L28: =Calcs!Y15 -> 1591103.667 | M28: =Calcs!Y16 -> 1638836.777 | N28: =Calcs!Y17 -> 1688001.88 | O28: =Calcs!Y18 -> 1738641.937 | P28: =Calcs!Y19 -> 1790801.195
F30: Phantom Stock Earned as % of Salary | G30: =G23/G26 -> 0.09976744186 | H30: =H23/H26 -> 0.2256875141 | I30: 0.4494421367 | J30: 0.6616651373 | K30: 0.9158321094 | L30: 1.221000558 | M30: 1.427070811 | N30: 1.655290479 | O30: 1.908294216 | P30: 2.189022048

Sheet Variables (hidden)
A1: Variables
D5: Calc or Reference - Don’t Change | E5: Red
D6: From Census Tab | E6: Green
D7: Change on Variables Page | E7: Black | N7: ValueCritList | P7: NumYrsList | R7: GrowRateMethod | T7: YrsToVest | V7: VestingPeriod | X7: PlanType | AA7: YrToGraph | AC7: BenefitPayments
C8: Set in Valuation Tab | N8: Gross Revenue | P8: 3 | R8: Single Rate | T8: 3 | V8: Cliff Vesting | X8: Full Value | AA8: 1 | AC8: Annual Benefit Payments
D9: Specify Values or Use Formulas | E9: ='Valuation Method'!H10 -> Formula Based | F9: InputValueMethod | N9: Operating Income | P9: =P8+1 -> 4 | R9: Rate Table | T9: =T8+1 -> 4 | V9: Vesting Schedule | X9: Incremental Value | AA9: 2 | AC9: Cumulative Benefit Payments
D10: Measurement Criteria | E10: ='Valuation Method'!H14 -> EBITDA | F10: ValueCriteriaSelected | N10: EBITDA | P10: =P9+1 -> 5 | T10: =T9+1 -> 5 | AA10: 3
D11: Current Value of Measurement Criteria | E11: ='Valuation Method'!H15 -> 500000 | F11: CurrentValueofMeasure | N11: Net Income | P11: 6 | R11: BusValueMethod | T11: 6 | AA11: 4
D12: Starting Year | E12: ='Valuation Method'!H6 -> 2015 | F12: StartingYear | P12: 7 | R12: Specify Values | T12: 7 | AA12: 5
D13: Number of Future Years | E13: ='Valuation Method'!H7 -> 10 | F13: NumYrsSelected | P13: 8 | R13: Formula Based | T13: 8 | AA13: 6
D14: % of Future Value in the Pool | E14: ='Valuation Method'!H9 -> 0.2 | F14: PoolPercent | P14: 9 | T14: 9 | AA14: 7
D15: Use Single Rate or Rate Table | E15: ='Valuation Method'!H16 -> Rate Table | F15: GrowRateSelected | P15: 10 | T15: 10 | AA15: 8
D16: Single Rate (if Selected) | E16: ='Valuation Method'!G17 -> 0 | F16: SingleRate | W16: Nancy Jenkins | Y16: <==Goto | AA16: 9
D17: Display Number Format - Valuation Chart | E17: =Variables!I39 -> 2 | F17: DisplayNumber | AA17: 10
D18: Valuation Multiple | E18: ='Valuation Method'!H18 -> 5 | F18: ValuationMultiple | AA18: All
D19: Number of Shares | E19: ='Valuation Method'!H8 -> 100000 | F19: SharesNumber | X19: Exec | Y19: Exec#
D20: Use Cliff Vesting or Enter Vesting Schedule | E20: ='Valuation Method'!H22 -> Vesting Schedule | F20: VestingMethod | K20: 3 | X20: ='Participant Awards'!D11 -> John Smith | Y20: 1
D21: Vesting Years Selected | E21: =K20 -> 3 | F21: VestingYears | K21: 2 | X21: ='Participant Awards'!D12 -> Jim Douglas | Y21: 2
D22: Display Number Format - Benefit Chart | E22: =#REF! ->  | F22: DisplayGraph | X22: ='Participant Awards'!D13 -> Jane Doe | Y22: 3
D23: Plan Type Description | E23: =IF(PlanTypeSelected=1,"Full Value","Incremental Value") -> Incremental Value | F23: Plantype1 | X23: ='Participant Awards'!D14 -> Nancy Jenkins | Y23: 4
D24: Plan Type Selected | E24: 2 | F24: PlanTypeSelected | X24: ='Participant Awards'!D15 -> 0 | Y24: 5
D25: Vesting Period Selected | E25: 2 | F25: VestingPeriodSelected | X25: ='Participant Awards'!D16 -> 0 | Y25: 6
D26: Vesting Year | E26: =CHOOSE(VestingPeriodSelected,3,4,5,6,7,8,9,10) -> 4 | F26: VestingYear | X26: ='Participant Awards'!D17 -> 0 | Y26: 7
D27: Comp Growth Rate | E27: 0.03 | F27: CompGrowthRate | X27: ='Participant Awards'!D18 -> 0 | Y27: 8
C28: Set in Participant Value Tab | X28: ='Participant Awards'!D19 -> 0 | Y28: 9
D29: Display Number Format - Exhibit | E29: =#REF! ->  | F29: DisplayNumberExhibit | X29: ='Participant Awards'!D20 -> 0 | Y29: 10
X30: =VLOOKUP('Participant Values'!D8,$X$20:$Y$29,2,FALSE) -> 1 | Y30: <==Exec#
C33: Other Variable
D34: End of Yr Date | E34: =DATE(StartingYear+1,12,31) -> 2016-12-31 | F34: EOYDate
D35: Age | E35: =INT((Age_As_Of_Date-DOB)/365.25+0.5) ->  | F35: Age
D36: Salary Increase | E36: 0.03 | F36: SalaryGrowth
D37: Death Age | E37: 85 | F37: DeathAge
D39: For Graph, use Actual (1), Thousands (2) or Millions (3) | I39: 2

Sheet Calcs (hidden)
I6: =SharesNumber -> 100000
B8: Year | C8: Year | D8: =ValueCriteriaSelected -> EBITDA | E8: Projected Rates | F8: Business Value | G8: Appreciation | H8: Phantom Stock Pool | I8: Share Price | K8: Year | L8: Year | M8: =IF(InputValueMethod="Specify Values","Business Value is Specified Below","Projected "&ValueCriteriaSelected&IF(DisplayNumber=2," ($ Thousands)",IF(DisplayNumber=3," ($ Millions)","($ Dollars)"))) -> Projected EBITDA ($ Thousands) | N8: ="Projected Business Value"&IF(DisplayNumber=2," ($ Thousands)",IF(DisplayNumber=3," ($ Millions)","($ Dollars)")) -> Projected Business Value ($ Thousands) | O8: ="Initial Business Value"&IF(DisplayNumber=2," ($ Thousands)",IF(DisplayNumber=3," ($ Millions)","($ Dollars)")) -> Initial Business Value ($ Thousands) | P8: ="Projected Appreciation"&IF(DisplayNumber=2," ($ Thousands)",IF(DisplayNumber=3," ($ Millions)","($ Dollars)")) -> Projected Appreciation ($ Thousands) | Q8: ="Phantom Stock Pool"&IF(DisplayNumber=2," ($ Thousands)",IF(DisplayNumber=3," ($ Millions)","($ Dollars)")) -> Phantom Stock Pool ($ Thousands) | R8: ="Phantom Stock Pool"&IF(DisplayNumber=2," ($ Thousands)",IF(DisplayNumber=3," ($ Millions)","($ Dollars)")) -> Phantom Stock Pool ($ Thousands) | U8: Earned | V8: Vested | W8: Salary | X8: Bonus | Y8: Total Comp | AA8: =U8&IF(DisplayNumber=2," ($ Thousands)",IF(DisplayNumber=3," ($ Millions)","($ Dollars)")) -> Earned ($ Thousands) | AB8: =V8&IF(DisplayNumber=2," ($ Thousands)",IF(DisplayNumber=3," ($ Millions)","($ Dollars)")) -> Vested ($ Thousands) | AC8: =W8&IF(DisplayNumber=2," ($ Thousands)",IF(DisplayNumber=3," ($ Millions)","($ Dollars)")) -> Salary ($ Thousands) | AD8: =X8&IF(DisplayNumber=2," ($ Thousands)",IF(DisplayNumber=3," ($ Millions)","($ Dollars)")) -> Bonus ($ Thousands) | AE8: =Y8&IF(DisplayNumber=2," ($ Thousands)",IF(DisplayNumber=3," ($ Millions)","($ Dollars)")) -> Total Comp ($ Thousands)
C9: =StartingYear -> 2015 | D9: =IF(InputValueMethod="Specify Values",0,CurrentValueofMeasure) -> 500000 | F9: =IF(InputValueMethod="Specify Values",'Rate Table'!D7,D9*ValuationMultiple) -> 2500000 | I9: =IF(SharesNumber=0,0,F9/SharesNumber) -> 25 | K9: =StartingYear -> 2015 | L9: =IF(InputValueMethod="Specify Values","",K9) -> 2015 | M9: =IF(InputValueMethod="Specify Values","",D9/CHOOSE(DisplayNumber,1,1000,1000000)) -> 500 | N9: =F9/CHOOSE(DisplayNumber,1,1000,1000000) -> 2500 | O9: =$F$9/CHOOSE(DisplayNumber,1,1000,1000000) -> 2500 | R9: =Q9+O9 -> 2500
B10: =B9+1 -> 1 | C10: =C9+1 -> 2016 | D10: =D9*(1+E10) -> 665000 | E10: =IF(InputValueMethod="Specify Values",(F10-F9)/F9,IF(GrowRateSelected="Rate Table",'Rate Table'!I8,SingleRate)) -> 0.33 | F10: =IF(InputValueMethod="Specify Values",'Rate Table'!D8,D10*ValuationMultiple) -> 3325000 | G10: =F10-$F$9 -> 825000 | H10: =G10*PoolPercent -> 165000 | I10: 33.25 | K10: =K9+1 -> 2016 | L10: 2016 | M10: 665 | N10: 3325 | O10: 2500 | P10: =G10/CHOOSE(DisplayNumber,1,1000,1000000) -> 825 | Q10: =H10/CHOOSE(DisplayNumber,1,1000,1000000) -> 165 | R10: =Q10+O10 -> 2665 | U10: ='Participant Values'!I51+'Participant Values'!I75+'Participant Values'!I99+'Participant Values'!I123+'Participant Values'!I147+'Participant Values'!I171+'Participant Values'!I195+'Participant Values'!I219+'Participant Values'!I243+'Participant Values'!I267 -> 107250 | V10: ='Participant Values'!I52+'Participant Values'!I76+'Participant Values'!I100+'Participant Values'!I124+'Participant Values'!I148+'Participant Values'!I172+'Participant Values'!I196+'Participant Values'!I220+'Participant Values'!I244+'Participant Values'!I268 -> 0 | W10: ='Participant Values'!I54+'Participant Values'!I78+'Participant Values'!I102+'Participant Values'!I126+'Participant Values'!I150+'Participant Values'!I174+'Participant Values'!I198+'Participant Values'!I222+'Participant Values'!I246+'Participant Values'!I270 -> 1075000 | X10: ='Participant Values'!I55+'Participant Values'!I79+'Participant Values'!I103+'Participant Values'!I127+'Participant Values'!I151+'Participant Values'!I175+'Participant Values'!I199+'Participant Values'!I223+'Participant Values'!I247+'Participant Values'!I271 -> 297500 | Y10: ='Participant Values'!I56+'Participant Values'!I80+'Participant Values'!I104+'Participant Values'!I128+'Participant Values'!I152+'Participant Values'!I176+'Participant Values'!I200+'Participant Values'!I224+'Participant Values'!I248+'Participant Values'!I272 -> 1372500 | AA10: =U10/CHOOSE(DisplayNumber,1,1000,1000000) -> 107.25 | AB10: =V10/CHOOSE(DisplayNumber,1,1000,1000000) -> 0 | AC10: =W10/CHOOSE(DisplayNumber,1,1000,1000000) -> 1075 | AD10: =X10/CHOOSE(DisplayNumber,1,1000,1000000) -> 297.5 | AE10: =Y10/CHOOSE(DisplayNumber,1,1000,1000000) -> 1372.5
B11: =B10+1 -> 2 | C11: =C10+1 -> 2017 | D11: =D10*(1+E11) -> 884450 | E11: =IF(InputValueMethod="Specify Values",(F11-F10)/F10,IF(GrowRateSelected="Rate Table",'Rate Table'!I9,SingleRate)) -> 0.33 | F11: =IF(InputValueMethod="Specify Values",'Rate Table'!D9,D11*ValuationMultiple) -> 4422250 | G11: 1922250 | H11: 384450 | I11: 44.2225 | K11: =K10+1 -> 2017 | L11: 2017 | M11: 884.45 | N11: 4422.25 | O11: 2500 | P11: 1922.25 | Q11: 384.45 | R11: =Q11+O11 -> 2884.45 | U11: ='Participant Values'!J51+'Participant Values'!J75+'Participant Values'!J99+'Participant Values'!J123+'Participant Values'!J147+'Participant Values'!J171+'Participant Values'!J195+'Participant Values'!J219+'Participant Values'!J243+'Participant Values'!J267 -> 249892.5 | V11: ='Participant Values'!J52+'Participant Values'!J76+'Participant Values'!J100+'Participant Values'!J124+'Participant Values'!J148+'Participant Values'!J172+'Participant Values'!J196+'Participant Values'!J220+'Participant Values'!J244+'Participant Values'!J268 -> 0 | W11: ='Participant Values'!J54+'Participant Values'!J78+'Participant Values'!J102+'Participant Values'!J126+'Participant Values'!J150+'Participant Values'!J174+'Participant Values'!J198+'Participant Values'!J222+'Participant Values'!J246+'Participant Values'!J270 -> 1107250 | X11: ='Participant Values'!J55+'Participant Values'!J79+'Participant Values'!J103+'Participant Values'!J127+'Participant Values'!J151+'Participant Values'!J175+'Participant Values'!J199+'Participant Values'!J223+'Participant Values'!J247+'Participant Values'!J271 -> 306425 | Y11: ='Participant Values'!J56+'Participant Values'!J80+'Participant Values'!J104+'Participant Values'!J128+'Participant Values'!J152+'Participant Values'!J176+'Participant Values'!J200+'Participant Values'!J224+'Participant Values'!J248+'Participant Values'!J272 -> 1413675 | AA11: 249.8925 | AB11: 0 | AC11: 1107.25 | AD11: 306.425 | AE11: 1413.675
B12: =B11+1 -> 3 | C12: 2018 | D12: 1176318.5 | E12: =IF(InputValueMethod="Specify Values",(F12-F11)/F11,IF(GrowRateSelected="Rate Table",'Rate Table'!I10,SingleRate)) -> 0.33 | F12: =IF(InputValueMethod="Specify Values",'Rate Table'!D10,D12*ValuationMultiple) -> 5881592.5 | G12: 3381592.5 | H12: 676318.5 | I12: 58.815925 | K12: =K11+1 -> 2018 | L12: 2018 | M12: 1176.3185 | N12: 5881.5925 | O12: 2500 | P12: 3381.5925 | Q12: 676.3185 | R12: 3176.3185 | U12: ='Participant Values'!K51+'Participant Values'!K75+'Participant Values'!K99+'Participant Values'!K123+'Participant Values'!K147+'Participant Values'!K171+'Participant Values'!K195+'Participant Values'!K219+'Participant Values'!K243+'Participant Values'!K267 -> 512574.15 | V12: ='Participant Values'!K52+'Participant Values'!K76+'Participant Values'!K100+'Participant Values'!K124+'Participant Values'!K148+'Participant Values'!K172+'Participant Values'!K196+'Participant Values'!K220+'Participant Values'!K244+'Participant Values'!K268 -> 0 | W12: ='Participant Values'!K54+'Participant Values'!K78+'Participant Values'!K102+'Participant Values'!K126+'Participant Values'!K150+'Participant Values'!K174+'Participant Values'!K198+'Participant Values'!K222+'Participant Values'!K246+'Participant Values'!K270 -> 1140467.5 | X12: ='Participant Values'!K55+'Participant Values'!K79+'Participant Values'!K103+'Participant Values'!K127+'Participant Values'!K151+'Participant Values'!K175+'Participant Values'!K199+'Participant Values'!K223+'Participant Values'!K247+'Participant Values'!K271 -> 315617.75 | Y12: ='Participant Values'!K56+'Participant Values'!K80+'Participant Values'!K104+'Participant Values'!K128+'Participant Values'!K152+'Participant Values'!K176+'Participant Values'!K200+'Participant Values'!K224+'Participant Values'!K248+'Participant Values'!K272 -> 1456085.25 | AA12: 512.57415 | AB12: 0 | AC12: 1140.4675 | AD12: 315.61775 | AE12: 1456.08525
B13: 4 | C13: 2019 | D13: 1470398.125 | E13: =IF(InputValueMethod="Specify Values",(F13-F12)/F12,IF(GrowRateSelected="Rate Table",'Rate Table'!I11,SingleRate)) -> 0.25 | F13: =IF(InputValueMethod="Specify Values",'Rate Table'!D11,D13*ValuationMultiple) -> 7351990.625 | G13: 4851990.625 | H13: 970398.125 | I13: 73.51990625 | K13: 2019 | L13: 2019 | M13: 1470.398125 | N13: 7351.990625 | O13: 2500 | P13: 4851.990625 | Q13: 970.398125 | R13: 3470.398125 | U13: ='Participant Values'!L51+'Participant Values'!L75+'Participant Values'!L99+'Participant Values'!L123+'Participant Values'!L147+'Participant Values'!L171+'Participant Values'!L195+'Participant Values'!L219+'Participant Values'!L243+'Participant Values'!L267 -> 777245.8125 | V13: ='Participant Values'!L52+'Participant Values'!L76+'Participant Values'!L100+'Participant Values'!L124+'Participant Values'!L148+'Participant Values'!L172+'Participant Values'!L196+'Participant Values'!L220+'Participant Values'!L244+'Participant Values'!L268 -> 252303.5125 | W13: ='Participant Values'!L54+'Participant Values'!L78+'Participant Values'!L102+'Participant Values'!L126+'Participant Values'!L150+'Participant Values'!L174+'Participant Values'!L198+'Participant Values'!L222+'Participant Values'!L246+'Participant Values'!L270 -> 1174681.525 | X13: ='Participant Values'!L55+'Participant Values'!L79+'Participant Values'!L103+'Participant Values'!L127+'Participant Values'!L151+'Participant Values'!L175+'Participant Values'!L199+'Participant Values'!L223+'Participant Values'!L247+'Participant Values'!L271 -> 325086.2825 | Y13: ='Participant Values'!L56+'Participant Values'!L80+'Participant Values'!L104+'Participant Values'!L128+'Participant Values'!L152+'Participant Values'!L176+'Participant Values'!L200+'Participant Values'!L224+'Participant Values'!L248+'Participant Values'!L272 -> 1499767.808 | AA13: 777.2458125 | AB13: 252.3035125 | AC13: 1174.681525 | AD13: 325.0862825 | AE13: 1499.767808
B14: 5 | C14: 2020 | D14: 1837997.656 | E14: =IF(InputValueMethod="Specify Values",(F14-F13)/F13,IF(GrowRateSelected="Rate Table",'Rate Table'!I12,SingleRate)) -> 0.25 | F14: =IF(InputValueMethod="Specify Values",'Rate Table'!D12,D14*ValuationMultiple) -> 9189988.281 | G14: 6689988.281 | H14: 1337997.656 | I14: 91.89988281 | K14: 2020 | L14: 2020 | M14: 1837.997656 | N14: 9189.988281 | O14: 2500 | P14: 6689.988281 | Q14: 1337.997656 | R14: 3837.997656 | U14: ='Participant Values'!M51+'Participant Values'!M75+'Participant Values'!M99+'Participant Values'!M123+'Participant Values'!M147+'Participant Values'!M171+'Participant Values'!M195+'Participant Values'!M219+'Participant Values'!M243+'Participant Values'!M267 -> 1108085.391 | V14: ='Participant Values'!M52+'Participant Values'!M76+'Participant Values'!M100+'Participant Values'!M124+'Participant Values'!M148+'Participant Values'!M172+'Participant Values'!M196+'Participant Values'!M220+'Participant Values'!M244+'Participant Values'!M268 -> 869698.4766 | W14: ='Participant Values'!M54+'Participant Values'!M78+'Participant Values'!M102+'Participant Values'!M126+'Participant Values'!M150+'Participant Values'!M174+'Participant Values'!M198+'Participant Values'!M222+'Participant Values'!M246+'Participant Values'!M270 -> 1209921.971 | X14: ='Participant Values'!M55+'Participant Values'!M79+'Participant Values'!M103+'Participant Values'!M127+'Participant Values'!M151+'Participant Values'!M175+'Participant Values'!M199+'Participant Values'!M223+'Participant Values'!M247+'Participant Values'!M271 -> 334838.871 | Y14: ='Participant Values'!M56+'Participant Values'!M80+'Participant Values'!M104+'Participant Values'!M128+'Participant Values'!M152+'Participant Values'!M176+'Participant Values'!M200+'Participant Values'!M224+'Participant Values'!M248+'Participant Values'!M272 -> 1544760.842 | AA14: 1108.085391 | AB14: 869.6984766 | AC14: 1209.921971 | AD14: 334.838871 | AE14: 1544.760842
B15: 6 | C15: 2021 | D15: 2297497.07 | E15: =IF(InputValueMethod="Specify Values",(F15-F14)/F14,IF(GrowRateSelected="Rate Table",'Rate Table'!I13,SingleRate)) -> 0.25 | F15: =IF(InputValueMethod="Specify Values",'Rate Table'!D13,D15*ValuationMultiple) -> 11487485.35 | G15: 8987485.352 | H15: 1797497.07 | I15: 114.8748535 | K15: 2021 | L15: 2021 | M15: 2297.49707 | N15: 11487.48535 | O15: 2500 | P15: 8987.485352 | Q15: 1797.49707 | R15: 4297.49707 | U15: ='Participant Values'!N51+'Participant Values'!N75+'Participant Values'!N99+'Participant Values'!N123+'Participant Values'!N147+'Participant Values'!N171+'Participant Values'!N195+'Participant Values'!N219+'Participant Values'!N243+'Participant Values'!N267 -> 1521634.863 | V15: ='Participant Values'!N52+'Participant Values'!N76+'Participant Values'!N100+'Participant Values'!N124+'Participant Values'!N148+'Participant Values'!N172+'Participant Values'!N196+'Participant Values'!N220+'Participant Values'!N244+'Participant Values'!N268 -> 1309677.803 | W15: ='Participant Values'!N54+'Participant Values'!N78+'Participant Values'!N102+'Participant Values'!N126+'Participant Values'!N150+'Participant Values'!N174+'Participant Values'!N198+'Participant Values'!N222+'Participant Values'!N246+'Participant Values'!N270 -> 1246219.63 | X15: ='Participant Values'!N55+'Participant Values'!N79+'Participant Values'!N103+'Participant Values'!N127+'Participant Values'!N151+'Participant Values'!N175+'Participant Values'!N199+'Participant Values'!N223+'Participant Values'!N247+'Participant Values'!N271 -> 344884.0371 | Y15: ='Participant Values'!N56+'Participant Values'!N80+'Participant Values'!N104+'Participant Values'!N128+'Participant Values'!N152+'Participant Values'!N176+'Participant Values'!N200+'Participant Values'!N224+'Participant Values'!N248+'Participant Values'!N272 -> 1591103.667 | AA15: 1521.634863 | AB15: 1309.677803 | AC15: 1246.21963 | AD15: 344.8840371 | AE15: 1591.103667
B16: 7 | C16: 2022 | D16: 2642121.631 | E16: =IF(InputValueMethod="Specify Values",(F16-F15)/F15,IF(GrowRateSelected="Rate Table",'Rate Table'!I14,SingleRate)) -> 0.15 | F16: =IF(InputValueMethod="Specify Values",'Rate Table'!D14,D16*ValuationMultiple) -> 13210608.15 | G16: 10710608.15 | H16: 2142121.631 | I16: 132.1060815 | K16: 2022 | L16: 2022 | M16: 2642.121631 | N16: 13210.60815 | O16: 2500 | P16: 10710.60815 | Q16: 2142.121631 | R16: 4642.121631 | U16: ='Participant Values'!O51+'Participant Values'!O75+'Participant Values'!O99+'Participant Values'!O123+'Participant Values'!O147+'Participant Values'!O171+'Participant Values'!O195+'Participant Values'!O219+'Participant Values'!O243+'Participant Values'!O267 -> 1831796.968 | V16: ='Participant Values'!O52+'Participant Values'!O76+'Participant Values'!O100+'Participant Values'!O124+'Participant Values'!O148+'Participant Values'!O172+'Participant Values'!O196+'Participant Values'!O220+'Participant Values'!O244+'Participant Values'!O268 -> 1831796.968 | W16: ='Participant Values'!O54+'Participant Values'!O78+'Participant Values'!O102+'Participant Values'!O126+'Participant Values'!O150+'Participant Values'!O174+'Participant Values'!O198+'Participant Values'!O222+'Participant Values'!O246+'Participant Values'!O270 -> 1283606.219 | X16: ='Participant Values'!O55+'Participant Values'!O79+'Participant Values'!O103+'Participant Values'!O127+'Participant Values'!O151+'Participant Values'!O175+'Participant Values'!O199+'Participant Values'!O223+'Participant Values'!O247+'Participant Values'!O271 -> 355230.5582 | Y16: ='Participant Values'!O56+'Participant Values'!O80+'Participant Values'!O104+'Participant Values'!O128+'Participant Values'!O152+'Participant Values'!O176+'Participant Values'!O200+'Participant Values'!O224+'Participant Values'!O248+'Participant Values'!O272 -> 1638836.777 | AA16: 1831.796968 | AB16: 1831.796968 | AC16: 1283.606219 | AD16: 355.2305582 | AE16: 1638.836777
B17: 8 | C17: 2023 | D17: 3038439.875 | E17: =IF(InputValueMethod="Specify Values",(F17-F16)/F16,IF(GrowRateSelected="Rate Table",'Rate Table'!I15,SingleRate)) -> 0.15 | F17: =IF(InputValueMethod="Specify Values",'Rate Table'!D15,D17*ValuationMultiple) -> 15192199.38 | G17: 12692199.38 | H17: 2538439.875 | I17: 151.9219938 | K17: 2023 | L17: 2023 | M17: 3038.439875 | N17: 15192.19938 | O17: 2500 | P17: 12692.19938 | Q17: 2538.439875 | R17: 5038.439875 | U17: ='Participant Values'!P51+'Participant Values'!P75+'Participant Values'!P99+'Participant Values'!P123+'Participant Values'!P147+'Participant Values'!P171+'Participant Values'!P195+'Participant Values'!P219+'Participant Values'!P243+'Participant Values'!P267 -> 2188483.388 | V17: ='Participant Values'!P52+'Participant Values'!P76+'Participant Values'!P100+'Participant Values'!P124+'Participant Values'!P148+'Participant Values'!P172+'Participant Values'!P196+'Participant Values'!P220+'Participant Values'!P244+'Participant Values'!P268 -> 2188483.388 | W17: ='Participant Values'!P54+'Participant Values'!P78+'Participant Values'!P102+'Participant Values'!P126+'Participant Values'!P150+'Participant Values'!P174+'Participant Values'!P198+'Participant Values'!P222+'Participant Values'!P246+'Participant Values'!P270 -> 1322114.405 | X17: ='Participant Values'!P55+'Participant Values'!P79+'Participant Values'!P103+'Participant Values'!P127+'Participant Values'!P151+'Participant Values'!P175+'Participant Values'!P199+'Participant Values'!P223+'Participant Values'!P247+'Participant Values'!P271 -> 365887.475 | Y17: ='Participant Values'!P56+'Participant Values'!P80+'Participant Values'!P104+'Participant Values'!P128+'Participant Values'!P152+'Participant Values'!P176+'Participant Values'!P200+'Participant Values'!P224+'Participant Values'!P248+'Participant Values'!P272 -> 1688001.88 | AA17: 2188.483388 | AB17: 2188.483388 | AC17: 1322.114405 | AD17: 365.887475 | AE17: 1688.00188
B18: 9 | C18: 2024 | D18: 3494205.857 | E18: =IF(InputValueMethod="Specify Values",(F18-F17)/F17,IF(GrowRateSelected="Rate Table",'Rate Table'!I16,SingleRate)) -> 0.15 | F18: =IF(InputValueMethod="Specify Values",'Rate Table'!D16,D18*ValuationMultiple) -> 17471029.28 | G18: 14971029.28 | H18: 2994205.857 | I18: 174.7102928 | K18: 2024 | L18: 2024 | M18: 3494.205857 | N18: 17471.02928 | O18: 2500 | P18: 14971.02928 | Q18: 2994.205857 | R18: 5494.205857 | U18: ='Participant Values'!Q51+'Participant Values'!Q75+'Participant Values'!Q99+'Participant Values'!Q123+'Participant Values'!Q147+'Participant Values'!Q171+'Participant Values'!Q195+'Participant Values'!Q219+'Participant Values'!Q243+'Participant Values'!Q267 -> 2598672.771 | V18: ='Participant Values'!Q52+'Participant Values'!Q76+'Participant Values'!Q100+'Participant Values'!Q124+'Participant Values'!Q148+'Participant Values'!Q172+'Participant Values'!Q196+'Participant Values'!Q220+'Participant Values'!Q244+'Participant Values'!Q268 -> 2598672.771 | W18: ='Participant Values'!Q54+'Participant Values'!Q78+'Participant Values'!Q102+'Participant Values'!Q126+'Participant Values'!Q150+'Participant Values'!Q174+'Participant Values'!Q198+'Participant Values'!Q222+'Participant Values'!Q246+'Participant Values'!Q270 -> 1361777.837 | X18: ='Participant Values'!Q55+'Participant Values'!Q79+'Participant Values'!Q103+'Participant Values'!Q127+'Participant Values'!Q151+'Participant Values'!Q175+'Participant Values'!Q199+'Participant Values'!Q223+'Participant Values'!Q247+'Participant Values'!Q271 -> 376864.0992 | Y18: ='Participant Values'!Q56+'Participant Values'!Q80+'Participant Values'!Q104+'Participant Values'!Q128+'Participant Values'!Q152+'Participant Values'!Q176+'Participant Values'!Q200+'Participant Values'!Q224+'Participant Values'!Q248+'Participant Values'!Q272 -> 1738641.937 | AA18: 2598.672771 | AB18: 2598.672771 | AC18: 1361.777837 | AD18: 376.8640992 | AE18: 1738.641937
B19: 10 | C19: 2025 | D19: 4018336.735 | E19: =IF(InputValueMethod="Specify Values",(F19-F18)/F18,IF(GrowRateSelected="Rate Table",'Rate Table'!I17,SingleRate)) -> 0.15 | F19: =IF(InputValueMethod="Specify Values",'Rate Table'!D17,D19*ValuationMultiple) -> 20091683.68 | G19: 17591683.68 | H19: 3518336.735 | I19: 200.9168368 | K19: 2025 | L19: 2025 | M19: 4018.336735 | N19: 20091.68368 | O19: 2500 | P19: 17591.68368 | Q19: 3518.336735 | R19: 6018.336735 | U19: ='Participant Values'!R51+'Participant Values'!R75+'Participant Values'!R99+'Participant Values'!R123+'Participant Values'!R147+'Participant Values'!R171+'Participant Values'!R195+'Participant Values'!R219+'Participant Values'!R243+'Participant Values'!R267 -> 3070390.562 | V19: ='Participant Values'!R52+'Participant Values'!R76+'Participant Values'!R100+'Participant Values'!R124+'Participant Values'!R148+'Participant Values'!R172+'Participant Values'!R196+'Participant Values'!R220+'Participant Values'!R244+'Participant Values'!R268 -> 3070390.562 | W19: ='Participant Values'!R54+'Participant Values'!R78+'Participant Values'!R102+'Participant Values'!R126+'Participant Values'!R150+'Participant Values'!R174+'Participant Values'!R198+'Participant Values'!R222+'Participant Values'!R246+'Participant Values'!R270 -> 1402631.173 | X19: ='Participant Values'!R55+'Participant Values'!R79+'Participant Values'!R103+'Participant Values'!R127+'Participant Values'!R151+'Participant Values'!R175+'Participant Values'!R199+'Participant Values'!R223+'Participant Values'!R247+'Participant Values'!R271 -> 388170.0222 | Y19: ='Participant Values'!R56+'Participant Values'!R80+'Participant Values'!R104+'Participant Values'!R128+'Participant Values'!R152+'Participant Values'!R176+'Participant Values'!R200+'Participant Values'!R224+'Participant Values'!R248+'Participant Values'!R272 -> 1790801.195 | AA19: 3070.390562 | AB19: 3070.390562 | AC19: 1402.631173 | AD19: 388.1700222 | AE19: 1790.801195

Sheet Rate Table
Z2: =COUNTIF(Z11:AK11,">0") -> 2 | AA2: Vesting Years
B3: Back to Valuation Method Exhibit | G3: Back to Valuation Method Exhibit | L3: Back to Valuation Method Exhibit | Z3: ='Valuation Method'!H21 -> 5 | AA3: Vesting Period
Z4: ='Valuation Method'!H22 -> Vesting Schedule | AA4: Vesting Schedule
B5: Specified Business Value | G5: Valuation Growth Rate | L5: Vesting Schedule
B7: Start Year | C7: =StartingYear -> 2015 | G7: Start Year | H7: ='Valuation Method'!H6 -> 2015 | I7: Enter Rate | M7: Grant Year | N7: Annual | O7: Cum | Y7: Back to Valuation Method Exhibit
B8: 1 | C8: =IF(B8<=NumYrsSelected,C7+1,"") -> 2016 | G8: 1 | H8: =IF(G8<=NumYrsSelected,H7+1,"") -> 2016 | I8: 0.33 | M8: 1 | N8: 0 | O8: =SUM($N$8:N8) -> 0 | Y8: Vesting Table
B9: =B8+1 -> 2 | C9: =IF(B9<=NumYrsSelected,C8+1,"") -> 2017 | G9: =G8+1 -> 2 | H9: =IF(G9<=NumYrsSelected,H8+1,"") -> 2017 | I9: 0.33 | M9: =IF(L9<=NumYrsSelected,M8+1,"") -> 2 | N9: 0 | O9: =SUM($N$8:N9) -> 0 | Z9: 1 | AA9: =Z9+1 -> 2 | AB9: =AA9+1 -> 3 | AC9: 4 | AD9: 5 | AE9: 6 | AF9: 7 | AG9: 8 | AH9: 9 | AI9: 10
B10: =B9+1 -> 3 | C10: 2018 | G10: =G9+1 -> 3 | H10: 2018 | I10: 0.33 | M10: 3 | N10: 0 | O10: =SUM($N$8:N10) -> 0 | Z10: 2015 | AA10: =Z10+1 -> 2016 | AB10: =AA10+1 -> 2017 | AC10: 2018 | AD10: 2019 | AE10: 2020 | AF10: 2021 | AG10: 2022 | AH10: 2023 | AI10: 2024
B11: 4 | C11: 2019 | G11: 4 | H11: 2019 | I11: 0.25 | M11: 4 | N11: 0.4 | O11: =SUM($N$8:N11) -> 0.4 | Y11: Annual | Z11: 0 | AA11: 0 | AB11: 0 | AC11: 0 | AD11: 0 | AE11: 0.5 | AF11: 0.5 | AG11: 0 | AH11: 0 | AI11: 0
B12: 5 | C12: 2020 | G12: 5 | H12: 2020 | I12: 0.25 | M12: 5 | N12: 0.6 | O12: =SUM($N$8:N12) -> 1 | Y12: Cumulative | Z12: =SUM($Z$11:Z11) -> 0 | AA12: =SUM($Z$11:AA11) -> 0 | AB12: =SUM($Z$11:AB11) -> 0 | AC12: =SUM($Z$11:AC11) -> 0 | AD12: =SUM($Z$11:AD11) -> 0 | AE12: =SUM($Z$11:AE11) -> 0.5 | AF12: =SUM($Z$11:AF11) -> 1 | AG12: =SUM($Z$11:AG11) -> 1 | AH12: =SUM($Z$11:AH11) -> 1 | AI12: =SUM($Z$11:AI11) -> 1
B13: 6 | C13: 2021 | G13: 6 | H13: 2021 | I13: 0.25 | M13: 6 | N13: 0 | O13: =SUM($N$8:N13) -> 1
B14: 7 | C14: 2022 | G14: 7 | H14: 2022 | I14: 0.15 | M14: 7 | N14: 0 | O14: =SUM($N$8:N14) -> 1
B15: 8 | C15: 2023 | G15: 8 | H15: 2023 | I15: 0.15 | M15: 8 | N15: 0 | O15: =SUM($N$8:N15) -> 1
B16: 9 | C16: 2024 | G16: 9 | H16: 2024 | I16: 0.15 | M16: 9 | N16: 0 | O16: =SUM($N$8:N16) -> 1
B17: 10 | C17: =IF(B17<=NumYrsSelected,C16+1,"") -> 2025 | G17: 10 | H17: 2025 | I17: 0.15 | M17: 10 | N17: 0 | O17: =SUM($N$8:N17) -> 1
